Body Name,Organisational Unit,Business Unit No.,Business Unit Description,Expense Code,Expense Code Description,GL Date,Document No.,Invoice No.,Invoiced Value,Supplier Name,Address Book No.,Proclass Details Level 1,Thomson Classification Description
SHEFFIELD CITY COUNCIL        ,CYPF                          ,39028,SPECIAL GUARDIANSHIP          ,9270,RESIDENCE ORDERS              ,08/07/2016,4044212,191801 20160707 56961    ,"1,439.20",REDACTED PERSONAL DATA,492572,,ADOPTION & FOSTERING          
SHEFFIELD CITY COUNCIL        ,COMMUNITIES                   ,42034,PURCHASING LEARNING DISABILITI,9180,OTHER CLIENT EXPENDITURE      ,22/07/2016,4051708,J1578433 240716          ,811.00,REDACTED PERSONAL DATA,332448,,HOME CARE SERVICES            
SHEFFIELD CITY COUNCIL        ,COMMUNITIES                   ,42034,PURCHASING LEARNING DISABILITI,9180,OTHER CLIENT EXPENDITURE      ,29/07/2016,4055515,J1588122 310716          ,811.00,REDACTED PERSONAL DATA,332448,,HOME CARE SERVICES            
SHEFFIELD CITY COUNCIL        ,PLACE                         ,24405,COMMERCIAL ESTATE             ,4390,OTHER RENT INCOME             ,01/07/2016,4041110,ERS INVOICE140211        ,"2,125.00",OUGHTIBRIDGE PRIMARY SCHOOL             ,506704,,SCHOOLS - LOCAL AUTHORITY     
SHEFFIELD CITY COUNCIL        ,CYPF                          ,33068,ROMA PROJECT                  ,8440,FEE EXPENSES                  ,01/07/2016,4041112,ERS INVOICE140213        ,260.00,ROMA SUPPORT GROUP                      ,448780,,CHARITIES & VOLUNTARY ORGANISA
SHEFFIELD CITY COUNCIL        ,COMMUNITIES                   ,49701,SOUTH EAST                    ,8180,GRANTS                        ,01/07/2016,4041113,ERS INVOICE140214        ,500.00,FRIENDS OF TANNERY PARK                 ,553917,,COMMUNITY NETWORKS            
SHEFFIELD CITY COUNCIL        ,PLACE                         ,97333,MINOR WORK GRANTS             ,1165,NC&A OTHER                    ,01/07/2016,4041190,ERS INVOICE140216        ,672.00,REDACTED PERSONAL DATA,631897,Unclassified Non Trade,OUT OF SCOPE FOR SIC MONITORIN
SHEFFIELD CITY COUNCIL        ,CYPF                          ,39032,ADOPTION SERVICE              ,9120,OTHER AGENCIES                ,01/07/2016,4041191,ERS INVOICE140217        ,400.00,REDACTED PERSONAL DATA,630974,,ADOPTION & FOSTERING          
SHEFFIELD CITY COUNCIL        ,PLACE                         ,25078,ECCLESALL WOODS SAWMILL SITE  ,8260,WOODLAND DEVELOPMENT EXPENSES ,01/07/2016,4041227,ERS INVOICE140253        ,510.00,DAVID JACKSON                           ,559075,,TRAINING SERVICES             
SHEFFIELD CITY COUNCIL        ,CYPF                          ,39512,SEN TRANSPORT                 ,7140,PUBLIC TRANSPORT COSTS        ,01/07/2016,4023036,2202049158,"4,750.00",WORCESTERSHIRE COUNTY COUNCIL           ,319571,,LOCAL GOVERNMENT              
SHEFFIELD CITY COUNCIL        ,PLACE                         ,94120,TINSLEY ART PROJECT           ,1194,OTHER FEES                    ,01/07/2016,4024654,PSL150/16                ,"12,000.00",PUBLIC SCULPTURE LIMITED                ,634545,,ARTISTS & ILLUSTRATORS        
SHEFFIELD CITY COUNCIL        ,CYPF                          ,90779,PIPWORTH PMY- PLANT ROOM      ,1148,SURVEY COSTS                  ,01/07/2016,4025849,I862/QE/0516/SCC001      ,"1,901.00",QUALSURV INTERNATIONAL LTD              ,569165,,ASBESTOS SURVEYS & REMOVALS   
SHEFFIELD CITY COUNCIL        ,PLACE                         ,25050,GENERAL OPERATIONS TEAM       ,8550,OTHER SERVICES                ,01/07/2016,4029663,6358,300.00,FOUNDATION                              ,635265,,CHARITIES & VOLUNTARY ORGANISA
SHEFFIELD CITY COUNCIL        ,PLACE                         ,28106,CHINA BID                     ,7140,PUBLIC TRANSPORT COSTS        ,01/07/2016,4034034,01/6436388               ,576.00,CLARITY TRAVEL MANAGEMENT               ,202987,,TRAVEL AGENTS & HOLIDAY COMPAN
SHEFFIELD CITY COUNCIL        ,RESOURCES                     ,15218,TOWN HALL                     ,6090,WASTE DISPOSAL                ,01/07/2016,4034605,8521075174,924.20,VEOLIA ES (UK) LIMITED                  ,341639,,WASTE DISPOSAL SERVICES       
SHEFFIELD CITY COUNCIL        ,PLACE                         ,94050,SHEFFIELD RETAIL QUARTER 2    ,1146,L&B PROFESSIONAL FEES         ,01/07/2016,4034660,561349,"500,057.00",TURNER & TOWNSEND                       ,421729,,BUILDING CONSULTANTS          
SHEFFIELD CITY COUNCIL        ,PLACE                         ,93992,RIVELIN VALLEY PLAYBUILDER    ,1164,NC&A LANDSCAPING              ,01/07/2016,4035193,ASF/5870/SCC             ,"7,150.00",AVANTI STEEL FABRICATIONS               ,203151,,STEEL FABRICATORS & ERECTORS  
SHEFFIELD CITY COUNCIL        ,PLACE                         ,94053,CC HIGHWAY ENABLING WORKS     ,1193,CONSULTANTS FEES              ,01/07/2016,4035283,561416,"46,686.00",TURNER & TOWNSEND                       ,421729,,BUILDING CONSULTANTS          
SHEFFIELD CITY COUNCIL        ,PLACE                         ,21350,CEMETERIES                    ,6130,HEATING OIL                   ,01/07/2016,4035376,6336249,592.50,CARLTON FUELS                           ,466741,,FUEL DEALERS                  
SHEFFIELD CITY COUNCIL        ,CYPF                          ,39444,POLICY & SERVICE IMPROVEMENT  ,8440,FEE EXPENSES                  ,01/07/2016,4035630,186,"2,550.00",DO THE WRITE THING LTD                  ,508899,,CHARITIES & VOLUNTARY ORGANISA
SHEFFIELD CITY COUNCIL        ,CYPF                          ,33064,PROVIDER CONTRACT AUG15-JUL16 ,9120,OTHER AGENCIES                ,01/07/2016,4035749,21-May-16,"1,785.00",FLOWER ESTATE FAMILY ACTION (GROUP A/C) ,418616,,CHARITIES & VOLUNTARY ORGANISA
SHEFFIELD CITY COUNCIL        ,POLICY PERFORMANCE AND COMMS  ,18003,COMMUNICATIONS                ,8550,OTHER SERVICES                ,01/07/2016,4036473,10932,328.00,THE PRINT AND DESIGN FACTORY LTD        ,207663,,PRINTERS                      
SHEFFIELD CITY COUNCIL        ,PLACE                         ,21350,CEMETERIES                    ,8010,EQUIPMENT PURCHASE AND REPAIR ,01/07/2016,4038489,A1382                    ,396.00,MR DAVID PARAMORE                       ,501202,,STONEMASONS                   
SHEFFIELD CITY COUNCIL        ,CYPF                          ,33051,STUDENT FINANCIAL SUPPORT     ,9120,OTHER AGENCIES                ,01/07/2016,4038517,21-Jun-16,920.00,REDACTED PERSONAL DATA,576549,,CHILDMINDERS                  
SHEFFIELD CITY COUNCIL        ,CYPF                          ,39267,STEP UP TO SOCIAL WORK        ,8440,FEE EXPENSES                  ,01/07/2016,4038730,410000744,"17,266.40",NORTH YORKSHIRE COUNTY COUNCIL          ,542569,,LOCAL GOVERNMENT              
SHEFFIELD CITY COUNCIL        ,CYPF                          ,33064,PROVIDER CONTRACT AUG15-JUL16 ,9120,OTHER AGENCIES                ,01/07/2016,4038734,1535,399.00,MANOR TRAINING & RESOURCE CENTRE LTD    ,455921,,CHARITIES & VOLUNTARY ORGANISA
SHEFFIELD CITY COUNCIL        ,CYPF                          ,33064,PROVIDER CONTRACT AUG15-JUL16 ,9120,OTHER AGENCIES                ,01/07/2016,4038735,1534,399.00,MANOR TRAINING & RESOURCE CENTRE LTD    ,455921,,CHARITIES & VOLUNTARY ORGANISA
SHEFFIELD CITY COUNCIL        ,CYPF                          ,33064,PROVIDER CONTRACT AUG15-JUL16 ,9120,OTHER AGENCIES                ,01/07/2016,4038736,1542,271.00,MANOR TRAINING & RESOURCE CENTRE LTD    ,455921,,CHARITIES & VOLUNTARY ORGANISA
SHEFFIELD CITY COUNCIL        ,CYPF                          ,33064,PROVIDER CONTRACT AUG15-JUL16 ,9120,OTHER AGENCIES                ,01/07/2016,4038737,1543,271.00,MANOR TRAINING & RESOURCE CENTRE LTD    ,455921,,CHARITIES & VOLUNTARY ORGANISA
SHEFFIELD CITY COUNCIL        ,CYPF                          ,33066,MENTAL HEALTH PROJECT 16-17   ,9120,OTHER AGENCIES                ,01/07/2016,4039049,5207/5208                ,395.00,HEELEY DEVELOPMENT TRUST                ,472941,,CHARITIES & VOLUNTARY ORGANISA
SHEFFIELD CITY COUNCIL        ,CYPF                          ,33051,STUDENT FINANCIAL SUPPORT     ,8620,COMPUTER & HARDWARE PURCHASES ,01/07/2016,4039060,I987261                  ,929.99,JIGSAW SYSTEMS LTD                      ,206039,,COMPUTER SYSTEMS & SOFTWARE (S
SHEFFIELD CITY COUNCIL        ,CYPF                          ,33066,MENTAL HEALTH PROJECT 16-17   ,9120,OTHER AGENCIES                ,01/07/2016,4039064,5203/5204                ,732.50,HEELEY DEVELOPMENT TRUST                ,363241,,CHARITIES & VOLUNTARY ORGANISA
SHEFFIELD CITY COUNCIL        ,CYPF                          ,39444,POLICY & SERVICE IMPROVEMENT  ,8440,FEE EXPENSES                  ,01/07/2016,4039082,190,850.00,DO THE WRITE THING LTD                  ,508899,,CHARITIES & VOLUNTARY ORGANISA
SHEFFIELD CITY COUNCIL        ,COMMUNITIES                   ,49384,REPAIRS INSOURCING            ,8350,MISCELLANEOUS EXPENSES        ,01/07/2016,4039319,P21825/00                ,"10,230.00",BADENOCH AND CLARK LTD                  ,634019,,EMPLOYMENT & RECRUITMENT AGENC
SHEFFIELD CITY COUNCIL        ,COMMUNITIES                   ,49192,HIGH SUPPORT PROJECT          ,8350,MISCELLANEOUS EXPENSES        ,01/07/2016,4039483,13450,354.00,MOONLIGHT TEXTILES LTD                  ,206951,,CURTAINS - RETAILERS & MAKERS 
SHEFFIELD CITY COUNCIL        ,CYPF                          ,39444,POLICY & SERVICE IMPROVEMENT  ,8240,CONFERENCE EXPENSES           ,01/07/2016,4039491,PK099299                 ,350.00,DODS PARLIAMENTARY COMMUNICATIONS LTD   ,438416,,PUBLISHERS                    
SHEFFIELD CITY COUNCIL        ,CYPF                          ,33040,RED TAPE CENTRAL              ,8490,EXAM FEES                     ,01/07/2016,4039513,804177941,465.00,CITY & GUILDS                           ,424267,,EXAMINATION BOARDS            
SHEFFIELD CITY COUNCIL        ,CYPF                          ,39446,TEACHING PARTNERSHIPS         ,8440,FEE EXPENSES                  ,01/07/2016,4039826,1145,"4,530.51",CONSILIENT CONSULTING LTD               ,446779,,BUSINESS & MANAGEMENT CONSULTA
SHEFFIELD CITY COUNCIL        ,COMMUNITIES                   ,47009,MINOR WORKS & ADAPTATIONS     ,6020,REPAIRS AND MTCE - PROGRAMMED ,01/07/2016,4039907,605,511.00,MR H S CUTTS NEIL CONSTRUCTION          ,453315,,BUILDING SERVICES             
SHEFFIELD CITY COUNCIL        ,COMMUNITIES                   ,47009,MINOR WORKS & ADAPTATIONS     ,6020,REPAIRS AND MTCE - PROGRAMMED ,01/07/2016,4039908,606,274.00,MR H S CUTTS NEIL CONSTRUCTION          ,453315,,BUILDING SERVICES             
SHEFFIELD CITY COUNCIL        ,CYPF                          ,33050,CONSTRUCTION DESIGN CENTRE    ,8490,EXAM FEES                     ,01/07/2016,4039916,IEE552                   ,331.20,PEARSON EDUCATION LTD                   ,564747,,BOOKSELLERS                   
SHEFFIELD CITY COUNCIL        ,CYPF                          ,33050,CONSTRUCTION DESIGN CENTRE    ,8490,EXAM FEES                     ,01/07/2016,4039929,803742,278.10,CITB(CONSTRUCTION IND TRAINING BOARD)   ,203908,,EXAMINATION BOARDS            
SHEFFIELD CITY COUNCIL        ,POLICY PERFORMANCE AND COMMS  ,17027,EQUALITIES & INVOLVEMENT      ,9120,OTHER AGENCIES                ,01/07/2016,4040454,SCC1                     ,500.00,DARNALL COMMUNITY DEV CENTRE            ,635212,,COMMUNITY CENTRES             
SCR COMBINED AUTHORITY        ,CA LEP                        ,30103,CORE BUSINESS GROWTH          ,5610,AGENCY STAFF                  ,01/07/2016,4040477,229756248,708.86,REED EMPLOYMENT                         ,317819,,EMPLOYMENT & RECRUITMENT AGENC
SHEFFIELD CITY COUNCIL        ,RESOURCES                     ,12005,P&C/TREASURY                  ,8460,CONSULTANTS FEES              ,01/07/2016,4040534,1354551715,"20,000.00",PRICEWATERHOUSE COOPERS                 ,320665,,ACCOUNTANTS                   
SHEFFIELD CITY COUNCIL        ,PLACE                         ,25051,PLAYGROUND MAINTENANCE & INSPE,8010,EQUIPMENT PURCHASE AND REPAIR ,01/07/2016,4040545,1747,"6,466.40",NOTTS SPORT LTD                         ,207183,,TENNIS COURTS & SPORTS SURFACE
SHEFFIELD CITY COUNCIL        ,CYPF                          ,32046,OUTDOOR EDUCATION             ,6020,REPAIRS AND MTCE - PROGRAMMED ,01/07/2016,4040568,2257832,623.00,RAPID RACKING LTD                       ,329325,,SHELVING & RACKING - SYSTEMS &
SHEFFIELD CITY COUNCIL        ,CYPF                          ,32046,OUTDOOR EDUCATION             ,8440,FEE EXPENSES                  ,01/07/2016,4040569,1640,300.00,SILVER FOX TRAINING LTD                 ,542349,,EDUCATIONAL TRAINING PROVIDERS
SHEFFIELD CITY COUNCIL        ,CYPF                          ,33018,100 APPRENTICES               ,9120,OTHER AGENCIES                ,01/07/2016,4040597,16-Apr-16,321.75,BEAUTIFUL YOU                           ,635094,,BEAUTY SALONS                 
SHEFFIELD CITY COUNCIL        ,CYPF                          ,33018,100 APPRENTICES               ,9120,OTHER AGENCIES                ,01/07/2016,4040598,21-May-16,321.75,BEAUTIFUL YOU                           ,635094,,BEAUTY SALONS                 
SHEFFIELD CITY COUNCIL        ,CYPF                          ,32046,OUTDOOR EDUCATION             ,8010,EQUIPMENT PURCHASE AND REPAIR ,01/07/2016,4040620,23160,541.67,AMG SERVICES                            ,552558,,OUTDOOR PURSUIT ORGANISERS & E
SHEFFIELD CITY COUNCIL        ,CYPF                          ,39282,CARE PROCEEDINGS (LEGAL FEES) ,8470,LEGAL FEES                    ,01/07/2016,4040624,983516,600.00,REDACTED PERSONAL DATA,544033,,BARRISTERS                    
SHEFFIELD CITY COUNCIL        ,PLACE                         ,25072,WOODLANDS                     ,8440,FEE EXPENSES                  ,01/07/2016,4040637,2016-11                  ,875.00,UK FOREST CERTIFICATION GROUP           ,568670,,TREE WORK & FORESTRY SERVICES 
SHEFFIELD CITY COUNCIL        ,PLACE                         ,25051,PLAYGROUND MAINTENANCE & INSPE,8010,EQUIPMENT PURCHASE AND REPAIR ,01/07/2016,4040641,2162613,730.00,TALURIT UK LTD                          ,526574,,LIFTING EQUIPMENT             
SHEFFIELD CITY COUNCIL        ,PLACE                         ,25092,PARKS OPS EAST & NORTH EAST   ,8060,MATERIALS AND SUPPLIES GENERAL,01/07/2016,4040643,27708,498.00,BROADFIELD MOWERS LTD                   ,299941,,LAWNMOWERS & GARDEN MACHINERY 
SHEFFIELD CITY COUNCIL        ,PLACE                         ,25051,PLAYGROUND MAINTENANCE & INSPE,8010,EQUIPMENT PURCHASE AND REPAIR ,01/07/2016,4040647,130885,"1,600.00",GIFFORDS                                ,419493,,RECYCLING CENTRES             
SHEFFIELD CITY COUNCIL        ,COMMUNITIES                   ,49384,REPAIRS INSOURCING            ,5610,AGENCY STAFF                  ,01/07/2016,4040649,Y48789/00                ,"1,140.00",BADENOCH AND CLARK LTD                  ,634019,,EMPLOYMENT & RECRUITMENT AGENC
SHEFFIELD CITY COUNCIL        ,CYPF                          ,39282,CARE PROCEEDINGS (LEGAL FEES) ,8470,LEGAL FEES                    ,01/07/2016,4040654,10859,454.30,FORENSIC TESTING SERVICE LTD            ,557750,,MEDICAL & DENTAL LABORATORIES 
SHEFFIELD CITY COUNCIL        ,CYPF                          ,38208,0-4 HEALTHY WEIGHT SERVICE    ,9030,HEALTH                        ,01/07/2016,4040660,2456,312.50,REACH OUT CHILD CARE SERVICES LTD       ,443248,,AFTER SCHOOL CARE             
SHEFFIELD CITY COUNCIL        ,CYPF                          ,39282,CARE PROCEEDINGS (LEGAL FEES) ,8470,LEGAL FEES                    ,01/07/2016,4040672,10885,374.00,FORENSIC TESTING SERVICE LTD            ,557750,,MEDICAL & DENTAL LABORATORIES 
SHEFFIELD CITY COUNCIL        ,CYPF                          ,39357,SHORT BREAKS FUNDING FOR DISAB,9120,OTHER AGENCIES                ,01/07/2016,4040685,2017,675.00,REACHOUT CHILDCARE SERVICES LTD         ,433768,,AFTER SCHOOL CARE             
SHEFFIELD CITY COUNCIL        ,PLACE                         ,25001,GRAVES PARK - ANIMAL FARM INC ,8060,MATERIALS AND SUPPLIES GENERAL,01/07/2016,4040701,402569,400.98,ARGO FEEDS LTD                          ,203028,,PET FOODS & ANIMAL FEEDS      
SHEFFIELD CITY COUNCIL        ,RESOURCES                     ,15216,STANIFORTH ROAD DEPOT         ,8540,SECURITY SERVICES             ,01/07/2016,4040727,INV076216                ,"5,403.45",CONSTANT SECURITY SERVICES LIMITED      ,501937,,SECURITY SERVICES             
SHEFFIELD CITY COUNCIL        ,CYPF                          ,33050,CONSTRUCTION DESIGN CENTRE    ,9120,OTHER AGENCIES                ,01/07/2016,4040736,PNS162688                ,"2,830.97",PROTOCOL NATIONAL LTD                   ,570558,,EDUCATIONAL SERVICES          
SHEFFIELD CITY COUNCIL        ,CYPF                          ,39282,CARE PROCEEDINGS (LEGAL FEES) ,8470,LEGAL FEES                    ,01/07/2016,4041055,4011156,778.00,DNA WORLDWIDE LTD                       ,620368,,MEDICAL & DENTAL LABORATORIES 
SHEFFIELD CITY COUNCIL        ,RESOURCES                     ,11021,COURT COSTS & BR ADMIN GRANT  ,8470,LEGAL FEES                    ,01/07/2016,4041067,666806,"2,512.50",NO 5 CHAMBERS LTD (COLLECTION ACC)      ,620025,,BARRISTERS                    
SHEFFIELD CITY COUNCIL        ,PLACE                         ,28101,MARKETING SHEFFIELD           ,8270,SUBSCRIPTIONS                 ,01/07/2016,4041107,14185,"3,334.47",BERRY MARKETING SERVICES LTD            ,629639,,COMPUTER SYSTEMS & SOFTWARE (S
SHEFFIELD CITY COUNCIL        ,CYPF                          ,39282,CARE PROCEEDINGS (LEGAL FEES) ,8470,LEGAL FEES                    ,01/07/2016,4041118,10834,403.50,FORENSIC TESTING SERVICE LTD            ,557750,,MEDICAL & DENTAL LABORATORIES 
SHEFFIELD CITY COUNCIL        ,CYPF                          ,39282,CARE PROCEEDINGS (LEGAL FEES) ,8470,LEGAL FEES                    ,01/07/2016,4041119,10933,415.85,FORENSIC TESTING SERVICE LTD            ,557750,,MEDICAL & DENTAL LABORATORIES 
SHEFFIELD CITY COUNCIL        ,CYPF                          ,39282,CARE PROCEEDINGS (LEGAL FEES) ,8470,LEGAL FEES                    ,01/07/2016,4041121,125080,577.40,CARTER BROWN                            ,417243,,PSYCHOLOGISTS                 
SHEFFIELD CITY COUNCIL        ,CYPF                          ,39357,SHORT BREAKS FUNDING FOR DISAB,9120,OTHER AGENCIES                ,01/07/2016,4041124,1172,"2,956.05",SOVA                                    ,439114,,CHARITIES & VOLUNTARY ORGANISA
SHEFFIELD CITY COUNCIL        ,COMMUNITIES                   ,49309,PAYMENT HOLDING ACCOUNT       ,8350,MISCELLANEOUS EXPENSES        ,01/07/2016,4041132,2480203,"5,054.35",TROWERS & HAMLINS LLP                   ,300795,,SOLICITORS                    
SHEFFIELD CITY COUNCIL        ,PLACE                         ,23012,FOOD HYGIENE                  ,8350,MISCELLANEOUS EXPENSES        ,01/07/2016,4041135,2560,799.00,ARI ENVIRONMENTAL SERVICES LTD          ,626601,,HYGIENE & CLEANSING SERVICES  
SHEFFIELD CITY COUNCIL        ,CYPF                          ,39282,CARE PROCEEDINGS (LEGAL FEES) ,8470,LEGAL FEES                    ,01/07/2016,4041137,974259,600.00,REDACTED PERSONAL DATA,504926,,BARRISTERS                    
SHEFFIELD CITY COUNCIL        ,CYPF                          ,39282,CARE PROCEEDINGS (LEGAL FEES) ,8470,LEGAL FEES                    ,01/07/2016,4041138,986352,600.00,MISS A HICKINBOTTOM                     ,463452,,BARRISTERS                    
SHEFFIELD CITY COUNCIL        ,CYPF                          ,39282,CARE PROCEEDINGS (LEGAL FEES) ,8470,LEGAL FEES                    ,01/07/2016,4041141,1004759,600.00,REDACTED PERSONAL DATA,558231,Unclassified Non Trade,OUT OF SCOPE FOR SIC MONITORIN
SHEFFIELD CITY COUNCIL        ,CYPF                          ,39282,CARE PROCEEDINGS (LEGAL FEES) ,8470,LEGAL FEES                    ,01/07/2016,4041143,986693,"1,500.00",REDACTED PERSONAL DATA,486218,,BARRISTERS                    
SHEFFIELD CITY COUNCIL        ,COMMUNITIES                   ,46071,CITY WIDE CARE ALARMS         ,8590,LANDLINE TELEPHONES           ,01/07/2016,4041000,SL45445099Q02668         ,717.92,BRITISH TELECOMMUNICATIONS PLC          ,295860,,TELECOMMUNICATION SERVICES    
SHEFFIELD CITY COUNCIL        ,COMMUNITIES                   ,46071,CITY WIDE CARE ALARMS         ,6150,ELECTRICITY                   ,01/07/2016,4041001,27140707,988.18,NPOWER NORTHERN LTD                     ,207191,,ELECTRICITY COMPANIES         
SHEFFIELD CITY COUNCIL        ,POLICY PERFORMANCE AND COMMS  ,17003,ELECTORAL REGISTRATION        ,8570,POSTAGE & DELIVERY            ,01/07/2016,4041002,9052438970,"6,632.55",ROYAL MAIL GROUP LTD                    ,295326,,DELIVERY SERVICES             
SHEFFIELD CITY COUNCIL        ,POLICY PERFORMANCE AND COMMS  ,17003,ELECTORAL REGISTRATION        ,8570,POSTAGE & DELIVERY            ,01/07/2016,4041003,9052141975,"4,771.00",ROYAL MAIL GROUP LTD                    ,295326,,DELIVERY SERVICES             
SHEFFIELD CITY COUNCIL        ,COMMUNITIES                   ,42034,PURCHASING LEARNING DISABILITI,9180,OTHER CLIENT EXPENDITURE      ,01/07/2016,4040785,J1556085 030716          ,522.00,REDACTED PERSONAL DATA,617131,Unclassified Non Trade,OUT OF SCOPE FOR SIC MONITORIN
SHEFFIELD CITY COUNCIL        ,COMMUNITIES                   ,42034,PURCHASING LEARNING DISABILITI,9180,OTHER CLIENT EXPENDITURE      ,01/07/2016,4040786,J1556086 030716          ,811.00,REDACTED PERSONAL DATA,332448,,HOME CARE SERVICES            
SHEFFIELD CITY COUNCIL        ,COMMUNITIES                   ,42034,PURCHASING LEARNING DISABILITI,9180,OTHER CLIENT EXPENDITURE      ,01/07/2016,4040787,J1556087 030716          ,261.00,REDACTED PERSONAL DATA,328030,,HOME CARE SERVICES            
SHEFFIELD CITY COUNCIL        ,COMMUNITIES                   ,42034,PURCHASING LEARNING DISABILITI,9180,OTHER CLIENT EXPENDITURE      ,01/07/2016,4040788,J1556088 030716          ,261.00,REDACTED PERSONAL DATA,206291,,HOME CARE SERVICES            
SHEFFIELD CITY COUNCIL        ,COMMUNITIES                   ,42034,PURCHASING LEARNING DISABILITI,9180,OTHER CLIENT EXPENDITURE      ,01/07/2016,4040789,J1556089 030716          ,550.00,REDACTED PERSONAL DATA,328070,,HOME CARE SERVICES            
SHEFFIELD CITY COUNCIL        ,COMMUNITIES                   ,42034,PURCHASING LEARNING DISABILITI,9180,OTHER CLIENT EXPENDITURE      ,01/07/2016,4040790,J1556090 030716          ,261.00,REDACTED PERSONAL DATA,202619,,HOME CARE SERVICES            
SHEFFIELD CITY COUNCIL        ,COMMUNITIES                   ,42034,PURCHASING LEARNING DISABILITI,9180,OTHER CLIENT EXPENDITURE      ,01/07/2016,4040791,J1556091 030716          ,797.00,REDACTED PERSONAL DATA,408112,,HOME CARE SERVICES            
SHEFFIELD CITY COUNCIL        ,COMMUNITIES                   ,42034,PURCHASING LEARNING DISABILITI,9180,OTHER CLIENT EXPENDITURE      ,01/07/2016,4040792,J1556092 030716          ,261.00,REDACTED PERSONAL DATA,328091,,HOME CARE SERVICES            
SHEFFIELD CITY COUNCIL        ,COMMUNITIES                   ,44001,PURCHASING                    ,9180,OTHER CLIENT EXPENDITURE      ,01/07/2016,4040792,J1556092 030716          ,261.00,REDACTED PERSONAL DATA,328091,,HOME CARE SERVICES            
SHEFFIELD CITY COUNCIL        ,COMMUNITIES                   ,42034,PURCHASING LEARNING DISABILITI,9180,OTHER CLIENT EXPENDITURE      ,01/07/2016,4040793,J1556093 030716          ,261.00,REDACTED PERSONAL DATA,436605,,HOME CARE SERVICES            
SHEFFIELD CITY COUNCIL        ,COMMUNITIES                   ,42034,PURCHASING LEARNING DISABILITI,9180,OTHER CLIENT EXPENDITURE      ,01/07/2016,4040794,J1556094 030716          ,550.00,REDACTED PERSONAL DATA,369406,,HOME CARE SERVICES            
SHEFFIELD CITY COUNCIL        ,COMMUNITIES                   ,42034,PURCHASING LEARNING DISABILITI,9180,OTHER CLIENT EXPENDITURE      ,01/07/2016,4040795,J1556095 030716          ,275.00,REDACTED PERSONAL DATA,208144,,HOME CARE SERVICES            
SHEFFIELD CITY COUNCIL        ,COMMUNITIES                   ,42034,PURCHASING LEARNING DISABILITI,9180,OTHER CLIENT EXPENDITURE      ,01/07/2016,4040796,J1556096 030716          ,522.00,REDACTED PERSONAL DATA,332870,,HOME CARE SERVICES            
SHEFFIELD CITY COUNCIL        ,COMMUNITIES                   ,42034,PURCHASING LEARNING DISABILITI,9180,OTHER CLIENT EXPENDITURE      ,01/07/2016,4040797,J1556097 030716          ,261.00,REDACTED PERSONAL DATA,333307,,HOME CARE SERVICES            
SHEFFIELD CITY COUNCIL        ,COMMUNITIES                   ,42034,PURCHASING LEARNING DISABILITI,9180,OTHER CLIENT EXPENDITURE      ,01/07/2016,4040798,J1556098 030716          ,261.00,REDACTED PERSONAL DATA,333400,,HOME CARE SERVICES            
SHEFFIELD CITY COUNCIL        ,COMMUNITIES                   ,42034,PURCHASING LEARNING DISABILITI,9180,OTHER CLIENT EXPENDITURE      ,01/07/2016,4040799,J1556099 030716          ,261.00,REDACTED PERSONAL DATA,501798,Unclassified Non Trade,OUT OF SCOPE FOR SIC MONITORIN
SHEFFIELD CITY COUNCIL        ,COMMUNITIES                   ,42034,PURCHASING LEARNING DISABILITI,9180,OTHER CLIENT EXPENDITURE      ,01/07/2016,4040800,J1556100 030716          ,261.00,REDACTED PERSONAL DATA,328095,,HOME CARE SERVICES            
SHEFFIELD CITY COUNCIL        ,COMMUNITIES                   ,42034,PURCHASING LEARNING DISABILITI,9180,OTHER CLIENT EXPENDITURE      ,01/07/2016,4040801,J1556101 030716          ,261.00,REDACTED PERSONAL DATA,526062,,HOME CARE SERVICES            
SHEFFIELD CITY COUNCIL        ,COMMUNITIES                   ,42034,PURCHASING LEARNING DISABILITI,9180,OTHER CLIENT EXPENDITURE      ,01/07/2016,4040802,J1556102 030716          ,261.00,REDACTED PERSONAL DATA,553116,Unclassified Non Trade,OUT OF SCOPE FOR SIC MONITORIN
SHEFFIELD CITY COUNCIL        ,COMMUNITIES                   ,44001,PURCHASING                    ,9190,DIRECT PAYMENTS               ,01/07/2016,4040883,J1564066                 ,"1,428.19",REDACTED PERSONAL DATA,556296,,CHARITIES & VOLUNTARY ORGANISA
SHEFFIELD CITY COUNCIL        ,COMMUNITIES                   ,46039,ADULT SOCIAL CARE PURCHASING  ,9190,DIRECT PAYMENTS               ,01/07/2016,4040885,J1564066                 ,388.95,REDACTED PERSONAL DATA,558626,Social Community Care,CAREFIRST DIRECT PAYMENTS     
SHEFFIELD CITY COUNCIL        ,COMMUNITIES                   ,42034,PURCHASING LEARNING DISABILITI,9190,DIRECT PAYMENTS               ,01/07/2016,4040886,J1564066                 ,461.91,REDACTED PERSONAL DATA,561085,Social Community Care,CAREFIRST DIRECT PAYMENTS     
SHEFFIELD CITY COUNCIL        ,COMMUNITIES                   ,46039,ADULT SOCIAL CARE PURCHASING  ,9190,DIRECT PAYMENTS               ,01/07/2016,4040888,J1564066                 ,"2,858.24",REDACTED PERSONAL DATA,574253,Unclassified Non Trade,OUT OF SCOPE FOR SIC MONITORIN
SHEFFIELD CITY COUNCIL        ,COMMUNITIES                   ,46039,ADULT SOCIAL CARE PURCHASING  ,9190,DIRECT PAYMENTS               ,01/07/2016,4040889,J1564066                 ,"1,699.20",PARKSIDE PAYROLL LIMITED                ,616773,Social Community Care,CAREFIRST DIRECT PAYMENTS     
SHEFFIELD CITY COUNCIL        ,CYPF                          ,39148,DIRECT PAYMENTS               ,9190,DIRECT PAYMENTS               ,01/07/2016,4040891,J1564066                 ,792.20,REDACTED PERSONAL DATA,625489,Social Community Care,CAREFIRST DIRECT PAYMENTS     
SHEFFIELD CITY COUNCIL        ,COMMUNITIES                   ,46039,ADULT SOCIAL CARE PURCHASING  ,9190,DIRECT PAYMENTS               ,01/07/2016,4040892,J1564066                 ,"7,097.75",CUSTOM HOME CARE LTD                    ,630522,Social Community Care,CAREFIRST DIRECT PAYMENTS     
SHEFFIELD CITY COUNCIL        ,COMMUNITIES                   ,46039,ADULT SOCIAL CARE PURCHASING  ,9190,DIRECT PAYMENTS               ,01/07/2016,4040893,J1564066                 ,"1,225.00",REDACTED PERSONAL DATA,635472,Social Community Care,CAREFIRST DIRECT PAYMENTS     
SHEFFIELD CITY COUNCIL        ,COMMUNITIES                   ,46039,ADULT SOCIAL CARE PURCHASING  ,9250,INDEPENDENT DAY CARE          ,01/07/2016,4040895,2577,418.00,SPECTRUM ACTIVE NOT FOR PROFIT          ,533308,,TRAINING CENTRES              
SHEFFIELD CITY COUNCIL        ,COMMUNITIES                   ,46039,ADULT SOCIAL CARE PURCHASING  ,9250,INDEPENDENT DAY CARE          ,01/07/2016,4040896,DKN0000150               ,540.00,SPRINGWOOD HOUSE (SHEFFCARE LTD)        ,299566,,RESIDENTIAL CARE HOMES        
SHEFFIELD CITY COUNCIL        ,COMMUNITIES                   ,42034,PURCHASING LEARNING DISABILITI,9250,INDEPENDENT DAY CARE          ,01/07/2016,4040897,2553,630.00,SPECTRUM ACTIVE NOT FOR PROFIT          ,533308,,TRAINING CENTRES              
SHEFFIELD CITY COUNCIL        ,COMMUNITIES                   ,42034,PURCHASING LEARNING DISABILITI,9250,INDEPENDENT DAY CARE          ,01/07/2016,4040898,2564,304.00,SPECTRUM ACTIVE NOT FOR PROFIT          ,533308,,TRAINING CENTRES              
SHEFFIELD CITY COUNCIL        ,COMMUNITIES                   ,42034,PURCHASING LEARNING DISABILITI,9190,CITYWIDE SPOT                 ,01/07/2016,4040901,265-008532               ,"2,201.50",LEONARD CHESHIRE SERVICES               ,329306,,CHARITIES & VOLUNTARY ORGANISA
SHEFFIELD CITY COUNCIL        ,COMMUNITIES                   ,42034,PURCHASING LEARNING DISABILITI,9190,FUNDED HOME SUPPORT           ,01/07/2016,4040902,3276,"7,289.92",ABBEYCARE & NURSING                     ,518411,,HOME CARE SERVICES            
SHEFFIELD CITY COUNCIL        ,COMMUNITIES                   ,42034,PURCHASING LEARNING DISABILITI,9190,FUNDED HOME SUPPORT           ,01/07/2016,4040903,43571,"8,345.68",AFFINITY TRUST                          ,565909,,CHARITIES & VOLUNTARY ORGANISA
SHEFFIELD CITY COUNCIL        ,COMMUNITIES                   ,42034,PURCHASING LEARNING DISABILITI,9190,CITYWIDE SPOT                 ,01/07/2016,4040904,43572,"3,171.00",AFFINITY TRUST                          ,565909,,CHARITIES & VOLUNTARY ORGANISA
SHEFFIELD CITY COUNCIL        ,COMMUNITIES                   ,42034,PURCHASING LEARNING DISABILITI,9190,FUNDED HOME SUPPORT           ,01/07/2016,4040904,43572,"3,149.90",AFFINITY TRUST                          ,565909,,CHARITIES & VOLUNTARY ORGANISA
SHEFFIELD CITY COUNCIL        ,COMMUNITIES                   ,42034,PURCHASING LEARNING DISABILITI,9190,CITYWIDE SPOT                 ,01/07/2016,4040905,43573,985.54,AFFINITY TRUST                          ,565909,,CHARITIES & VOLUNTARY ORGANISA
SHEFFIELD CITY COUNCIL        ,COMMUNITIES                   ,46039,ADULT SOCIAL CARE PURCHASING  ,9190,CITYWIDE SPOT                 ,01/07/2016,4040906,43574,741.46,AFFINITY TRUST                          ,565909,,CHARITIES & VOLUNTARY ORGANISA
SHEFFIELD CITY COUNCIL        ,COMMUNITIES                   ,42034,PURCHASING LEARNING DISABILITI,9230,CCSP TRANSPORT                ,01/07/2016,4040907,37398,763.00,SHEFFIELD COMMUNITY TRANSPORT           ,296356,,CHARITIES & VOLUNTARY ORGANISA
SHEFFIELD CITY COUNCIL        ,COMMUNITIES                   ,42034,PURCHASING LEARNING DISABILITI,9190,CITYWIDE SPOT                 ,01/07/2016,4040908,43575,274.18,AFFINITY TRUST                          ,565909,,CHARITIES & VOLUNTARY ORGANISA
SHEFFIELD CITY COUNCIL        ,COMMUNITIES                   ,42034,PURCHASING LEARNING DISABILITI,9190,CITYWIDE SPOT                 ,01/07/2016,4040909,43576,"2,521.08",AFFINITY TRUST                          ,565909,,CHARITIES & VOLUNTARY ORGANISA
SHEFFIELD CITY COUNCIL        ,COMMUNITIES                   ,42034,PURCHASING LEARNING DISABILITI,9240,FUNDED NURSING CARE (IN       ,01/07/2016,4040910,43578,"7,211.40",AFFINITY TRUST                          ,565909,,CHARITIES & VOLUNTARY ORGANISA
SHEFFIELD CITY COUNCIL        ,COMMUNITIES                   ,42034,PURCHASING LEARNING DISABILITI,9240,FUNDED NURSING CARE (IN       ,01/07/2016,4040911,43579,"3,066.92",AFFINITY TRUST                          ,565909,,CHARITIES & VOLUNTARY ORGANISA
SHEFFIELD CITY COUNCIL        ,COMMUNITIES                   ,42034,PURCHASING LEARNING DISABILITI,9240,SUPPORTED LIVING CARE         ,01/07/2016,4040911,43579,"3,059.68",AFFINITY TRUST                          ,565909,,CHARITIES & VOLUNTARY ORGANISA
SHEFFIELD CITY COUNCIL        ,COMMUNITIES                   ,42034,PURCHASING LEARNING DISABILITI,9240,SUPPORTED LIVING CARE         ,01/07/2016,4040912,43581,"1,552.36",AFFINITY TRUST                          ,565909,,CHARITIES & VOLUNTARY ORGANISA
SHEFFIELD CITY COUNCIL        ,COMMUNITIES                   ,42034,PURCHASING LEARNING DISABILITI,9240,SUPPORTED LIVING CARE         ,01/07/2016,4040913,43582,"1,552.36",AFFINITY TRUST                          ,565909,,CHARITIES & VOLUNTARY ORGANISA
SHEFFIELD CITY COUNCIL        ,COMMUNITIES                   ,42034,PURCHASING LEARNING DISABILITI,9210,FUNDED NURSING CARE (INCOME)  ,01/07/2016,4040914,37399,342.00,SHEFFIELD COMMUNITY TRANSPORT           ,296356,,CHARITIES & VOLUNTARY ORGANISA
SHEFFIELD CITY COUNCIL        ,COMMUNITIES                   ,46039,ADULT SOCIAL CARE PURCHASING  ,9190,CITYWIDE SPOT                 ,01/07/2016,4040915,DC27                     ,"5,798.20",HOMELIFE LEEDS LTD                      ,633247,,RESIDENTIAL CARE HOMES        
SHEFFIELD CITY COUNCIL        ,COMMUNITIES                   ,46039,ADULT SOCIAL CARE PURCHASING  ,9230,CCSP TRANSPORT                ,01/07/2016,4040916,37382,403.20,SHEFFIELD COMMUNITY TRANSPORT           ,296356,,CHARITIES & VOLUNTARY ORGANISA
SHEFFIELD CITY COUNCIL        ,COMMUNITIES                   ,46039,ADULT SOCIAL CARE PURCHASING  ,9230,CCSP TRANSPORT                ,01/07/2016,4040922,37387,851.20,SHEFFIELD COMMUNITY TRANSPORT           ,296356,,CHARITIES & VOLUNTARY ORGANISA
SHEFFIELD CITY COUNCIL        ,COMMUNITIES                   ,42034,PURCHASING LEARNING DISABILITI,9240,SUPPORTED LIVING CARE         ,01/07/2016,4040924,3059315,"1,560.48",MENCAP HOMECARE                         ,361858,,CHARITIES & VOLUNTARY ORGANISA
SHEFFIELD CITY COUNCIL        ,COMMUNITIES                   ,42034,PURCHASING LEARNING DISABILITI,9240,FUNDED NURSING CARE (IN       ,01/07/2016,4040924,3059315,"1,000.80",MENCAP HOMECARE                         ,361858,,CHARITIES & VOLUNTARY ORGANISA
SHEFFIELD CITY COUNCIL        ,COMMUNITIES                   ,46039,ADULT SOCIAL CARE PURCHASING  ,9230,CCSP TRANSPORT                ,01/07/2016,4040927,37391,377.40,SHEFFIELD COMMUNITY TRANSPORT           ,296356,,CHARITIES & VOLUNTARY ORGANISA
SHEFFIELD CITY COUNCIL        ,COMMUNITIES                   ,42034,PURCHASING LEARNING DISABILITI,9190,CITYWIDE SPOT                 ,01/07/2016,4040930,1540,"1,717.22",REDACTED PERSONAL DATA,558028,Social Community Care,CAREFIRST DIRECT PAYMENTS     
SHEFFIELD CITY COUNCIL        ,COMMUNITIES                   ,42034,PURCHASING LEARNING DISABILITI,9190,CITYWIDE SPOT                 ,01/07/2016,4040931,1541,277.00,REDACTED PERSONAL DATA,558028,Social Community Care,CAREFIRST DIRECT PAYMENTS     
SHEFFIELD CITY COUNCIL        ,COMMUNITIES                   ,42034,PURCHASING LEARNING DISABILITI,9190,CITYWIDE SPOT                 ,01/07/2016,4040932,1542,988.00,REDACTED PERSONAL DATA,558028,Social Community Care,CAREFIRST DIRECT PAYMENTS     
SHEFFIELD CITY COUNCIL        ,COMMUNITIES                   ,42034,PURCHASING LEARNING DISABILITI,9190,CITYWIDE SPOT                 ,01/07/2016,4040933,1543,386.43,REDACTED PERSONAL DATA,558028,Social Community Care,CAREFIRST DIRECT PAYMENTS     
SHEFFIELD CITY COUNCIL        ,COMMUNITIES                   ,42034,PURCHASING LEARNING DISABILITI,9190,CITYWIDE SPOT                 ,01/07/2016,4040934,1544,979.30,REDACTED PERSONAL DATA,558028,Social Community Care,CAREFIRST DIRECT PAYMENTS     
SHEFFIELD CITY COUNCIL        ,COMMUNITIES                   ,42034,PURCHASING LEARNING DISABILITI,9190,CITYWIDE SPOT                 ,01/07/2016,4040935,1545,795.00,REDACTED PERSONAL DATA,558028,Social Community Care,CAREFIRST DIRECT PAYMENTS     
SHEFFIELD CITY COUNCIL        ,COMMUNITIES                   ,42034,PURCHASING LEARNING DISABILITI,9240,FUNDED NURSING CARE (IN       ,01/07/2016,4040936,19/06/2016,425.20,AFFINITY TRUST                          ,565909,,CHARITIES & VOLUNTARY ORGANISA
SHEFFIELD CITY COUNCIL        ,COMMUNITIES                   ,42034,PURCHASING LEARNING DISABILITI,9240,SUPPORTED LIVING CARE         ,01/07/2016,4040936,19/06/2016,"6,786.20",AFFINITY TRUST                          ,565909,,CHARITIES & VOLUNTARY ORGANISA
SHEFFIELD CITY COUNCIL        ,COMMUNITIES                   ,42034,PURCHASING LEARNING DISABILITI,9190,CITYWIDE SPOT                 ,01/07/2016,4040937,2164,803.60,REDACTED PERSONAL DATA,569157,,HOME CARE SERVICES            
SHEFFIELD CITY COUNCIL        ,COMMUNITIES                   ,42034,PURCHASING LEARNING DISABILITI,9190,CITYWIDE SPOT                 ,01/07/2016,4040938,2165,688.80,REDACTED PERSONAL DATA,569157,,HOME CARE SERVICES            
SHEFFIELD CITY COUNCIL        ,COMMUNITIES                   ,42034,PURCHASING LEARNING DISABILITI,9190,CITYWIDE SPOT                 ,01/07/2016,4040940,2200,387.44,REDACTED PERSONAL DATA,569157,,HOME CARE SERVICES            
SHEFFIELD CITY COUNCIL        ,COMMUNITIES                   ,42034,PURCHASING LEARNING DISABILITI,9190,CITYWIDE SPOT                 ,01/07/2016,4040941,2220,803.60,REDACTED PERSONAL DATA,569157,,HOME CARE SERVICES            
SHEFFIELD CITY COUNCIL        ,COMMUNITIES                   ,42034,PURCHASING LEARNING DISABILITI,9190,CITYWIDE SPOT                 ,01/07/2016,4040942,2221,688.80,REDACTED PERSONAL DATA,569157,,HOME CARE SERVICES            
SHEFFIELD CITY COUNCIL        ,COMMUNITIES                   ,42034,PURCHASING LEARNING DISABILITI,9190,CITYWIDE SPOT                 ,01/07/2016,4040943,2551,570.00,SPECTRUM ACTIVE NOT FOR PROFIT          ,533308,,TRAINING CENTRES              
SHEFFIELD CITY COUNCIL        ,CYPF                          ,39284,INDEPENDENT FOSTER PLACE U16  ,9270,INDEPENDENT FOSTERING         ,01/07/2016,4040822,59706A                   ,300.00,REDACTED PERSONAL DATA,401813,,ADOPTION & FOSTERING          
SHEFFIELD CITY COUNCIL        ,CYPF                          ,39284,INDEPENDENT FOSTER PLACE U16  ,9270,INDEPENDENT FOSTERING         ,01/07/2016,4040823,630190997,"2,043.00",REDACTED PERSONAL DATA,328618,,ADOPTION & FOSTERING          
SHEFFIELD CITY COUNCIL        ,CYPF                          ,39405,SEMI INDEPENDENT LIVING       ,9270,INDEPENDENT FOSTERING         ,01/07/2016,4040825,25330,"2,562.89",REDACTED PERSONAL DATA,521940,,ADOPTION & FOSTERING          
SHEFFIELD CITY COUNCIL        ,CYPF                          ,39405,SEMI INDEPENDENT LIVING       ,9270,CARELEAVERS ACCOMMODATION     ,01/07/2016,4040828,4969,"3,800.00",TWENTY FOUR SEVEN                       ,364408,,CHARITIES & VOLUNTARY ORGANISA
SHEFFIELD CITY COUNCIL        ,CYPF                          ,39405,SEMI INDEPENDENT LIVING       ,9270,CARELEAVERS ACCOMMODATION     ,01/07/2016,4040829,620980,"7,869.29",NORTHERN LIFE CARE LTD T/A UBU          ,207163,,RESIDENTIAL CARE HOMES        
SHEFFIELD CITY COUNCIL        ,CYPF                          ,39428,INDEPENDENT RES PLACEMENTS U16,9270,INDEPENDENT RESIDENTIAL PMENT ,01/07/2016,4040830,621379,390.00,NORTHERN LIFE CARE LTD T/A UBU          ,207163,,RESIDENTIAL CARE HOMES        
SHEFFIELD CITY COUNCIL        ,CYPF                          ,39405,SEMI INDEPENDENT LIVING       ,9270,CARELEAVERS ACCOMMODATION     ,01/07/2016,4040831,11998,"4,800.00",PROGRESSIVE CARE LTD                    ,343548,,CHILDREN'S HOMES              
SHEFFIELD CITY COUNCIL        ,CYPF                          ,39006,UASC/ASYLUM 16-17             ,6210,RENTS                         ,01/07/2016,4040832,12063,"3,200.00",PROGRESSIVE CARE LTD                    ,343548,,CHILDREN'S HOMES              
SHEFFIELD CITY COUNCIL        ,CYPF                          ,39428,INDEPENDENT RES PLACEMENTS U16,9270,INDEPENDENT RESIDENTIAL PMENT ,01/07/2016,4040833,12123,"3,990.00",PROGRESSIVE CARE LTD                    ,343548,,CHILDREN'S HOMES              
SHEFFIELD CITY COUNCIL        ,CYPF                          ,39213,EAST SA - CIN S17             ,9280,CONTACT                       ,01/07/2016,4040870,12261,300.30,PROGRESSIVE CARE LTD                    ,343548,,CHILDREN'S HOMES              
SHEFFIELD CITY COUNCIL        ,CYPF                          ,39213,EAST SA - CIN S17             ,9280,CONTACT                       ,01/07/2016,4040871,12262,290.70,PROGRESSIVE CARE LTD                    ,343548,,CHILDREN'S HOMES              
SHEFFIELD CITY COUNCIL        ,CYPF                          ,39147,PREVENTION & SUPPORT - CDT    ,9270,CARELEAVERS INDEPENDENT LIVING,01/07/2016,4040882,25171,"2,250.00",BURTON STREET PROJECT                   ,342774,,CHARITIES & VOLUNTARY ORGANISA
SHEFFIELD CITY COUNCIL        ,COMMUNITIES                   ,44001,PURCHASING                    ,9200,CONTINUING RESIDENTIAL CARE   ,01/07/2016,4040805,J1545118 170716          ,"3,494.12",SUSASH GB LTD T/A EAGLE HOUSE           ,361977,,RESIDENTIAL CARE HOMES        
SHEFFIELD CITY COUNCIL        ,COMMUNITIES                   ,46039,ADULT SOCIAL CARE PURCHASING  ,9200,CONTINUING RESIDENTIAL CARE   ,01/07/2016,4040805,J1545118 170716          ,"20,384.00",SUSASH GB LTD T/A EAGLE HOUSE           ,361977,,RESIDENTIAL CARE HOMES        
SHEFFIELD CITY COUNCIL        ,COMMUNITIES                   ,42034,PURCHASING LEARNING DISABILITI,9200,CONTINUING RESIDENTIAL CARE   ,01/07/2016,4040805,J1545118 170716          ,"1,684.00",SUSASH GB LTD T/A EAGLE HOUSE           ,361977,,RESIDENTIAL CARE HOMES        
SHEFFIELD CITY COUNCIL        ,COMMUNITIES                   ,44001,PURCHASING                    ,9210,CONTINUING NURSING CARE       ,01/07/2016,4040805,J1545118 170716          ,"10,771.20",SUSASH GB LTD T/A EAGLE HOUSE           ,361977,,RESIDENTIAL CARE HOMES        
SHEFFIELD CITY COUNCIL        ,COMMUNITIES                   ,46039,ADULT SOCIAL CARE PURCHASING  ,9210,CONTINUING NURSING CARE       ,01/07/2016,4040805,J1545118 170716          ,"18,057.16",SUSASH GB LTD T/A EAGLE HOUSE           ,361977,,RESIDENTIAL CARE HOMES        
SHEFFIELD CITY COUNCIL        ,COMMUNITIES                   ,46039,ADULT SOCIAL CARE PURCHASING  ,9200,CONTINUING RESIDENTIAL CARE   ,01/07/2016,4040806,J1545154 170716          ,"1,668.00",PARK LANE HEALTHCARE MOORGATE           ,362023,,NURSING HOMES                 
SHEFFIELD CITY COUNCIL        ,COMMUNITIES                   ,46039,ADULT SOCIAL CARE PURCHASING  ,9200,CONTINUING RESIDENTIAL CARE   ,01/07/2016,4040807,J1552158 170716          ,"3,573.43",ROSEBERRY CARE CENTRES GB LTD           ,368334,,NURSING HOMES                 
SHEFFIELD CITY COUNCIL        ,COMMUNITIES                   ,46039,ADULT SOCIAL CARE PURCHASING  ,9210,CONTINUING NURSING CARE       ,01/07/2016,4040807,J1552158 170716          ,"6,694.28",ROSEBERRY CARE CENTRES GB LTD           ,368334,,NURSING HOMES                 
SHEFFIELD CITY COUNCIL        ,COMMUNITIES                   ,46039,ADULT SOCIAL CARE PURCHASING  ,9210,CONTINUING NURSING CARE       ,01/07/2016,4040808,J1559004 170716          ,"1,620.00",JASMIN COURT NURSING HOME               ,361764,,NURSING HOMES                 
SHEFFIELD CITY COUNCIL        ,COMMUNITIES                   ,42034,PURCHASING LEARNING DISABILITI,9210,CONTINUING NURSING CARE       ,01/07/2016,4040809,J1559009 170716          ,"2,342.65",NEWFIELD NURSING HOME                   ,361980,,NURSING HOMES                 
SHEFFIELD CITY COUNCIL        ,COMMUNITIES                   ,46039,ADULT SOCIAL CARE PURCHASING  ,9210,CONTINUING NURSING CARE       ,01/07/2016,4040809,J1559009 170716          ,"9,704.14",NEWFIELD NURSING HOME                   ,361980,,NURSING HOMES                 
SHEFFIELD CITY COUNCIL        ,COMMUNITIES                   ,42034,PURCHASING LEARNING DISABILITI,9200,CONTINUING RESIDENTIAL CARE   ,01/07/2016,4040810,J1561212 170716          ,"74,928.43",SHIREBROOK FIELDS CARE HOME             ,362105,,NURSING HOMES                 
SHEFFIELD CITY COUNCIL        ,COMMUNITIES                   ,42034,PURCHASING LEARNING DISABILITI,9200,CONTINUING RESIDENTIAL CARE   ,01/07/2016,4040811,J1564058 170716          ,"2,575.16",LINCOLNSHIRE HOUSE ASSOCIATION          ,634862,,RESIDENTIAL CARE HOMES        
SHEFFIELD CITY COUNCIL        ,COMMUNITIES                   ,46039,ADULT SOCIAL CARE PURCHASING  ,9200,CONTINUING RESIDENTIAL CARE   ,01/07/2016,4040812,J1564061 170716          ,"10,612.29",NIGHTINGALES RES HOME                   ,361897,,RESIDENTIAL CARE HOMES        
SHEFFIELD CITY COUNCIL        ,COMMUNITIES                   ,46039,ADULT SOCIAL CARE PURCHASING  ,9200,CONTINUING RESIDENTIAL CARE   ,01/07/2016,4040813,J1564062 170716          ,"1,142.71",HADDON COURT NURSING HOME               ,361916,,NURSING HOMES                 
SHEFFIELD CITY COUNCIL        ,COMMUNITIES                   ,46039,ADULT SOCIAL CARE PURCHASING  ,9200,SHORT TERM RESIDENTIAL CARE   ,01/07/2016,4040814,J1564030 190616          ,346.29,THE WHITE HOUSE CARE HOME               ,362083,,RESIDENTIAL CARE HOMES        
SHEFFIELD CITY COUNCIL        ,COMMUNITIES                   ,46039,ADULT SOCIAL CARE PURCHASING  ,9200,SHORT TERM RESIDENTIAL CARE   ,01/07/2016,4040815,J1564031 190616          ,401.00,SWALLOWNEST CARE HOME                   ,361827,,NURSING HOMES                 
SHEFFIELD CITY COUNCIL        ,COMMUNITIES                   ,46039,ADULT SOCIAL CARE PURCHASING  ,9200,SHORT TERM RESIDENTIAL CARE   ,01/07/2016,4040816,J1564032 190616          ,962.29,COUNTRY COURT CARE HOMES LTD            ,361754,,RESIDENTIAL CARE HOMES        
SHEFFIELD CITY COUNCIL        ,COMMUNITIES                   ,46039,ADULT SOCIAL CARE PURCHASING  ,9200,SHORT TERM RESIDENTIAL CARE   ,01/07/2016,4040817,J1564033 190616          ,625.00,BROOMGROVE TRUST NURSING                ,361755,,NURSING HOMES                 
SHEFFIELD CITY COUNCIL        ,COMMUNITIES                   ,46039,ADULT SOCIAL CARE PURCHASING  ,9200,SHORT TERM RESIDENTIAL CARE   ,01/07/2016,4040818,J1564035 190616          ,546.43,ASCOT LODGE CARE HOME                   ,362118,,NURSING HOMES                 
SHEFFIELD CITY COUNCIL        ,COMMUNITIES                   ,46039,ADULT SOCIAL CARE PURCHASING  ,9200,SHORT TERM RESIDENTIAL CARE   ,01/07/2016,4040819,J1564036 190616          ,661.57,LOGINI CARE SOLUTIONS LTD               ,368328,,NURSING HOMES                 
SHEFFIELD CITY COUNCIL        ,CYPF                          ,39212,CARELEAVER SUPPORT            ,9440,CARELEAVERS                   ,01/07/2016,4040948,61/F16                   ,400.00,THE FURNIVAL                            ,397971,,CHARITIES & VOLUNTARY ORGANISA
SHEFFIELD CITY COUNCIL        ,CYPF                          ,39212,CARELEAVER SUPPORT            ,9440,CARELEAVERS                   ,01/07/2016,4040949,777,300.00,ROUNDABOUT LTD                          ,316572,,HOSTELS                       
SHEFFIELD CITY COUNCIL        ,CYPF                          ,39212,CARELEAVER SUPPORT            ,9440,CARELEAVERS                   ,01/07/2016,4040950,780,300.00,ROUNDABOUT LTD                          ,316572,,HOSTELS                       
SHEFFIELD CITY COUNCIL        ,CYPF                          ,39212,CARELEAVER SUPPORT            ,9440,CARELEAVERS                   ,01/07/2016,4040953,785,300.00,ROUNDABOUT LTD                          ,316572,,HOSTELS                       
SHEFFIELD CITY COUNCIL        ,CYPF                          ,39212,CARELEAVER SUPPORT            ,9270,CARELEAVERS INDEPENDENT LIVING,01/07/2016,4040991,19120,"1,029.42",FOSTERING OPTIONS LIMITED               ,633045,,ADOPTION & FOSTERING          
SHEFFIELD CITY COUNCIL        ,CYPF                          ,39532,EARLY YEARS SEN TEAM          ,8440,FEE EXPENSES                  ,04/07/2016,4041704,ERS INVOICE140296        ,416.00,EARLY STEPS NSRY & CHILDRENS CENTRE     ,311860,,NURSERY SCHOOLS               
SHEFFIELD CITY COUNCIL        ,PLACE                         ,97334,DISABLED GRANTS               ,1165,NC&A OTHER                    ,04/07/2016,4041711,ERS INVOICE140303        ,"3,885.00",REDACTED PERSONAL DATA,632432,Unclassified Non Trade,OUT OF SCOPE FOR SIC MONITORIN
SHEFFIELD CITY COUNCIL        ,PLACE                         ,97334,DISABLED GRANTS               ,1165,NC&A OTHER                    ,04/07/2016,4041712,ERS INVOICE140304        ,"3,776.00",G B ALLEN                               ,204993,,PLUMBERS                      
SHEFFIELD CITY COUNCIL        ,PLACE                         ,97334,DISABLED GRANTS               ,1165,NC&A OTHER                    ,04/07/2016,4041713,ERS INVOICE140305        ,"3,806.00",WOODSEATS PLUMBING CO LTD               ,209595,,PLUMBERS                      
SHEFFIELD CITY COUNCIL        ,PLACE                         ,97334,DISABLED GRANTS               ,1165,NC&A OTHER                    ,04/07/2016,4041714,ERS INVOICE140306        ,"10,000.00",CHALLENGER PROPERTY CO LTD              ,633319,,PROPERTY MAINTENANCE & REPAIRS
SHEFFIELD CITY COUNCIL        ,PLACE                         ,97334,DISABLED GRANTS               ,1165,NC&A OTHER                    ,04/07/2016,4041715,ERS INVOICE140307        ,"4,697.43",REDACTED PERSONAL DATA,629373,Unclassified Non Trade,OUT OF SCOPE FOR SIC MONITORIN
SHEFFIELD CITY COUNCIL        ,PLACE                         ,97334,DISABLED GRANTS               ,1165,NC&A OTHER                    ,04/07/2016,4041716,ERS INVOICE140308        ,"2,592.00",CLARK & PARTNERS LTD                    ,203928,,DISABILITY EQUIPMENT - MNFRS &
SHEFFIELD CITY COUNCIL        ,PLACE                         ,25078,ECCLESALL WOODS SAWMILL SITE  ,8260,WOODLAND DEVELOPMENT EXPENSES ,04/07/2016,4041717,ERS INVOICE140309        ,300.00,SAMANTHA PEARCE                         ,516872,,CANE GOODS & BASKETWARE       
SHEFFIELD CITY COUNCIL        ,COMMUNITIES                   ,49005,NATIONAL ASSISTANCE CONTRACT  ,6210,RENTS                         ,04/07/2016,4041729,ERS INVOICE140321        ,375.00,TAPTON ESTATES PROPERTIES LTD           ,449360,,PROPERTY & ESTATE MANAGEMENT  
SHEFFIELD CITY COUNCIL        ,COMMUNITIES                   ,49005,NATIONAL ASSISTANCE CONTRACT  ,6210,RENTS                         ,04/07/2016,4041760,ERS INVOICE140351        ,410.00,MR R L WILLEY                           ,622704,,ACCOMMODATION AGENCIES - RESID
SHEFFIELD CITY COUNCIL        ,RESOURCES                     ,19347,CLAIMS                        ,8740,PUBLIC LIABILITY              ,04/07/2016,4041848,ERS INVOICE140352        ,"1,000.00",REDACTED PERSONAL DATA,633741,Unclassified Non Trade,OUT OF SCOPE FOR SIC MONITORIN
SHEFFIELD CITY COUNCIL        ,RESOURCES                     ,19347,CLAIMS                        ,8740,EMPLOYERS LIABILITY           ,04/07/2016,4041849,ERS INVOICE140353        ,"5,299.03",ASONS SOLICITORS LIMITED                ,591695,,SOLICITORS                    
SHEFFIELD CITY COUNCIL        ,COMMUNITIES                   ,49005,NATIONAL ASSISTANCE CONTRACT  ,6210,RENTS                         ,04/07/2016,4041850,ERS INVOICE140354        ,390.00,MU PROPERTIES                           ,583024,,LETTING AGENTS                
SHEFFIELD CITY COUNCIL        ,RESOURCES                     ,19347,CLAIMS                        ,8740,EMPLOYERS LIABILITY           ,04/07/2016,4041851,ERS INVOICE140355        ,360.00,TRADE UNION LEGAL LLP                   ,615489,Unclassified Non Trade,OUT OF SCOPE FOR SIC MONITORIN
SHEFFIELD CITY COUNCIL        ,COMMUNITIES                   ,49005,NATIONAL ASSISTANCE CONTRACT  ,6210,RENTS                         ,04/07/2016,4041858,ERS INVOICE140362        ,336.61,ARCHES HOUSING LIMITED                  ,366877,,"HOUSING ASSOCIATIONS, SOCIETIE"
SHEFFIELD CITY COUNCIL        ,PLACE                         ,97334,DISABLED GRANTS               ,1165,NC&A OTHER                    ,04/07/2016,4017322,15110045,350.00,KIER SERVICES MAINTENANCE EAST (KSME)   ,591748,,CONSTRUCTION CONTRACTORS - GEN
SHEFFIELD CITY COUNCIL        ,COMMUNITIES                   ,44012,PARTNERSHIP & GRANT AID MH    ,9160,PARTNERSHIP CONTRACTS         ,04/07/2016,4024629,MHPH06                   ,"5,390.00",SHEFFIELD CHINESE COMMUNITY CENTRE      ,582956,,CHARITIES & VOLUNTARY ORGANISA
SHEFFIELD CITY COUNCIL        ,COMMUNITIES                   ,49387,PERFORMANCE PLANNING          ,8270,SUBSCRIPTIONS                 ,04/07/2016,4025286,4478,"19,658.97",HOUSEMARK LTD                           ,551424,,EDUCATIONAL TRAINING PROVIDERS
SHEFFIELD CITY COUNCIL        ,CYPF                          ,38188,YOUTH SERVICE                 ,9120,OTHER AGENCIES                ,04/07/2016,4031777,SAYIT/SCCLGBT/SEPT-MARCH ,"14,583.33",SHEENA AMOS YOUTH TRUST                 ,315721,,YOUTH ORGANISATIONS & CENTRES 
SHEFFIELD CITY COUNCIL        ,CYPF                          ,31073,CYP FACILITIES MGMT           ,8510,ICT SUPPORT BROUGHT IN        ,04/07/2016,4032395,RINV/00001581            ,"203,487.47",SHEFFIELD LEP LTD                       ,482230,,LOCAL GOVERNMENT              
SHEFFIELD CITY COUNCIL        ,PLACE                         ,28152,BUSINESS IMPROVEMENT DIST-LDV ,8440,FEE EXPENSES                  ,04/07/2016,4034114,48671,930.17,SHEFFIELD CHAMBER OF COMMERCE & INDUSTRY,296349,,CHAMBERS OF COMMERCE          
SHEFFIELD CITY COUNCIL        ,RESOURCES                     ,15215,CORPORATE ROOM BOOKINGS       ,8440,FEE EXPENSES                  ,04/07/2016,4035217,23809,602.00,ST MARY'S (CONFERENCE & CATERING) LTD   ,376186,,CATERERS                      
SHEFFIELD CITY COUNCIL        ,PLACE                         ,94108,SITE GALLERY IMPROVMENTS      ,1161,NC&A MAIN CONTRACT            ,04/07/2016,4035674,4264,"40,000.00",SITE GALLERY (MAP) LTD                  ,208479,,GALLERIES                     
SHEFFIELD CITY COUNCIL        ,CYPF                          ,32042,MUSIC EDUCATION HUBS 2012-15  ,6210,RENTS                         ,04/07/2016,4036500,16-Jun-16,310.00,THE OLD RECTORY                         ,459937,,GUEST HOUSES                  
SHEFFIELD CITY COUNCIL        ,PLACE                         ,23036,CORONIAL SERVICES             ,8550,OTHER SERVICES                ,04/07/2016,4036917,4000458817/5000037149    ,"3,086.34",SHEFFIELD TEACHING HOSPITALS NHS TRUST  ,299675,,HOSPITALS                     
SHEFFIELD CITY COUNCIL        ,RESOURCES                     ,15204,PFI 1                         ,6150,ELECTRICITY                   ,04/07/2016,4038341,SCC1036                  ,"50,362.40",PYRAMID SCHOOLS SHEFFIELD LTD           ,324404,,LEASING SERVICES              
SHEFFIELD CITY COUNCIL        ,RESOURCES                     ,15204,PFI 1                         ,6220,RATES                         ,04/07/2016,4038341,SCC1036                  ,"22,290.45",PYRAMID SCHOOLS SHEFFIELD LTD           ,324404,,LEASING SERVICES              
SHEFFIELD CITY COUNCIL        ,RESOURCES                     ,15204,PFI 1                         ,6270,SERVICE / PFI UNITARY CHARGE  ,04/07/2016,4038341,SCC1036                  ,"956,684.50",PYRAMID SCHOOLS SHEFFIELD LTD           ,324404,,LEASING SERVICES              
SHEFFIELD CITY COUNCIL        ,RESOURCES                     ,15204,PFI 1                         ,8440,FEE EXPENSES                  ,04/07/2016,4038341,SCC1036                  ,"40,333.40",PYRAMID SCHOOLS SHEFFIELD LTD           ,324404,,LEASING SERVICES              
SHEFFIELD CITY COUNCIL        ,CYPF                          ,36022,SCHOOL DRINKING MILK          ,8140,GROCERIES                     ,04/07/2016,4038416,12,"17,651.68",MEDINA CAPITAL DAIRY CO LTD             ,524568,,DAIRIES                       
SHEFFIELD CITY COUNCIL        ,POLICY PERFORMANCE AND COMMS  ,14020,PERFORMANCE & RESEARCH        ,8350,MISCELLANEOUS EXPENSES        ,04/07/2016,4039022,7259,397.00,CHESHIRE WOODLANDS LIMITED              ,635206,,ENVIRONMENTAL CONSULTANTS     
SHEFFIELD CITY COUNCIL        ,CYPF                          ,39516,DISABLED ACCESS ADAPTATIONS   ,8010,EQUIPMENT PURCHASE AND REPAIR ,04/07/2016,4039052,2591517424,"29,911.50",PHONAK GROUP LTD                        ,338091,,HEARING AIDS                  
SHEFFIELD CITY COUNCIL        ,POLICY PERFORMANCE AND COMMS  ,13001,PUBLIC HEALTH - DPH           ,9030,HEALTH                        ,04/07/2016,4039062,2017-005                 ,"7,791.66",SHEFFIELD OCCUPATIONAL HEALTH ADVISORY S,581987,,CHARITIES & VOLUNTARY ORGANISA
SHEFFIELD CITY COUNCIL        ,POLICY PERFORMANCE AND COMMS  ,13001,PUBLIC HEALTH - DPH           ,9120,OTHER AGENCIES                ,04/07/2016,4039079,2017-006                 ,"3,187.50",SHEFFIELD OCCUPATIONAL HEALTH ADVISORY S,581987,,CHARITIES & VOLUNTARY ORGANISA
SHEFFIELD CITY COUNCIL        ,RESOURCES                     ,15215,CORPORATE ROOM BOOKINGS       ,8440,FEE EXPENSES                  ,04/07/2016,4039281,95154,784.00,THE WORKSTATION                         ,208994,,TRADE UNIONS                  
SHEFFIELD CITY COUNCIL        ,PLACE                         ,25076,SHEFFIELD HOMES TREES         ,6370,GROUNDS MTCE AND ARBORICULTURE,04/07/2016,4039301,65,"1,115.00",J B HIBBERD LIMITED                     ,510434,,TREE WORK & FORESTRY SERVICES 
SHEFFIELD CITY COUNCIL        ,COMMUNITIES                   ,49364,SUPPORTED HOUSING             ,8050,ELECTRICAL GOODS              ,04/07/2016,4039317,CMD2638736               ,"3,299.00",DOMESTIC APPLIANCE DISTRIBUTORS         ,527171,,ELECTRICAL GOODS - SALES      
SHEFFIELD CITY COUNCIL        ,PLACE                         ,97147,ADAPTATIONS                   ,1157,DWELLINGS MAIN CONTRACT       ,04/07/2016,4039895,SIP-159519               ,"4,141.62",THYSSENKRUPP ENCASA                     ,627802,,LIFT MNFRS                    
SHEFFIELD CITY COUNCIL        ,CYPF                          ,33108,AMBITIONS - SHEFFIELD         ,9120,OTHER AGENCIES                ,04/07/2016,4039925,3334,"2,670.00",ZEST                                    ,507419,,SOCIAL SERVICES               
SHEFFIELD CITY COUNCIL        ,CYPF                          ,33108,AMBITIONS - SHEFFIELD         ,9120,OTHER AGENCIES                ,04/07/2016,4039927,3346,"2,710.00",ZEST                                    ,507419,,SOCIAL SERVICES               
SHEFFIELD CITY COUNCIL        ,PLACE                         ,97147,ADAPTATIONS                   ,1157,DWELLINGS MAIN CONTRACT       ,04/07/2016,4040019,SIP-160203               ,"1,537.56",THYSSENKRUPP ENCASA                     ,627802,,LIFT MNFRS                    
SHEFFIELD CITY COUNCIL        ,PLACE                         ,97147,ADAPTATIONS                   ,1157,DWELLINGS MAIN CONTRACT       ,04/07/2016,4040020,SIP-159520               ,"1,866.40",THYSSENKRUPP ENCASA                     ,627802,,LIFT MNFRS                    
SHEFFIELD CITY COUNCIL        ,CYPF                          ,38193,LOWFIELD                      ,9120,OTHER AGENCIES                ,04/07/2016,4040028,16094,"31,513.08",HB SPORTS SURFACES LTD                  ,632816,,SPORTS EQUIPMENT MNFRS & DISTR
SHEFFIELD CITY COUNCIL        ,CYPF                          ,32080,GATEWAY 5                     ,7140,PUBLIC TRANSPORT COSTS        ,04/07/2016,4040064,SL0070863                ,"1,166.00",SYPTE                                   ,208757,,BUS & COACH OPERATORS & STATIO
SHEFFIELD CITY COUNCIL        ,CYPF                          ,32080,GATEWAY 5                     ,8490,TRANSLATN/SIGN/INTERPRET FEES ,04/07/2016,4040074,3562,"4,995.00",LANGUAGELINE SOLUTIONS                  ,206348,,TRANSLATORS & INTERPRETERS    
SHEFFIELD CITY COUNCIL        ,COMMUNITIES                   ,49350,AREA CENTAL                   ,8010,ESTATES EQUIP PURCHASE & REPAI,04/07/2016,4040443,SI/03008006              ,905.40,NOMIX ENVIRO                            ,207128,,CHEMICALS & ALLIED PRODUCTS   
SHEFFIELD CITY COUNCIL        ,PLACE                         ,21222,STRATEGIC DEVELOPMENT MANAGER ,8440,FEE EXPENSES                  ,04/07/2016,4040561,SIN003081                ,"5,000.00",MUSEUMS SHEFFIELD                       ,519265,,MUSEUMS                       
SHEFFIELD CITY COUNCIL        ,COMMUNITIES                   ,49385,HIST                          ,8620,COMPUTER MAINTENANCE          ,04/07/2016,4040571,91372755,"4,666.67",NORTHGATE PUBLIC SERVICES LTD           ,432617,,COMPUTER SYSTEMS & SOFTWARE (D
SHEFFIELD CITY COUNCIL        ,CYPF                          ,36023,CATERING CONTRACT             ,8440,FEE EXPENSES                  ,04/07/2016,4040591,1939718,337.50,G4S CASH SOLUTIONS (UK) LTD             ,208285,,SECURITY SERVICES             
SHEFFIELD CITY COUNCIL        ,COMMUNITIES                   ,49190,CITY WIDE ALARM - GENERAL     ,6030,REPAIRS TO TENANTED PROPERTIES,04/07/2016,4040610,3IN/10281823             ,417.69,TUNSTALL HEALTHCARE (UK) LTD            ,209178,,TELECOMMUNICATIONS EQUIPMENT &
SHEFFIELD CITY COUNCIL        ,COMMUNITIES                   ,49190,CITY WIDE ALARM - GENERAL     ,6030,REPAIRS TO TENANTED PROPERTIES,04/07/2016,4040613,INV/50297904             ,262.20,TUNSTALL HEALTHCARE (UK) LTD            ,209178,,TELECOMMUNICATIONS EQUIPMENT &
SHEFFIELD CITY COUNCIL        ,CYPF                          ,31073,CYP FACILITIES MGMT           ,8510,ICT SUPPORT BROUGHT IN        ,04/07/2016,4040633,RINV/00001587            ,"3,200.32",SHEFFIELD LEP LTD                       ,482230,,LOCAL GOVERNMENT              
SHEFFIELD CITY COUNCIL        ,COMMUNITIES                   ,49028,SUPPORTED & TEMP ACCOM TEAM   ,6210,BED & BREAKFAST PAYMENTS      ,04/07/2016,4040644,471,280.50,BURNGREAVE B & B                        ,466986,,GUEST HOUSES                  
SHEFFIELD CITY COUNCIL        ,COMMUNITIES                   ,49390,ACCOMMODATION                 ,6210,RENTS                         ,04/07/2016,4040650,98620,"51,985.50",SOLPRO MANUFACTURING LTD                ,512326,,ELECTRONIC COMPONENT MNFRS & D
SHEFFIELD CITY COUNCIL        ,CYPF                          ,33114,POST 16 LDD DELIVERY 15 16    ,9120,OTHER AGENCIES                ,04/07/2016,4040651,43234,"1,051.44",CITIZENSHIP FIRST                       ,329379,,CHARITIES & VOLUNTARY ORGANISA
SHEFFIELD CITY COUNCIL        ,RESOURCES                     ,12024,REPLACEMENT FINANCE SYSTEM    ,8460,CONSULTANTS FEES              ,04/07/2016,4040655,3712,"12,400.00",MOORE STEPHENS INSIGHT LIMITED          ,424598,,BUSINESS & MANAGEMENT CONSULTA
SHEFFIELD CITY COUNCIL        ,COMMUNITIES                   ,49153,OTHER REPAIRS & FEES          ,6030,BURGLAR ALARM REPAIRS         ,04/07/2016,4040694,ISG/SERV/014/15-16       ,"18,969.74",TELSTAR SECURITY                        ,299814,,SECURITY EQUIPMENT            
SHEFFIELD CITY COUNCIL        ,CYPF                          ,31073,CYP FACILITIES MGMT           ,8510,ICT SUPPORT BROUGHT IN        ,04/07/2016,4040695,RINV/00001585            ,"152,574.80",SHEFFIELD LEP LTD                       ,482230,,LOCAL GOVERNMENT              
SHEFFIELD CITY COUNCIL        ,POLICY PERFORMANCE AND COMMS  ,13001,PUBLIC HEALTH - DPH           ,9120,OTHER AGENCIES                ,04/07/2016,4040696,7016201364,"5,000.00",NHS SHEFFIELD CCG                       ,504799,,CLINICS - N.H.S.              
SHEFFIELD CITY COUNCIL        ,PLACE                         ,22180,TTAPS GENERAL                 ,8350,MISCELLANEOUS EXPENSES        ,04/07/2016,4040710,SL0070890                ,"160,000.00",SYPTE                                   ,208757,,BUS & COACH OPERATORS & STATIO
SHEFFIELD CITY COUNCIL        ,CYPF                          ,39282,CARE PROCEEDINGS (LEGAL FEES) ,8470,LEGAL FEES                    ,04/07/2016,4040738,F18/15/GTC               ,"1,107.64",DR G T CRAIG T/A GTC FORENSICS          ,397199,,DOCTORS                       
SHEFFIELD CITY COUNCIL        ,CYPF                          ,33018,100 APPRENTICES               ,9120,OTHER AGENCIES                ,04/07/2016,4041048,4,792.00,SLATTERYS BUTCHERS LTD                  ,593718,,TRAINING SERVICES             
SHEFFIELD CITY COUNCIL        ,CYPF                          ,33018,100 APPRENTICES               ,9120,OTHER AGENCIES                ,04/07/2016,4041063,1,963.60,BUS STOP VW LIMITED                     ,633616,,VEHICLE CONVERSIONS           
SHEFFIELD CITY COUNCIL        ,CYPF                          ,33018,100 APPRENTICES               ,9120,OTHER AGENCIES                ,04/07/2016,4041065,1016,268.13,TAGADVANCE LTD                          ,622638,,TRAINING SERVICES             
SHEFFIELD CITY COUNCIL        ,PLACE                         ,22117,ARCHAEOLOGY                   ,8270,SUBSCRIPTIONS                 ,04/07/2016,4041069,91310081771,579.20,WAKEFIELD MDC                           ,301741,,LOCAL GOVERNMENT              
SHEFFIELD CITY COUNCIL        ,CYPF                          ,33018,100 APPRENTICES               ,9120,OTHER AGENCIES                ,04/07/2016,4041070,11821,305.08,SIGNSHOP YORKSHIRE                      ,326971,,SIGNS & NAMEPLATES            
SHEFFIELD CITY COUNCIL        ,PLACE                         ,23012,FOOD HYGIENE                  ,8350,MISCELLANEOUS EXPENSES        ,04/07/2016,4041071,2559,"1,823.60",ARI ENVIRONMENTAL SERVICES LTD          ,626601,,HYGIENE & CLEANSING SERVICES  
SHEFFIELD CITY COUNCIL        ,PLACE                         ,23012,FOOD HYGIENE                  ,8350,MISCELLANEOUS EXPENSES        ,04/07/2016,4041073,2561,362.90,ARI ENVIRONMENTAL SERVICES LTD          ,626601,,HYGIENE & CLEANSING SERVICES  
SHEFFIELD CITY COUNCIL        ,CYPF                          ,33018,100 APPRENTICES               ,9120,OTHER AGENCIES                ,04/07/2016,4041075,9424,642.53,ALCO AUDIT LTD                          ,627897,,ACCOUNTANTS                   
SHEFFIELD CITY COUNCIL        ,CYPF                          ,33018,100 APPRENTICES               ,9120,OTHER AGENCIES                ,04/07/2016,4041077,104,"1,188.00",NORTHSIDE CARPETS LTD                   ,627844,,CARPETS & RUGS - RETAIL       
SHEFFIELD CITY COUNCIL        ,CYPF                          ,33018,100 APPRENTICES               ,9120,OTHER AGENCIES                ,04/07/2016,4041079,AFC1156                  ,290.40,AIRFLOW COOLING LTD                     ,627852,,AIR CONDITIONING & REFRIGERATI
SHEFFIELD CITY COUNCIL        ,CYPF                          ,33114,POST 16 LDD DELIVERY 15 16    ,9120,OTHER AGENCIES                ,04/07/2016,4041081,1019,692.55,IMAGINATION GAMING                      ,518155,,GAMES SHOPS                   
SHEFFIELD CITY COUNCIL        ,CYPF                          ,33114,POST 16 LDD DELIVERY 15 16    ,9120,OTHER AGENCIES                ,04/07/2016,4041089,MWNC010                  ,375.00,THE MUSICAL WORKS                       ,368576,,COMMUNITY PROJECTS            
SHEFFIELD CITY COUNCIL        ,PLACE                         ,25152,LANDSCAPE SERVICES            ,8550,OTHER SERVICES                ,04/07/2016,4041133,0000051622AA             ,"10,308.48",VIRIDOR WASTE MANAGEMENT                ,205721,,WASTE DISPOSAL SERVICES       
SHEFFIELD CITY COUNCIL        ,CYPF                          ,38212,WORKING WOMENS OPPS           ,9030,HEALTH                        ,04/07/2016,4041134,28-Jun-16,"13,960.00",SWWOP                                   ,582275,,CHARITIES & VOLUNTARY ORGANISA
SHEFFIELD CITY COUNCIL        ,CYPF                          ,39282,CARE PROCEEDINGS (LEGAL FEES) ,8470,LEGAL FEES                    ,04/07/2016,4041147,1003069,"1,950.00",KATE MORLEY                             ,599526,,BARRISTERS                    
SHEFFIELD CITY COUNCIL        ,CYPF                          ,39282,CARE PROCEEDINGS (LEGAL FEES) ,8470,LEGAL FEES                    ,04/07/2016,4041156,986600,900.00,HELEN DAVEY                             ,598881,,BARRISTERS                    
SHEFFIELD CITY COUNCIL        ,PLACE                         ,24405,COMMERCIAL ESTATE             ,8420,ADVERTISING AND PUBLICITY     ,04/07/2016,4041172,3725705,"2,491.64",JOHNSTON PUBLISHING LTD                 ,207918,,NEWSPAPER & MAGAZINE PUBLISHER
SHEFFIELD CITY COUNCIL        ,COMMUNITIES                   ,49682,NON CONTRACT TREATMENT COSTS  ,8060,MATERIALS AND SUPPLIES GENERAL,04/07/2016,4041439,100159,"1,445.90",EXCHANGE SUPPLIES LTD                   ,420328,,OCCUPATIONAL HEALTH           
SHEFFIELD CITY COUNCIL        ,PLACE                         ,97416,COMM HTG - PIPEWORK RENEWAL   ,1161,NC&A MAIN CONTRACT            ,04/07/2016,4041766,SH04518/9                ,"33,200.00",DENTON & NICKELS LTD                    ,596087,,CENTRAL HEATING - INSTALLATION
SHEFFIELD CITY COUNCIL        ,CYPF                          ,38202,OUT OF CITY GUM               ,9030,HEALTH                        ,04/07/2016,4041810,8231693,365.00,OXFORD UNIVERSITY HOSPITALS NHS TRUST   ,590608,,HOSPITALS                     
SHEFFIELD CITY COUNCIL        ,COMMUNITIES                   ,49390,ACCOMMODATION                 ,6160,GAS                           ,04/07/2016,4041279,10644164280,336.61,EON                                     ,299536,,ELECTRICITY COMPANIES         
SHEFFIELD CITY COUNCIL        ,COMMUNITIES                   ,42034,PURCHASING LEARNING DISABILITI,9180,RESPITE                       ,04/07/2016,4041297,J1566170 260616          ,557.18,REDACTED PERSONAL DATA,328023,,ADOPTION & FOSTERING          
SHEFFIELD CITY COUNCIL        ,COMMUNITIES                   ,48007,PUBLIC HEALTH DIRECT PAYMENTS ,9190,FUNDED HOME SUPPORT           ,04/07/2016,4041374,J1566179                 ,569.40,REDACTED PERSONAL DATA,442522,Social Community Care,CAREFIRST DIRECT PAYMENTS     
SHEFFIELD CITY COUNCIL        ,COMMUNITIES                   ,42034,PURCHASING LEARNING DISABILITI,9190,DIRECT PAYMENTS               ,04/07/2016,4041375,J1566179                 ,"5,069.60",REDACTED PERSONAL DATA,483754,Social Community Care,CAREFIRST DIRECT PAYMENTS     
SHEFFIELD CITY COUNCIL        ,COMMUNITIES                   ,46039,ADULT SOCIAL CARE PURCHASING  ,4260,DIRECT PAYMENTS               ,04/07/2016,4041376,J1566179                 ,326.00,REDACTED PERSONAL DATA,556288,Social Community Care,CAREFIRST DIRECT PAYMENTS     
SHEFFIELD CITY COUNCIL        ,COMMUNITIES                   ,42034,PURCHASING LEARNING DISABILITI,9190,DIRECT PAYMENTS               ,04/07/2016,4041378,J1566179                 ,"3,510.96",REDACTED PERSONAL DATA,556454,Social Community Care,CAREFIRST DIRECT PAYMENTS     
SHEFFIELD CITY COUNCIL        ,COMMUNITIES                   ,46039,ADULT SOCIAL CARE PURCHASING  ,9190,DIRECT PAYMENTS               ,04/07/2016,4041380,J1566179                 ,"3,989.70",REDACTED PERSONAL DATA,571130,Social Community Care,CAREFIRST DIRECT PAYMENTS     
SHEFFIELD CITY COUNCIL        ,COMMUNITIES                   ,46039,ADULT SOCIAL CARE PURCHASING  ,9190,DIRECT PAYMENTS               ,04/07/2016,4041381,J1566179                 ,403.94,REDACTED PERSONAL DATA,571404,Social Community Care,CAREFIRST DIRECT PAYMENTS     
SHEFFIELD CITY COUNCIL        ,COMMUNITIES                   ,48007,PUBLIC HEALTH DIRECT PAYMENTS ,9190,DIRECT PAYMENTS               ,04/07/2016,4041382,J1566179                 ,"8,896.68",REDACTED PERSONAL DATA,574321,Social Community Care,CAREFIRST DIRECT PAYMENTS     
SHEFFIELD CITY COUNCIL        ,COMMUNITIES                   ,42034,PURCHASING LEARNING DISABILITI,9190,DIRECT PAYMENTS               ,04/07/2016,4041383,J1566179                 ,710.30,REDACTED PERSONAL DATA,628989,Social Community Care,CAREFIRST DIRECT PAYMENTS     
SHEFFIELD CITY COUNCIL        ,COMMUNITIES                   ,44001,PURCHASING                    ,9190,DIRECT PAYMENTS               ,04/07/2016,4041384,J1566179                 ,993.22,RETHINK MHREC                           ,631266,Social Community Care,CAREFIRST DIRECT PAYMENTS     
SHEFFIELD CITY COUNCIL        ,COMMUNITIES                   ,46039,ADULT SOCIAL CARE PURCHASING  ,9190,DIRECT PAYMENTS               ,04/07/2016,4041385,J1566179                 ,"2,082.00",REDACTED PERSONAL DATA,635936,Social Community Care,CAREFIRST DIRECT PAYMENTS     
SHEFFIELD CITY COUNCIL        ,COMMUNITIES                   ,46039,ADULT SOCIAL CARE PURCHASING  ,9190,DIRECT PAYMENTS               ,04/07/2016,4041386,J1566179                 ,"2,105.20",REDACTED PERSONAL DATA,636147,Social Community Care,CAREFIRST DIRECT PAYMENTS     
SHEFFIELD CITY COUNCIL        ,COMMUNITIES                   ,46039,ADULT SOCIAL CARE PURCHASING  ,9190,DIRECT PAYMENTS               ,04/07/2016,4041387,J1566179                 ,655.21,REDACTED PERSONAL DATA,636155,Social Community Care,CAREFIRST DIRECT PAYMENTS     
SHEFFIELD CITY COUNCIL        ,COMMUNITIES                   ,42034,PURCHASING LEARNING DISABILITI,9250,INDEPENDENT DAY CARE          ,04/07/2016,4041388,2444,900.00,BURTON STREET PROJECT                   ,342774,,CHARITIES & VOLUNTARY ORGANISA
SHEFFIELD CITY COUNCIL        ,COMMUNITIES                   ,42034,PURCHASING LEARNING DISABILITI,9240,SUPPORTED LIVING CARE         ,04/07/2016,4041389,265-008683               ,444.00,LEONARD CHESHIRE SERVICES               ,329306,,CHARITIES & VOLUNTARY ORGANISA
SHEFFIELD CITY COUNCIL        ,COMMUNITIES                   ,42034,PURCHASING LEARNING DISABILITI,9190,CITYWIDE SPOT                 ,04/07/2016,4041390,3280,"1,073.24",ABBEYCARE & NURSING                     ,518411,,HOME CARE SERVICES            
SHEFFIELD CITY COUNCIL        ,COMMUNITIES                   ,46039,ADULT SOCIAL CARE PURCHASING  ,9190,FUNDED HOME SUPPORT           ,04/07/2016,4041391,RR003297                 ,"4,704.36",SANCTUARY HOMECARE                      ,583116,,HOME CARE SERVICES            
SHEFFIELD CITY COUNCIL        ,COMMUNITIES                   ,46039,ADULT SOCIAL CARE PURCHASING  ,9250,INDEPENDENT DAY CARE          ,04/07/2016,4041397,4736,360.00,WORK LTD                                ,350089,,TRAINING SERVICES             
SHEFFIELD CITY COUNCIL        ,COMMUNITIES                   ,46039,ADULT SOCIAL CARE PURCHASING  ,9250,INDEPENDENT DAY CARE          ,04/07/2016,4041398,4737,360.00,WORK LTD                                ,350089,,TRAINING SERVICES             
SHEFFIELD CITY COUNCIL        ,COMMUNITIES                   ,42034,PURCHASING LEARNING DISABILITI,9250,INDEPENDENT DAY CARE          ,04/07/2016,4041399,4738,720.00,WORK LTD                                ,350089,,TRAINING SERVICES             
SHEFFIELD CITY COUNCIL        ,COMMUNITIES                   ,42034,PURCHASING LEARNING DISABILITI,9190,CITYWIDE SPOT                 ,04/07/2016,4041404,AE/3/333714              ,"1,118.52",H F TRUST LIMITED                       ,362078,,CHARITIES & VOLUNTARY ORGANISA
SHEFFIELD CITY COUNCIL        ,COMMUNITIES                   ,42034,PURCHASING LEARNING DISABILITI,9240,SUPPORTED LIVING CARE         ,04/07/2016,4041407,265-008677               ,594.36,LEONARD CHESHIRE SERVICES               ,329306,,CHARITIES & VOLUNTARY ORGANISA
SHEFFIELD CITY COUNCIL        ,COMMUNITIES                   ,46039,ADULT SOCIAL CARE PURCHASING  ,9240,SUPPORTED LIVING CARE         ,04/07/2016,4041409,265-008679               ,"1,058.42",LEONARD CHESHIRE SERVICES               ,329306,,CHARITIES & VOLUNTARY ORGANISA
SHEFFIELD CITY COUNCIL        ,COMMUNITIES                   ,42034,PURCHASING LEARNING DISABILITI,9190,CITYWIDE SPOT                 ,04/07/2016,4041410,265-008680               ,"1,102.00",LEONARD CHESHIRE SERVICES               ,329306,,CHARITIES & VOLUNTARY ORGANISA
SHEFFIELD CITY COUNCIL        ,COMMUNITIES                   ,42034,PURCHASING LEARNING DISABILITI,9240,SUPPORTED LIVING CARE         ,04/07/2016,4041411,265-008681               ,"5,809.66",LEONARD CHESHIRE SERVICES               ,329306,,CHARITIES & VOLUNTARY ORGANISA
SHEFFIELD CITY COUNCIL        ,COMMUNITIES                   ,42034,PURCHASING LEARNING DISABILITI,9240,SUPPORTED LIVING CARE         ,04/07/2016,4041412,265-008682               ,520.00,LEONARD CHESHIRE SERVICES               ,329306,,CHARITIES & VOLUNTARY ORGANISA
SHEFFIELD CITY COUNCIL        ,POLICY PERFORMANCE AND COMMS  ,17052,LOCAL ELECTIONS               ,6280,HIRE OF PREMISES              ,04/07/2016,4041541,MPA20160407235 10        ,250.00,ST PAULS & ST LEONARDS CHURCH           ,444389,,PLACES OF WORSHIP             
SHEFFIELD CITY COUNCIL        ,POLICY PERFORMANCE AND COMMS  ,17052,LOCAL ELECTIONS               ,6280,HIRE OF PREMISES              ,04/07/2016,4041543,MPA20160407235 12        ,250.00,GREENHILL METHODIST CHURCH              ,508367,,RELIGIOUS ORGANISATIONS       
SHEFFIELD CITY COUNCIL        ,POLICY PERFORMANCE AND COMMS  ,17052,LOCAL ELECTIONS               ,6280,HIRE OF PREMISES              ,04/07/2016,4041552,MPA20160407235 20        ,255.00,ST PETERS CHURCH (GLEADLESS PCC)        ,476936,,PLACES OF WORSHIP             
SHEFFIELD CITY COUNCIL        ,POLICY PERFORMANCE AND COMMS  ,17052,LOCAL ELECTIONS               ,6280,HIRE OF PREMISES              ,04/07/2016,4041555,MPA20160407235 23        ,250.00,THE NEW GLEADLESS LIBRARY               ,615721,,LIBRARIES                     
SHEFFIELD CITY COUNCIL        ,POLICY PERFORMANCE AND COMMS  ,17052,LOCAL ELECTIONS               ,6280,HIRE OF PREMISES              ,04/07/2016,4041558,MPA20160407235 26        ,250.00,ST AUGUSTINE'S CHURCH                   ,553203,,PLACES OF WORSHIP             
SHEFFIELD CITY COUNCIL        ,POLICY PERFORMANCE AND COMMS  ,17052,LOCAL ELECTIONS               ,6280,HIRE OF PREMISES              ,04/07/2016,4041559,MPA20160407235 27        ,270.00,BROOMHILL METHODIST CHURCH              ,326962,,PLACES OF WORSHIP             
SHEFFIELD CITY COUNCIL        ,POLICY PERFORMANCE AND COMMS  ,17052,LOCAL ELECTIONS               ,6280,HIRE OF PREMISES              ,04/07/2016,4041563,MPA20160407235 30        ,250.00,ST JAMES UTD REFORMED CHURCH            ,306661,,PLACES OF WORSHIP             
SHEFFIELD CITY COUNCIL        ,POLICY PERFORMANCE AND COMMS  ,17052,LOCAL ELECTIONS               ,6280,HIRE OF PREMISES              ,04/07/2016,4041564,MPA20160407235 31        ,300.00,NORWOOD & BISHOPHOLME TARA              ,373484,,COMMUNITY PROJECTS            
SHEFFIELD CITY COUNCIL        ,POLICY PERFORMANCE AND COMMS  ,17052,LOCAL ELECTIONS               ,6280,HIRE OF PREMISES              ,04/07/2016,4041568,MPA20160407235 35        ,300.00,ASPIRING COMMUNITIES TOGETHER LTD       ,303949,,CHARITIES & VOLUNTARY ORGANISA
SHEFFIELD CITY COUNCIL        ,POLICY PERFORMANCE AND COMMS  ,17052,LOCAL ELECTIONS               ,6280,HIRE OF PREMISES              ,04/07/2016,4041573,MPA20160407235 4         ,350.00,EVEREST INN                             ,553456,,"PUBLIC HOUSES, BARS & INNS    "
SHEFFIELD CITY COUNCIL        ,POLICY PERFORMANCE AND COMMS  ,17052,LOCAL ELECTIONS               ,6280,HIRE OF PREMISES              ,04/07/2016,4041575,MPA20160407235 41        ,350.00,CITY LIFE CHRISTIAN CHURCH              ,482953,,PLACES OF WORSHIP             
SHEFFIELD CITY COUNCIL        ,POLICY PERFORMANCE AND COMMS  ,17052,LOCAL ELECTIONS               ,6280,HIRE OF PREMISES              ,04/07/2016,4041578,MPA20160407235 44        ,450.00,BROOMHILL METHODIST CHURCH              ,326962,,PLACES OF WORSHIP             
SHEFFIELD CITY COUNCIL        ,POLICY PERFORMANCE AND COMMS  ,17052,LOCAL ELECTIONS               ,6280,HIRE OF PREMISES              ,04/07/2016,4041579,MPA20160407235 45        ,500.00,ST TIMOTHY'S COMMUNITY HALL             ,326932,,COMMUNITY CENTRES             
SHEFFIELD CITY COUNCIL        ,POLICY PERFORMANCE AND COMMS  ,17052,LOCAL ELECTIONS               ,6280,HIRE OF PREMISES              ,04/07/2016,4041580,MPA20160407235 46        ,250.00,HALLAM FOOTBALL CLUB                    ,553200,,SPORTS CLUBS & ASSOCIATIONS   
SHEFFIELD CITY COUNCIL        ,POLICY PERFORMANCE AND COMMS  ,17052,LOCAL ELECTIONS               ,6280,HIRE OF PREMISES              ,04/07/2016,4041581,MPA20160407235 47        ,250.00,CROSSPOOL & DISTRICT YOUTH SPORTS TRUST ,439948,,SPORTS CLUBS & ASSOCIATIONS   
SHEFFIELD CITY COUNCIL        ,POLICY PERFORMANCE AND COMMS  ,17052,LOCAL ELECTIONS               ,6280,HIRE OF PREMISES              ,04/07/2016,4041582,MPA20160407235 48        ,300.00,HANDSWORTH METHODIST CHURCH             ,318774,,COMMUNITY CENTRES             
SHEFFIELD CITY COUNCIL        ,POLICY PERFORMANCE AND COMMS  ,17052,LOCAL ELECTIONS               ,6280,HIRE OF PREMISES              ,04/07/2016,4041594,MPA20160407235 59        ,250.00,BANNER CROSS METHODIST CHURCH           ,302216,,PLACES OF WORSHIP             
SHEFFIELD CITY COUNCIL        ,POLICY PERFORMANCE AND COMMS  ,17052,LOCAL ELECTIONS               ,6280,HIRE OF PREMISES              ,04/07/2016,4041599,MPA20160407235 63        ,250.00,FIRTH PARK CENTRE FOR LIFE              ,350483,,FUNCTION & BANQUETING ROOMS   
SHEFFIELD CITY COUNCIL        ,POLICY PERFORMANCE AND COMMS  ,17052,LOCAL ELECTIONS               ,6280,HIRE OF PREMISES              ,04/07/2016,4041600,MPA20160407235 64        ,270.00,REDACTED PERSONAL DATA,547095,Unclassified Non Trade,OUT OF SCOPE FOR SIC MONITORIN
SHEFFIELD CITY COUNCIL        ,POLICY PERFORMANCE AND COMMS  ,17052,LOCAL ELECTIONS               ,6280,HIRE OF PREMISES              ,04/07/2016,4041605,MPA20160407235 69        ,320.00,ST LUKES CHURCH                         ,327117,,PLACES OF WORSHIP             
SHEFFIELD CITY COUNCIL        ,POLICY PERFORMANCE AND COMMS  ,17052,LOCAL ELECTIONS               ,6280,HIRE OF PREMISES              ,04/07/2016,4041607,MPA20160407235 70        ,360.00,BROOMHILL METHODIST CHURCH              ,326962,,PLACES OF WORSHIP             
SHEFFIELD CITY COUNCIL        ,POLICY PERFORMANCE AND COMMS  ,17052,LOCAL ELECTIONS               ,6280,HIRE OF PREMISES              ,04/07/2016,4041608,MPA20160407235 71        ,358.40,ST JOHNS                                ,418519,,CONFERENCE ROOMS & CENTRES    
SHEFFIELD CITY COUNCIL        ,POLICY PERFORMANCE AND COMMS  ,17052,LOCAL ELECTIONS               ,6280,HIRE OF PREMISES              ,04/07/2016,4041610,MPA20160407235 73        ,250.00,GLEADLESS VALLEY METHODIST CHURCH       ,324084,,PLACES OF WORSHIP             
SHEFFIELD CITY COUNCIL        ,POLICY PERFORMANCE AND COMMS  ,17052,LOCAL ELECTIONS               ,6280,HIRE OF PREMISES              ,04/07/2016,4041614,MPA20160407235 77        ,314.00,ST PAULS CHURCH AND CENTRE              ,470035,,PLACES OF WORSHIP             
SHEFFIELD CITY COUNCIL        ,POLICY PERFORMANCE AND COMMS  ,17052,LOCAL ELECTIONS               ,6280,HIRE OF PREMISES              ,04/07/2016,4041616,MPA20160407235 79        ,250.00,HILLSBOROUGH TRINITY METHODIST CHURCH   ,326946,,PLACES OF WORSHIP             
SHEFFIELD CITY COUNCIL        ,POLICY PERFORMANCE AND COMMS  ,17052,LOCAL ELECTIONS               ,6280,HIRE OF PREMISES              ,04/07/2016,4041629,MPA20160407235 90        ,275.00,MOSBOROUGH METHODIST CHURCH             ,433918,,PLACES OF WORSHIP             
SHEFFIELD CITY COUNCIL        ,POLICY PERFORMANCE AND COMMS  ,17052,LOCAL ELECTIONS               ,6280,HIRE OF PREMISES              ,04/07/2016,4041632,MPA20160407235 93        ,325.00,THE SALVATION ARMY                      ,300463,,RELIGIOUS ORGANISATIONS       
SHEFFIELD CITY COUNCIL        ,POLICY PERFORMANCE AND COMMS  ,17052,LOCAL ELECTIONS               ,6280,HIRE OF PREMISES              ,04/07/2016,4041634,MPA20160407235 95        ,300.00,MOTHER OF GOD CHURCH                    ,444394,,PLACES OF WORSHIP             
SHEFFIELD CITY COUNCIL        ,POLICY PERFORMANCE AND COMMS  ,17052,LOCAL ELECTIONS               ,6280,HIRE OF PREMISES              ,04/07/2016,4041641,MPA20160407236 1         ,300.00,SHIREGREEN NEIGHBOURHOOD CENTRE         ,320544,,COMMUNITY CENTRES             
SHEFFIELD CITY COUNCIL        ,POLICY PERFORMANCE AND COMMS  ,17052,LOCAL ELECTIONS               ,6280,HIRE OF PREMISES              ,04/07/2016,4041643,MPA20160407236 11        ,250.00,DUNGWORTH VILLAGE HALL                  ,327011,,COMMUNITY CENTRES             
SHEFFIELD CITY COUNCIL        ,POLICY PERFORMANCE AND COMMS  ,17052,LOCAL ELECTIONS               ,6280,HIRE OF PREMISES              ,04/07/2016,4041645,MPA20160407236 13        ,250.00,STANNINGTON & DISTRICT LIBRARY          ,595759,,LIBRARIES                     
SHEFFIELD CITY COUNCIL        ,POLICY PERFORMANCE AND COMMS  ,17052,LOCAL ELECTIONS               ,6280,HIRE OF PREMISES              ,04/07/2016,4041653,MPA20160407236 20        ,280.00,SMCA                                    ,326996,,CHARITIES & VOLUNTARY ORGANISA
SHEFFIELD CITY COUNCIL        ,POLICY PERFORMANCE AND COMMS  ,17052,LOCAL ELECTIONS               ,6280,HIRE OF PREMISES              ,04/07/2016,4041659,MPA20160407236 26        ,300.00,THE UNITY CENTRE LIMITED                ,535258,,OFFICE PREMISES - RETAIL      
SHEFFIELD CITY COUNCIL        ,POLICY PERFORMANCE AND COMMS  ,17052,LOCAL ELECTIONS               ,6280,HIRE OF PREMISES              ,04/07/2016,4041666,MPA20160407236 32        ,250.00,WALKLEY COMMUNITY LIBRARY FUTURES GROUP ,618310,,LIBRARIES                     
SHEFFIELD CITY COUNCIL        ,POLICY PERFORMANCE AND COMMS  ,17052,LOCAL ELECTIONS               ,6280,HIRE OF PREMISES              ,04/07/2016,4041667,MPA20160407236 33        ,250.00,NUCA TRADING AS ZEST                    ,503219,,CHARITIES & VOLUNTARY ORGANISA
SHEFFIELD CITY COUNCIL        ,POLICY PERFORMANCE AND COMMS  ,17052,LOCAL ELECTIONS               ,6280,HIRE OF PREMISES              ,04/07/2016,4041669,MPA20160407236 35        ,250.00,SHARROW COMMUNITY FORUM                 ,318379,,COMMUNITY PROJECTS            
SHEFFIELD CITY COUNCIL        ,POLICY PERFORMANCE AND COMMS  ,17052,LOCAL ELECTIONS               ,6280,HIRE OF PREMISES              ,04/07/2016,4041670,MPA20160407236 36        ,300.00,DOUBLE SIX YOUTH CLUB                   ,447317,,YOUTH ORGANISATIONS & CENTRES 
SHEFFIELD CITY COUNCIL        ,POLICY PERFORMANCE AND COMMS  ,17052,LOCAL ELECTIONS               ,6280,HIRE OF PREMISES              ,04/07/2016,4041672,MPA20160407236 38        ,300.00,REACH SOUTH SHEFFIELD                   ,394371,,CHARITIES & VOLUNTARY ORGANISA
SHEFFIELD CITY COUNCIL        ,POLICY PERFORMANCE AND COMMS  ,17052,LOCAL ELECTIONS               ,6280,HIRE OF PREMISES              ,04/07/2016,4041673,MPA20160407236 39        ,300.00,MOUNT TABOR METHODIST CHURCH            ,327003,,PLACES OF WORSHIP             
SHEFFIELD CITY COUNCIL        ,POLICY PERFORMANCE AND COMMS  ,17052,LOCAL ELECTIONS               ,6280,HIRE OF PREMISES              ,04/07/2016,4041675,MPA20160407236 40        ,250.00,BATEMOOR & JORDANTHORPE COMM A          ,543636,,COMMUNITY PROJECTS            
SHEFFIELD CITY COUNCIL        ,POLICY PERFORMANCE AND COMMS  ,17052,LOCAL ELECTIONS               ,6280,HIRE OF PREMISES              ,04/07/2016,4041676,MPA20160407236 41        ,320.00,LOCAL                                   ,299197,,COMMUNITY CENTRES             
SHEFFIELD CITY COUNCIL        ,POLICY PERFORMANCE AND COMMS  ,17052,LOCAL ELECTIONS               ,6280,HIRE OF PREMISES              ,04/07/2016,4041679,MPA20160407236 44        ,300.00,CRESWICK GREAVE METHODIST CHURCH        ,554116,,PLACES OF WORSHIP             
SHEFFIELD CITY COUNCIL        ,POLICY PERFORMANCE AND COMMS  ,17052,LOCAL ELECTIONS               ,6280,HIRE OF PREMISES              ,04/07/2016,4041680,MPA20160407236 45        ,250.00,WESLEY HALL & WALKLEY EBENEZER CHURCH   ,544551,,RELIGIOUS ORGANISATIONS       
SHEFFIELD CITY COUNCIL        ,POLICY PERFORMANCE AND COMMS  ,17052,LOCAL ELECTIONS               ,6280,HIRE OF PREMISES              ,04/07/2016,4041681,MPA20160407236 46        ,250.00,HALFWAY ELDERLY PEOPLES CLUB            ,625506,,"CLUBS & ASSOCIATIONS - SOCIAL,"
SHEFFIELD CITY COUNCIL        ,POLICY PERFORMANCE AND COMMS  ,17052,LOCAL ELECTIONS               ,6280,HIRE OF PREMISES              ,04/07/2016,4041684,MPA20160407236 49        ,400.00,NETHER EDGE BOWLING CLUB                ,621686,,BOWLING CENTRES               
SHEFFIELD CITY COUNCIL        ,POLICY PERFORMANCE AND COMMS  ,17052,LOCAL ELECTIONS               ,6280,HIRE OF PREMISES              ,04/07/2016,4041687,MPA20160407236 51        ,800.00,VERI LTD                                ,633249,,RESTAURANTS - ITALIAN         
SHEFFIELD CITY COUNCIL        ,POLICY PERFORMANCE AND COMMS  ,17052,LOCAL ELECTIONS               ,6280,HIRE OF PREMISES              ,04/07/2016,4041688,MPA20160407236 52        ,300.00,ST PETER & ST OSWALD CHURCH             ,547963,,RELIGIOUS ORGANISATIONS       
SHEFFIELD CITY COUNCIL        ,POLICY PERFORMANCE AND COMMS  ,17052,LOCAL ELECTIONS               ,6280,HIRE OF PREMISES              ,04/07/2016,4041689,MPA20160407236 53        ,280.00,ST THOMAS CHURCH                        ,383355,,PLACES OF WORSHIP             
SHEFFIELD CITY COUNCIL        ,POLICY PERFORMANCE AND COMMS  ,17052,LOCAL ELECTIONS               ,6280,HIRE OF PREMISES              ,04/07/2016,4041690,MPA20160407236 54        ,300.00,WOODSEATS METHODIST CHURCH              ,369208,,PLAYGROUPS & PRE-SCHOOL EDUCAT
SHEFFIELD CITY COUNCIL        ,POLICY PERFORMANCE AND COMMS  ,17052,LOCAL ELECTIONS               ,6280,HIRE OF PREMISES              ,04/07/2016,4041691,MPA20160407236 55        ,300.00,CHURCH OF ST COLUMBA                    ,534692,,PLACES OF WORSHIP             
SHEFFIELD CITY COUNCIL        ,POLICY PERFORMANCE AND COMMS  ,17052,LOCAL ELECTIONS               ,6280,HIRE OF PREMISES              ,04/07/2016,4041692,MPA20160407236 56        ,300.00,THE OLD RECTORY                         ,459937,,GUEST HOUSES                  
SHEFFIELD CITY COUNCIL        ,POLICY PERFORMANCE AND COMMS  ,17052,LOCAL ELECTIONS               ,6280,HIRE OF PREMISES              ,04/07/2016,4041696,MPA20160407236 8         ,250.00,FOXHILL FORUM LTD                       ,413731,,CHARITIES & VOLUNTARY ORGANISA
SHEFFIELD CITY COUNCIL        ,PLACE                         ,23036,CORONIAL SERVICES             ,8440,PATHOLOGIST INVOICE           ,05/07/2016,4042350,ERS INVOICE140421        ,387.20,REDACTED PERSONAL DATA,579914,Unclassified Non Trade,OUT OF SCOPE FOR SIC MONITORIN
SHEFFIELD CITY COUNCIL        ,PLACE                         ,23036,CORONIAL SERVICES             ,8440,PATHOLOGIST INVOICE           ,05/07/2016,4042351,ERS INVOICE140422        ,290.40,DR MINI C VARGHESE                      ,567541,,DOCTORS                       
SHEFFIELD CITY COUNCIL        ,PLACE                         ,23036,CORONIAL SERVICES             ,8440,PATHOLOGIST INVOICE           ,05/07/2016,4042352,ERS INVOICE140423        ,276.90,MARTA COHEN  LTD                        ,559400,,DOCTORS                       
SHEFFIELD CITY COUNCIL        ,PLACE                         ,23036,CORONIAL SERVICES             ,8440,PATHOLOGIST INVOICE           ,05/07/2016,4042353,ERS INVOICE140424        ,"1,565.70",HIGH PEAK FORENSICS                     ,575858,,DOCTORS                       
SHEFFIELD CITY COUNCIL        ,COMMUNITIES                   ,49655,INFRASTRUCTURE SUPPORT        ,8180,GRANTS                        ,05/07/2016,4042354,ERS INVOICE140425        ,"6,750.00",CREATIVE PATHWAYS                       ,580915,,EDUCATIONAL SERVICES          
SHEFFIELD CITY COUNCIL        ,CYPF                          ,33007,VSP DELIVER                   ,9120,OTHER AGENCIES                ,05/07/2016,4042383,ERS INVOICE140454        ,402.00,WHITE ROSE SCHOOLS LTD                  ,334662,,BEAUTY SCHOOLS                
SHEFFIELD CITY COUNCIL        ,CYPF                          ,32042,MUSIC EDUCATION HUBS 2012-15  ,5750,TRAINING EXPENDITURE          ,05/07/2016,4042453,ERS INVOICE140456        ,741.00,EMILY MAY LOWE - USE 627963             ,632915,,MUSIC TEACHERS                
SCR COMBINED AUTHORITY        ,CA LEP                        ,30322,APPRENTICE GRANT              ,8440,FEE EXPENSES                  ,05/07/2016,4042454,ERS INVOICE140457        ,"1,120.00",PEPPERMINT SALON                        ,627442,,BEAUTY SALONS                 
SCR COMBINED AUTHORITY        ,CA LEP                        ,30322,APPRENTICE GRANT              ,8440,FEE EXPENSES                  ,05/07/2016,4042455,ERS INVOICE140458        ,"1,420.00",R M POOLE DECORATING LTD                ,635497,,PAINTERS & DECORATORS         
SCR COMBINED AUTHORITY        ,CA LEP                        ,30322,APPRENTICE GRANT              ,8440,FEE EXPENSES                  ,05/07/2016,4042456,ERS INVOICE140459        ,"1,120.00",HYPE SALON TA C FOX BROOMHILL HR LTD    ,635507,,HAIRDRESSERS & HAIR STYLISTS -
SCR COMBINED AUTHORITY        ,CA LEP                        ,30322,APPRENTICE GRANT              ,8440,FEE EXPENSES                  ,05/07/2016,4042457,ERS INVOICE140460        ,"1,420.00",A & E PLUMBING AND HEATING              ,635514,,PLUMBERS                      
SCR COMBINED AUTHORITY        ,CA LEP                        ,30322,APPRENTICE GRANT              ,8440,FEE EXPENSES                  ,05/07/2016,4042458,ERS INVOICE140461        ,"1,120.00",CONSULT RESOLUTE                        ,635631,,EMPLOYMENT & RECRUITMENT AGENC
SCR COMBINED AUTHORITY        ,CA LEP                        ,30322,APPRENTICE GRANT              ,8440,FEE EXPENSES                  ,05/07/2016,4042459,ERS INVOICE140462        ,"1,120.00",DANBY BUILD LTD                         ,635596,,BUILDERS                      
SCR COMBINED AUTHORITY        ,CA LEP                        ,30322,APPRENTICE GRANT              ,8440,FEE EXPENSES                  ,05/07/2016,4042460,ERS INVOICE140463        ,"1,420.00",SOUTH YORKSHIRE LAMINATES AND CARPETS   ,635635,,FLOORING SERVICES             
SCR COMBINED AUTHORITY        ,CA LEP                        ,30322,APPRENTICE GRANT              ,8440,FEE EXPENSES                  ,05/07/2016,4042461,ERS INVOICE140464        ,"1,120.00",J NEWSOME (TOOLS) LIMITED               ,482815,,TOOL MERCHANTS                
SCR COMBINED AUTHORITY        ,CA LEP                        ,30322,APPRENTICE GRANT              ,8440,FEE EXPENSES                  ,05/07/2016,4042462,ERS INVOICE140465        ,"1,120.00",BEECHES OF WALKLEY                      ,590378,,TRAINING SERVICES             
SCR COMBINED AUTHORITY        ,CA LEP                        ,30322,APPRENTICE GRANT              ,8440,FEE EXPENSES                  ,05/07/2016,4042463,ERS INVOICE140466        ,"1,120.00",BENCHMARK RECRUIT                       ,635518,,EMPLOYMENT & RECRUITMENT AGENC
SCR COMBINED AUTHORITY        ,CA LEP                        ,30322,APPRENTICE GRANT              ,8440,FEE EXPENSES                  ,05/07/2016,4042464,ERS INVOICE140467        ,"1,120.00",MONTGOMERY ARTS&CHRISTIAN CTR SHEFF LTD ,486596,,CHARITIES & VOLUNTARY ORGANISA
SCR COMBINED AUTHORITY        ,CA LEP                        ,30322,APPRENTICE GRANT              ,8440,FEE EXPENSES                  ,05/07/2016,4042465,ERS INVOICE140468        ,"1,420.00",SCORPION CONSTRUCTION                   ,635586,,BUILDERS                      
SCR COMBINED AUTHORITY        ,CA LEP                        ,30322,APPRENTICE GRANT              ,8440,FEE EXPENSES                  ,05/07/2016,4042466,ERS INVOICE140469        ,"1,120.00",MAG SHOE SERVICES LTD                   ,635708,,ORTHOPAEDIC CARE EQUIPMENT    
SCR COMBINED AUTHORITY        ,CA LEP                        ,30322,APPRENTICE GRANT              ,8440,FEE EXPENSES                  ,05/07/2016,4042467,ERS INVOICE140470        ,"1,420.00",ADRIAN JAMES                            ,635592,,BRICKLAYING                   
SCR COMBINED AUTHORITY        ,CA LEP                        ,30322,APPRENTICE GRANT              ,8440,FEE EXPENSES                  ,05/07/2016,4042468,ERS INVOICE140471        ,"1,500.00",TSJ SMILE LTD T.A GRIMETHORPE DENTAL    ,635654,,DENTISTS                      
SCR COMBINED AUTHORITY        ,CA LEP                        ,30322,APPRENTICE GRANT              ,8440,FEE EXPENSES                  ,05/07/2016,4042469,ERS INVOICE140472        ,"1,120.00",FOXHILL FORUM LTD                       ,413731,,CHARITIES & VOLUNTARY ORGANISA
SCR COMBINED AUTHORITY        ,CA LEP                        ,30322,APPRENTICE GRANT              ,8440,FEE EXPENSES                  ,05/07/2016,4042470,ERS INVOICE140473        ,"1,120.00",SPRINGVALE PRIMARY SCHOOL               ,590594,,SCHOOLS - LOCAL AUTHORITY     
SCR COMBINED AUTHORITY        ,CA LEP                        ,30322,APPRENTICE GRANT              ,8440,FEE EXPENSES                  ,05/07/2016,4042471,ERS INVOICE140474        ,"1,420.00",DESIGN & BUILD INTERIORS LTD            ,635566,,KITCHEN PLANNERS & FURNISHERS 
SCR COMBINED AUTHORITY        ,CA LEP                        ,30322,APPRENTICE GRANT              ,8440,FEE EXPENSES                  ,05/07/2016,4042472,ERS INVOICE140475        ,"1,120.00",PAUL SCHOFIELD THE QUALITY BUTCHERS LTD ,635572,,BUTCHERS                      
SCR COMBINED AUTHORITY        ,CA LEP                        ,30322,APPRENTICE GRANT              ,8440,FEE EXPENSES                  ,05/07/2016,4042473,ERS INVOICE140476        ,"1,420.00",RYAN WALKER LTD                         ,635611,,JOINERS & CARPENTERS          
SCR COMBINED AUTHORITY        ,CA LEP                        ,30322,APPRENTICE GRANT              ,8440,FEE EXPENSES                  ,05/07/2016,4042474,ERS INVOICE140477        ,"1,500.00",PLATINUM                                ,635648,,BEAUTY SALONS                 
SCR COMBINED AUTHORITY        ,CA LEP                        ,30322,APPRENTICE GRANT              ,8440,FEE EXPENSES                  ,05/07/2016,4042475,ERS INVOICE140478        ,"1,420.00",WHITAKER DECORATIVE FINISHES            ,635769,,PAINTING & DECORATING SUPPLIES
SCR COMBINED AUTHORITY        ,CA LEP                        ,30322,APPRENTICE GRANT              ,8440,FEE EXPENSES                  ,05/07/2016,4042476,ERS INVOICE140479        ,"1,420.00",LJ PLASTERING                           ,635879,,"PLASTERERS, SCREEDERS & DRY LI"
SCR COMBINED AUTHORITY        ,CA LEP                        ,30322,APPRENTICE GRANT              ,8440,FEE EXPENSES                  ,05/07/2016,4042477,ERS INVOICE140480        ,"1,120.00",A CUT OF CLASS                          ,597132,,HAIRDRESSERS - UNISEX         
SCR COMBINED AUTHORITY        ,CA LEP                        ,30322,APPRENTICE GRANT              ,8440,FEE EXPENSES                  ,05/07/2016,4042478,ERS INVOICE140481        ,"1,120.00",NICHOLSON PRINT UK LTD                  ,636315,,PRINTERS                      
SCR COMBINED AUTHORITY        ,CA LEP                        ,30322,APPRENTICE GRANT              ,8440,FEE EXPENSES                  ,05/07/2016,4042479,ERS INVOICE140482        ,"1,120.00",HUWI LTD T/A LAUNDRY                    ,591292,,LAUNDRIES & LAUNDERETTES      
SHEFFIELD CITY COUNCIL        ,COMMUNITIES                   ,49707,EAST                          ,8180,GRANTS                        ,05/07/2016,4042517,ERS INVOICE140520        ,300.00,DARNALL COMMUNITY DEV CENTRE            ,635212,,COMMUNITY CENTRES             
SHEFFIELD CITY COUNCIL        ,PLACE                         ,22049,ENERGY -SCHEME                ,6190,WATER SERVICES-REFUNDS        ,05/07/2016,4010264,W1617-2231               ,911.24,RUDDLE MERZ WATER SERVICES LTD          ,620204,,SURVEYORS & VALUERS           
SHEFFIELD CITY COUNCIL        ,PLACE                         ,22049,ENERGY -SCHEME                ,6190,WATER SERVICES-REFUNDS        ,05/07/2016,4010302,W1617-2234               ,"4,049.39",RUDDLE MERZ WATER SERVICES LTD          ,620204,,SURVEYORS & VALUERS           
SHEFFIELD CITY COUNCIL        ,PLACE                         ,22049,ENERGY -SCHEME                ,6190,WATER SERVICES-REFUNDS        ,05/07/2016,4010304,W1617-2232               ,588.67,RUDDLE MERZ WATER SERVICES LTD          ,620204,,SURVEYORS & VALUERS           
SHEFFIELD CITY COUNCIL        ,PLACE                         ,22049,ENERGY -SCHEME                ,6190,WATER SERVICES-REFUNDS        ,05/07/2016,4010305,W1617-2233               ,"1,153.26",RUDDLE MERZ WATER SERVICES LTD          ,620204,,SURVEYORS & VALUERS           
SHEFFIELD CITY COUNCIL        ,PLACE                         ,25213,CYCLING OPPORTUNITIES         ,9030,HEALTH                        ,05/07/2016,4014825,INV0979423               ,"27,250.00",BRITISH CYCLING                         ,452614,,SPORTS CLUBS & ASSOCIATIONS   
SHEFFIELD CITY COUNCIL        ,COMMUNITIES                   ,42034,PURCHASING LEARNING DISABILITI,4080,FEES & CHARGES                ,05/07/2016,4019841,AE/1/329614              ,"10,940.91",H F TRUST LTD                           ,587048,,CHARITIES & VOLUNTARY ORGANISA
SHEFFIELD CITY COUNCIL        ,COMMUNITIES                   ,42034,PURCHASING LEARNING DISABILITI,9160,PARTNERSHIP CONTRACTS         ,05/07/2016,4019962,11-May-16,"4,117.50",NORTH SHEFFIELD FEDERATION FOR THE      ,304728,,CHARITIES & VOLUNTARY ORGANISA
SHEFFIELD CITY COUNCIL        ,COMMUNITIES                   ,42034,PURCHASING LEARNING DISABILITI,9190,EX POOL CLIENTS               ,05/07/2016,4023539,1100001356,"126,643.00",GUINNESS PARTNERSHIP LTD (SP)           ,352940,,HOME SUPPORT SERVICES         
SHEFFIELD CITY COUNCIL        ,PLACE                         ,22049,ENERGY -SCHEME                ,6190,WATER SERVICES-REFUNDS        ,05/07/2016,4025305,W1617-2254               ,"6,131.15",RUDDLE MERZ WATER SERVICES LTD          ,620204,,SURVEYORS & VALUERS           
SHEFFIELD CITY COUNCIL        ,RESOURCES                     ,15133,STANIFORTH ROAD WORKSHOPS     ,8390,STATIONERY                    ,05/07/2016,4027504,6900957744/6900958180    ,252.86,LYRECO UK LTD                           ,593417,,OFFICE FURNITURE & EQUIPMENT  
SHEFFIELD CITY COUNCIL        ,PLACE                         ,22049,ENERGY -SCHEME                ,6190,WATER SERVICES-REFUNDS        ,05/07/2016,4029009,W1617-2210               ,396.44,RUDDLE MERZ WATER SERVICES LTD          ,620204,,SURVEYORS & VALUERS           
SHEFFIELD CITY COUNCIL        ,PLACE                         ,22049,ENERGY -SCHEME                ,6190,WATER SERVICES-REFUNDS        ,05/07/2016,4029145,W1617-2151               ,"4,399.68",RUDDLE MERZ WATER SERVICES LTD          ,620204,,SURVEYORS & VALUERS           
SHEFFIELD CITY COUNCIL        ,CYPF                          ,39267,STEP UP TO SOCIAL WORK        ,8440,FEE EXPENSES                  ,05/07/2016,4032698,15093320,"76,500.00",THE UNIVERSITY OF SALFORD               ,401265,,UNIVERSITIES & MEDICAL SCHOOLS
SHEFFIELD CITY COUNCIL        ,PLACE                         ,21197,OFF THE SHELF                 ,8420,ADVERTISING AND PUBLICITY     ,05/07/2016,4035170,160604,"5,000.00",FALCONER ASSOCIATES LIMITED             ,597438,,PUBLIC RELATIONS CONSULTANTS  
SHEFFIELD CITY COUNCIL        ,RESOURCES                     ,14022,R&B CUSTOMER SERVICES         ,8490,TRANSLATN/SIGN/INTERPRET FEES ,05/07/2016,4035232,3812627,378.48,LANGUAGELINE SOLUTIONS                  ,471915,,TRANSLATORS & INTERPRETERS    
SHEFFIELD CITY COUNCIL        ,RESOURCES                     ,14022,R&B CUSTOMER SERVICES         ,8490,TRANSLATN/SIGN/INTERPRET FEES ,05/07/2016,4035339,3832124,515.16,LANGUAGELINE SOLUTIONS                  ,471915,,TRANSLATORS & INTERPRETERS    
SHEFFIELD CITY COUNCIL        ,RESOURCES                     ,14022,R&B CUSTOMER SERVICES         ,8490,TRANSLATN/SIGN/INTERPRET FEES ,05/07/2016,4035340,3754492,611.32,LANGUAGELINE SOLUTIONS                  ,471915,,TRANSLATORS & INTERPRETERS    
SHEFFIELD CITY COUNCIL        ,PLACE                         ,25095,PARKS OPERATIONS WEST         ,8060,MATERIALS AND SUPPLIES GENERAL,05/07/2016,4036472,37644,262.59,GROUNDSMAN TOOLS AND SUPPLIES LLP       ,554773,,GARDEN TOOLS                  
SHEFFIELD CITY COUNCIL        ,RESOURCES                     ,18029,CYCLE & EDU TRAIN SCHEME      ,8010,EQUIPMENT PURCHASE AND REPAIR ,05/07/2016,4037991,SO1102149                ,699.00,THE KNOWLEDGE ACADEMY                   ,575038,,EDUCATIONAL TRAINING PROVIDERS
SHEFFIELD CITY COUNCIL        ,COMMUNITIES                   ,42011,DAY SERVICES                  ,8540,SECURITY SERVICES             ,05/07/2016,4038479,481029,336.70,KINGS SECURITY SYSTEMS LIMITED          ,368448,,SECURITY EQUIPMENT INSTALLERS 
SHEFFIELD CITY COUNCIL        ,COMMUNITIES                   ,42011,DAY SERVICES                  ,8540,SECURITY SERVICES             ,05/07/2016,4038480,481030,518.00,KINGS SECURITY SYSTEMS LIMITED          ,368448,,SECURITY EQUIPMENT INSTALLERS 
SHEFFIELD CITY COUNCIL        ,PLACE                         ,21027,MOVE MORE                     ,5750,TRAINING EXPENDITURE          ,05/07/2016,4038508,IVC00000000001245        ,695.00,MIND                                    ,421978,,CHARITIES & VOLUNTARY ORGANISA
SHEFFIELD CITY COUNCIL        ,COMMUNITIES                   ,42034,PURCHASING LEARNING DISABILITI,4080,FEES & CHARGES                ,05/07/2016,4039295,AE/3/335501              ,"11,305.61",H F TRUST LTD                           ,587048,,CHARITIES & VOLUNTARY ORGANISA
SHEFFIELD CITY COUNCIL        ,COMMUNITIES                   ,42034,PURCHASING LEARNING DISABILITI,9190,EX POOL CLIENTS               ,05/07/2016,4039302,SI05/00013455            ,"151,868.26",DIMENSIONS (UK) LTD                     ,386516,,DISABILITY & SPECIAL NEEDS - S
SHEFFIELD CITY COUNCIL        ,RESOURCES                     ,14011,OUT OF HOURS SERVICE          ,8610,OTHER TELECOMMUNICATIONS      ,05/07/2016,4039507,61994,"21,983.09",POLICE AND CRIME COMMISSIONER STH YORKSM,301616,,POLICE                        
SHEFFIELD CITY COUNCIL        ,CYPF                          ,39429,72 GREGG HOUSE ROAD           ,6210,RENTS                         ,05/07/2016,4039888,SUPP01181                ,"1,613.47",SANCTUARY GROUP                         ,351140,,HOME SUPPORT SERVICES         
SHEFFIELD CITY COUNCIL        ,RESOURCES                     ,15207,PFI 4                         ,8350,MISCELLANEOUS EXPENSES        ,05/07/2016,4040594,RINV/00000281            ,"1,167.00",PARADIGM (SHEFFIELD BSF) LIMITED        ,472691,,PROPERTY & ESTATE MANAGEMENT  
SHEFFIELD CITY COUNCIL        ,COMMUNITIES                   ,49390,ACCOMMODATION                 ,6210,RENTS                         ,05/07/2016,4040638,ARC1617-25               ,916.67,STOCKSBRIDGE TOWN COUNCIL               ,567651,,COUNCILS                      
SHEFFIELD CITY COUNCIL        ,CYPF                          ,33064,PROVIDER CONTRACT AUG15-JUL16 ,9120,OTHER AGENCIES                ,05/07/2016,4041060,WCF15B019                ,385.00,WOODHOUSE & DISTRICT COMMUNITY FORUM    ,482835,,COMMUNITY PROJECTS            
SHEFFIELD CITY COUNCIL        ,CYPF                          ,33064,PROVIDER CONTRACT AUG15-JUL16 ,9120,OTHER AGENCIES                ,05/07/2016,4041062,WCF15B013                ,885.00,WOODHOUSE & DISTRICT COMMUNITY FORUM    ,482835,,COMMUNITY PROJECTS            
SHEFFIELD CITY COUNCIL        ,CYPF                          ,33064,PROVIDER CONTRACT AUG15-JUL16 ,9120,OTHER AGENCIES                ,05/07/2016,4041098,1242,257.25,SHEFFIELD ASSOCIATION FOR THE VOLUNTARY ,350936,,CHARITIES & VOLUNTARY ORGANISA
SHEFFIELD CITY COUNCIL        ,CYPF                          ,33064,PROVIDER CONTRACT AUG15-JUL16 ,9120,OTHER AGENCIES                ,05/07/2016,4041100,1262,731.50,SHEFFIELD ASSOCIATION FOR THE VOLUNTARY ,350936,,CHARITIES & VOLUNTARY ORGANISA
SHEFFIELD CITY COUNCIL        ,CYPF                          ,33064,PROVIDER CONTRACT AUG15-JUL16 ,9120,OTHER AGENCIES                ,05/07/2016,4041101,1260,"1,011.50",SHEFFIELD ASSOCIATION FOR THE VOLUNTARY ,350936,,CHARITIES & VOLUNTARY ORGANISA
SHEFFIELD CITY COUNCIL        ,CYPF                          ,33064,PROVIDER CONTRACT AUG15-JUL16 ,9120,OTHER AGENCIES                ,05/07/2016,4041103,1264,780.50,SHEFFIELD ASSOCIATION FOR THE VOLUNTARY ,350936,,CHARITIES & VOLUNTARY ORGANISA
SHEFFIELD CITY COUNCIL        ,CYPF                          ,33064,PROVIDER CONTRACT AUG15-JUL16 ,9120,OTHER AGENCIES                ,05/07/2016,4041104,1272,367.50,SHEFFIELD ASSOCIATION FOR THE VOLUNTARY ,350936,,CHARITIES & VOLUNTARY ORGANISA
SHEFFIELD CITY COUNCIL        ,CYPF                          ,33064,PROVIDER CONTRACT AUG15-JUL16 ,9120,OTHER AGENCIES                ,05/07/2016,4041105,1265,731.50,SHEFFIELD ASSOCIATION FOR THE VOLUNTARY ,350936,,CHARITIES & VOLUNTARY ORGANISA
SHEFFIELD CITY COUNCIL        ,RESOURCES                     ,15133,STANIFORTH ROAD WORKSHOPS     ,6020,REPAIRS AND MTCE - PROGRAMMED ,05/07/2016,4041146,9376,"1,438.00",GALLAGHER FLOORING LTD                  ,594490,,FLOORING SERVICES             
SHEFFIELD CITY COUNCIL        ,CYPF                          ,38202,OUT OF CITY GUM               ,9030,HEALTH                        ,05/07/2016,4041148,1010039654,266.00,YORK TEACHING HOSPITAL NHS FOUNDATION TR,590018,,HOSPITALS                     
SHEFFIELD CITY COUNCIL        ,CYPF                          ,33064,PROVIDER CONTRACT AUG15-JUL16 ,9120,OTHER AGENCIES                ,05/07/2016,4041157,WCF15B014                ,885.00,WOODHOUSE & DISTRICT COMMUNITY FORUM    ,482835,,COMMUNITY PROJECTS            
SHEFFIELD CITY COUNCIL        ,CYPF                          ,33064,PROVIDER CONTRACT AUG15-JUL16 ,9120,OTHER AGENCIES                ,05/07/2016,4041158,WCF15B040                ,265.00,WOODHOUSE & DISTRICT COMMUNITY FORUM    ,482835,,COMMUNITY PROJECTS            
SHEFFIELD CITY COUNCIL        ,PLACE                         ,97147,ADAPTATIONS                   ,1157,DWELLINGS MAIN CONTRACT       ,05/07/2016,4041511,SIP-160575               ,"1,808.68",THYSSENKRUPP ENCASA                     ,627802,,LIFT MNFRS                    
SHEFFIELD CITY COUNCIL        ,PLACE                         ,97147,ADAPTATIONS                   ,1157,DWELLINGS MAIN CONTRACT       ,05/07/2016,4041516,3000272,"1,130.00",CLARK & PARTNERS LTD                    ,203928,,DISABILITY EQUIPMENT - MNFRS &
SHEFFIELD CITY COUNCIL        ,COMMUNITIES                   ,49364,SUPPORTED HOUSING             ,8050,ELECTRICAL GOODS              ,05/07/2016,4041532,22030,"2,900.00",INSTORE DIRECT LTD                      ,634006,,FURNITURE - WHOLESALE         
SHEFFIELD CITY COUNCIL        ,RESOURCES                     ,15190,HARD FM                       ,6030,REPAIRS AND MTCE - RESPONSIVE ,05/07/2016,4041537,5/1275/25LM/40826        ,631.75,WILDSCAPES LTD                          ,472494,,LANDSCAPE ARCHITECTS & DESIGNE
SHEFFIELD CITY COUNCIL        ,PLACE                         ,25092,PARKS OPS EAST & NORTH EAST   ,8550,OTHER SERVICES                ,05/07/2016,4041772,ASF/5883/SCC             ,450.00,AVANTI STEEL FABRICATIONS               ,203151,,STEEL FABRICATORS & ERECTORS  
SHEFFIELD CITY COUNCIL        ,PLACE                         ,25094,PARKS OPS SOUTH & SOUTH EAST  ,8550,OTHER SERVICES                ,05/07/2016,4041773,ASF/5884/SCC             ,310.00,AVANTI STEEL FABRICATIONS               ,203151,,STEEL FABRICATORS & ERECTORS  
SHEFFIELD CITY COUNCIL        ,PLACE                         ,97418,PITCHED ROOFING & ROOFLINE    ,1193,CONSULTANTS FEES              ,05/07/2016,4041798,1282,413.25,VIEWPOINT RESEARCH COMMUNITY INTEREST CO,511698,,MARKET RESEARCH               
SHEFFIELD CITY COUNCIL        ,COMMUNITIES                   ,49379,VACANTS                       ,8440,FEE EXPENSES                  ,05/07/2016,4041803,1280,380.00,VIEWPOINT RESEARCH COMMUNITY INTEREST CO,511698,,MARKET RESEARCH               
SHEFFIELD CITY COUNCIL        ,RESOURCES                     ,14003,BUSINESS INTELLIGENCE         ,8490,TRANSLATN/SIGN/INTERPRET FEES ,05/07/2016,4041827,TI06368                  ,773.91,LANGUAGELINE SOLUTIONS                  ,471915,,TRANSLATORS & INTERPRETERS    
SHEFFIELD CITY COUNCIL        ,RESOURCES                     ,14003,BUSINESS INTELLIGENCE         ,8490,TRANSLATN/SIGN/INTERPRET FEES ,05/07/2016,4041828,3401,"1,460.50",LANGUAGELINE SOLUTIONS                  ,471915,,TRANSLATORS & INTERPRETERS    
SHEFFIELD CITY COUNCIL        ,COMMUNITIES                   ,49363,OLDER PERSONS LIVING          ,8010,EQUIPMENT PURCHASE AND REPAIR ,05/07/2016,4041835,GI00025166               ,264.00,T L KILLI'S                             ,208807,,CLEANING MATERIALS & EQUIPMENT
SHEFFIELD CITY COUNCIL        ,CYPF                          ,38059,EY/MAST PREMISES              ,8440,FEE EXPENSES                  ,05/07/2016,4041839,1152,"3,125.00",MANOR & CASTLE DEVELOPMENT TRUST        ,314473,,CHARITIES & VOLUNTARY ORGANISA
SHEFFIELD CITY COUNCIL        ,CYPF                          ,39282,CARE PROCEEDINGS (LEGAL FEES) ,8470,LEGAL FEES                    ,05/07/2016,4042125,10993,403.50,FORENSIC TESTING SERVICE LTD            ,557750,,MEDICAL & DENTAL LABORATORIES 
SHEFFIELD CITY COUNCIL        ,COMMUNITIES                   ,49688,DACT PROJECTS                 ,8200,EVENTS EXPENDITURE            ,05/07/2016,4042126,3042313,"1,700.00",SHEFFIELD INTERNATIONAL VENUES          ,363031,,SPORTS GROUNDS & STADIUMS     
SHEFFIELD CITY COUNCIL        ,CYPF                          ,39282,CARE PROCEEDINGS (LEGAL FEES) ,8470,LEGAL FEES                    ,05/07/2016,4042128,985255,600.00,REDACTED PERSONAL DATA,544033,,BARRISTERS                    
SHEFFIELD CITY COUNCIL        ,CYPF                          ,39282,CARE PROCEEDINGS (LEGAL FEES) ,8470,LEGAL FEES                    ,05/07/2016,4042129,1001633,600.00,REDACTED PERSONAL DATA,544033,,BARRISTERS                    
SHEFFIELD CITY COUNCIL        ,RESOURCES                     ,15133,STANIFORTH ROAD WORKSHOPS     ,7010,ROUTINE VEHICLE REPAIR & MTCE ,05/07/2016,4042267,927622281,"1,464.96",ARCO LTD                                ,203022,,SAFETY EQUIPMENT & CLOTHING   
SHEFFIELD CITY COUNCIL        ,PLACE                         ,25020,ALLOTMENTS                    ,6090,WASTE DISPOSAL                ,05/07/2016,4042399,R3920                    ,"1,000.00",E4 (ENVIRONMENTAL) LTD                  ,462119,,ASBESTOS SURVEYS & REMOVALS   
SHEFFIELD CITY COUNCIL        ,RESOURCES                     ,15133,STANIFORTH ROAD WORKSHOPS     ,8070,STOCKS AND STORES             ,05/07/2016,4042103,14440815,"1,072.60",LOOKERS FORD                            ,474939,,CAR DEALERS                   
SHEFFIELD CITY COUNCIL        ,RESOURCES                     ,15133,STANIFORTH ROAD WORKSHOPS     ,7010,ROUTINE VEHICLE REPAIR & MTCE ,05/07/2016,4042106,31562,343.26,D B AUTO ELECTRICAL SUPPLIES            ,588397,,"COMMERCIAL VEHICLE SERVICING, "
SHEFFIELD CITY COUNCIL        ,RESOURCES                     ,15133,STANIFORTH ROAD WORKSHOPS     ,8070,STOCKS AND STORES             ,05/07/2016,4042107,31543,447.78,D B AUTO ELECTRICAL SUPPLIES            ,588397,,"COMMERCIAL VEHICLE SERVICING, "
SHEFFIELD CITY COUNCIL        ,RESOURCES                     ,15133,STANIFORTH ROAD WORKSHOPS     ,7040,OTHER VEHICLE RUNNING COSTS   ,05/07/2016,4042115,19848,371.00,AMBASSADOR REPAIR CENTRE LTD            ,315976,,CAR BODY REPAIRS              
SHEFFIELD CITY COUNCIL        ,RESOURCES                     ,15133,STANIFORTH ROAD WORKSHOPS     ,7040,OTHER VEHICLE RUNNING COSTS   ,05/07/2016,4042116,19849,268.25,AMBASSADOR REPAIR CENTRE LTD            ,315976,,CAR BODY REPAIRS              
SHEFFIELD CITY COUNCIL        ,RESOURCES                     ,15133,STANIFORTH ROAD WORKSHOPS     ,7010,ROUTINE VEHICLE REPAIR & MTCE ,05/07/2016,4042119,31350,690.00,D B AUTO ELECTRICAL SUPPLIES            ,588397,,"COMMERCIAL VEHICLE SERVICING, "
SHEFFIELD CITY COUNCIL        ,COMMUNITIES                   ,42034,PURCHASING LEARNING DISABILITI,9240,FUNDED NURSING CARE (IN       ,05/07/2016,4042086,13398,"3,289.60",DIMENSIONS (UK) LTD (NEW ERA HOUSING)   ,505956,,"HOUSING ASSOCIATIONS, SOCIETIE"
SHEFFIELD CITY COUNCIL        ,COMMUNITIES                   ,42034,PURCHASING LEARNING DISABILITI,9240,SUPPORTED LIVING CARE         ,05/07/2016,4042086,13398,"33,410.49",DIMENSIONS (UK) LTD (NEW ERA HOUSING)   ,505956,,"HOUSING ASSOCIATIONS, SOCIETIE"
SHEFFIELD CITY COUNCIL        ,COMMUNITIES                   ,42034,PURCHASING LEARNING DISABILITI,9240,SUPPORTED LIVING CARE         ,05/07/2016,4042087,265-008684               ,"1,919.38",LEONARD CHESHIRE SERVICES               ,329306,,CHARITIES & VOLUNTARY ORGANISA
SHEFFIELD CITY COUNCIL        ,COMMUNITIES                   ,46039,ADULT SOCIAL CARE PURCHASING  ,9190,CITYWIDE SPOT                 ,05/07/2016,4042088,7929,838.16,REDACTED PERSONAL DATA,518159,,HOME CARE SERVICES            
SHEFFIELD CITY COUNCIL        ,COMMUNITIES                   ,47028,PDSI PURCHASING               ,9190,CITYWIDE SPOT                 ,05/07/2016,4042089,7961,442.24,REDACTED PERSONAL DATA,518159,,HOME CARE SERVICES            
SHEFFIELD CITY COUNCIL        ,COMMUNITIES                   ,46039,ADULT SOCIAL CARE PURCHASING  ,9190,CITYWIDE SPOT                 ,05/07/2016,4042089,7961,"1,250.16",REDACTED PERSONAL DATA,518159,,HOME CARE SERVICES            
SHEFFIELD CITY COUNCIL        ,COMMUNITIES                   ,42034,PURCHASING LEARNING DISABILITI,9190,CITYWIDE SPOT                 ,05/07/2016,4042090,7968,"6,442.52",REDACTED PERSONAL DATA,518159,,HOME CARE SERVICES            
SHEFFIELD CITY COUNCIL        ,COMMUNITIES                   ,42034,PURCHASING LEARNING DISABILITI,9190,FUNDED HOME SUPPORT           ,05/07/2016,4042090,7968,"1,378.86",REDACTED PERSONAL DATA,518159,,HOME CARE SERVICES            
SHEFFIELD CITY COUNCIL        ,COMMUNITIES                   ,42034,PURCHASING LEARNING DISABILITI,9190,FUNDED HOME SUPPORT           ,05/07/2016,4042091,8006,"1,701.96",REDACTED PERSONAL DATA,518159,,HOME CARE SERVICES            
SHEFFIELD CITY COUNCIL        ,COMMUNITIES                   ,42034,PURCHASING LEARNING DISABILITI,9190,CITYWIDE SPOT                 ,05/07/2016,4042091,8006,"6,442.52",REDACTED PERSONAL DATA,518159,,HOME CARE SERVICES            
SHEFFIELD CITY COUNCIL        ,CYPF                          ,39284,INDEPENDENT FOSTER PLACE U16  ,9270,INDEPENDENT FOSTERING         ,05/07/2016,4041944,25487,"3,120.04",REDACTED PERSONAL DATA,521940,,ADOPTION & FOSTERING          
SHEFFIELD CITY COUNCIL        ,CYPF                          ,39285,CONTACT CONTRACTS             ,9280,CONTACT                       ,05/07/2016,4041998,24543,264.93,CREWS SUPPORT SERVICES LTD              ,301604,,NURSING AGENCIES              
SHEFFIELD CITY COUNCIL        ,CYPF                          ,39285,CONTACT CONTRACTS             ,9280,CONTACT                       ,05/07/2016,4042007,24550,326.70,CREWS SUPPORT SERVICES LTD              ,301604,,NURSING AGENCIES              
SHEFFIELD CITY COUNCIL        ,CYPF                          ,39084,NORTH SA - CIN S17            ,9280,CONTACT                       ,05/07/2016,4042062,24578,336.15,CREWS SUPPORT SERVICES LTD              ,301604,,NURSING AGENCIES              
SHEFFIELD CITY COUNCIL        ,COMMUNITIES                   ,46039,ADULT SOCIAL CARE PURCHASING  ,9200,CONTINUING RESIDENTIAL CARE   ,05/07/2016,4041922,J1545129 170716          ,"5,015.00",ACKROYD CLINIC CARE HOME                ,361918,,RESIDENTIAL CARE HOMES        
SHEFFIELD CITY COUNCIL        ,COMMUNITIES                   ,46039,ADULT SOCIAL CARE PURCHASING  ,9210,CONTINUING NURSING CARE       ,05/07/2016,4041923,J1559006 170716          ,"3,360.00",HILLCARE LIMITED                        ,361765,,RESIDENTIAL CARE HOMES        
SHEFFIELD CITY COUNCIL        ,COMMUNITIES                   ,46039,ADULT SOCIAL CARE PURCHASING  ,9200,CONTINUING RESIDENTIAL CARE   ,05/07/2016,4041924,J1561215 170716          ,"2,003.57",ROSEBERRY CARE CENTRES GB LTD           ,361904,,NURSING HOMES                 
SHEFFIELD CITY COUNCIL        ,COMMUNITIES                   ,46039,ADULT SOCIAL CARE PURCHASING  ,9210,CONTINUING NURSING CARE       ,05/07/2016,4041924,J1561215 170716          ,"6,208.71",ROSEBERRY CARE CENTRES GB LTD           ,361904,,NURSING HOMES                 
SHEFFIELD CITY COUNCIL        ,COMMUNITIES                   ,46039,ADULT SOCIAL CARE PURCHASING  ,9200,CONTINUING RESIDENTIAL CARE   ,05/07/2016,4041925,J1564060 170716          ,"12,225.43",PADDOCK HILL (SHEFFCARE LTD)            ,361797,,RESIDENTIAL CARE HOMES        
SHEFFIELD CITY COUNCIL        ,COMMUNITIES                   ,46039,ADULT SOCIAL CARE PURCHASING  ,9210,CONTINUING NURSING CARE       ,05/07/2016,4041926,J1564065 170716          ,"7,102.57",SCARSDALE GRANGE NH                     ,361915,,NURSING HOMES                 
SHEFFIELD CITY COUNCIL        ,COMMUNITIES                   ,44001,PURCHASING                    ,9200,CONTINUING RESIDENTIAL CARE   ,05/07/2016,4041927,J1566175 170716          ,"7,992.77",LIFEWAYS COMMUNITY CARE LTD             ,576610,,RESIDENTIAL CARE HOMES        
SHEFFIELD CITY COUNCIL        ,COMMUNITIES                   ,46039,ADULT SOCIAL CARE PURCHASING  ,9200,CONTINUING RESIDENTIAL CARE   ,05/07/2016,4041928,J1566176 170716          ,"6,136.71",JASMIN COURT NURSING HOME               ,361764,,NURSING HOMES                 
SHEFFIELD CITY COUNCIL        ,COMMUNITIES                   ,46039,ADULT SOCIAL CARE PURCHASING  ,9210,CONTINUING NURSING CARE       ,05/07/2016,4041929,J1566177 170716          ,"3,360.00",TREETON GRANGE                          ,362005,,NURSING HOMES                 
SHEFFIELD CITY COUNCIL        ,COMMUNITIES                   ,46039,ADULT SOCIAL CARE PURCHASING  ,9210,CONTINUING NURSING CARE       ,05/07/2016,4041930,J1566906 170716          ,"24,785.00",COUNTRY COURT CARE HOMES LTD            ,361754,,RESIDENTIAL CARE HOMES        
SHEFFIELD CITY COUNCIL        ,COMMUNITIES                   ,46039,ADULT SOCIAL CARE PURCHASING  ,9200,CONTINUING RESIDENTIAL CARE   ,05/07/2016,4041931,J1566907 170716          ,"1,711.00",NETHERMORE CARE HOME (PREVIOUSLY KILLAMA,361936,,REST & RETIREMENT HOMES       
SHEFFIELD CITY COUNCIL        ,COMMUNITIES                   ,46039,ADULT SOCIAL CARE PURCHASING  ,9200,CONTINUING RESIDENTIAL CARE   ,05/07/2016,4041932,J1566908 170716          ,"5,301.86",NEWFIELD NURSING HOME                   ,361980,,NURSING HOMES                 
SHEFFIELD CITY COUNCIL        ,COMMUNITIES                   ,42034,PURCHASING LEARNING DISABILITI,9210,CONTINUING NURSING CARE       ,05/07/2016,4041932,J1566908 170716          ,"6,534.57",NEWFIELD NURSING HOME                   ,361980,,NURSING HOMES                 
SHEFFIELD CITY COUNCIL        ,COMMUNITIES                   ,46039,ADULT SOCIAL CARE PURCHASING  ,9210,CONTINUING NURSING CARE       ,05/07/2016,4041933,J1566909 170716          ,"2,760.00",NORTHFIELD NURSING HOME                 ,361770,,NURSING HOMES                 
SHEFFIELD CITY COUNCIL        ,COMMUNITIES                   ,46039,ADULT SOCIAL CARE PURCHASING  ,9210,CONTINUING NURSING CARE       ,05/07/2016,4041934,J1566910 170716          ,"4,016.57",ALEXANDER COURT CARE HOME               ,361889,,RESIDENTIAL CARE HOMES        
SHEFFIELD CITY COUNCIL        ,COMMUNITIES                   ,46039,ADULT SOCIAL CARE PURCHASING  ,9200,CONTINUING RESIDENTIAL CARE   ,05/07/2016,4041935,J1566911 170716          ,"1,516.00",ROSEBERRY CARE CENTRES GB LTD           ,368334,,NURSING HOMES                 
SHEFFIELD CITY COUNCIL        ,COMMUNITIES                   ,46039,ADULT SOCIAL CARE PURCHASING  ,9210,CONTINUING NURSING CARE       ,05/07/2016,4041935,J1566911 170716          ,"15,542.13",ROSEBERRY CARE CENTRES GB LTD           ,368334,,NURSING HOMES                 
SHEFFIELD CITY COUNCIL        ,COMMUNITIES                   ,46039,ADULT SOCIAL CARE PURCHASING  ,9200,CONTINUING RESIDENTIAL CARE   ,05/07/2016,4041936,J1566912 170716          ,"1,846.71",NORTON LEES HALL/LODGE                  ,433750,,SCHOOLS - LOCAL AUTHORITY     
SHEFFIELD CITY COUNCIL        ,COMMUNITIES                   ,44001,PURCHASING                    ,9200,SHORT TERM RESIDENTIAL CARE   ,05/07/2016,4041937,J1544913 190616          ,"4,440.43",LIFEWAYS COMMUNITY CARE LTD             ,576610,,RESIDENTIAL CARE HOMES        
SHEFFIELD CITY COUNCIL        ,COMMUNITIES                   ,46039,ADULT SOCIAL CARE PURCHASING  ,9200,SHORT TERM RESIDENTIAL CARE   ,05/07/2016,4041938,J1544922 190616          ,377.00,DEVAGLADE LTD T/A AARON VIEW            ,486043,,NURSING HOMES                 
SHEFFIELD CITY COUNCIL        ,COMMUNITIES                   ,46039,ADULT SOCIAL CARE PURCHASING  ,9200,SHORT TERM RESIDENTIAL CARE   ,05/07/2016,4041939,J1566144 190616          ,525.00,APRIL PARK                              ,361944,,RESIDENTIAL CARE HOMES        
SHEFFIELD CITY COUNCIL        ,COMMUNITIES                   ,46039,ADULT SOCIAL CARE PURCHASING  ,9200,SHORT TERM RESIDENTIAL CARE   ,05/07/2016,4041941,J1566805 190616          ,"1,340.86",ROSEBANK CARE HOME                      ,361802,,RESIDENTIAL CARE HOMES        
SHEFFIELD CITY COUNCIL        ,COMMUNITIES                   ,46039,ADULT SOCIAL CARE PURCHASING  ,9210,SHORT TERM NURSING CARE       ,05/07/2016,4041943,J1566807 190616          ,665.81,SHEFFIELD CHESHIRE HOME                 ,361768,,NURSING HOMES                 
SHEFFIELD CITY COUNCIL        ,CYPF                          ,33007,VSP DELIVER                   ,9120,OTHER AGENCIES                ,06/07/2016,4043005,ERS INVOICE140541        ,"2,590.50",A MIND APART THEATRE COMPANY LTD        ,508180,,DRAMA SCHOOLS                 
SHEFFIELD CITY COUNCIL        ,CYPF                          ,33007,VSP DELIVER                   ,9120,OTHER AGENCIES                ,06/07/2016,4043006,ERS INVOICE140542        ,"1,665.00",SHEFFIELD INDUSTRIAL MUSEUMS TRUST LTD  ,307272,,MUSEUMS                       
SHEFFIELD CITY COUNCIL        ,CYPF                          ,33007,VSP DELIVER                   ,9120,OTHER AGENCIES                ,06/07/2016,4043007,ERS INVOICE140543        ,"2,378.50",DONCASTER ROTH & DIST (MOTOR TRADES)GTA ,204434,,TRAINING CENTRES              
SHEFFIELD CITY COUNCIL        ,CYPF                          ,33007,VSP DELIVER                   ,9120,OTHER AGENCIES                ,06/07/2016,4043008,ERS INVOICE140544        ,"1,340.00",HEELEY CITY FARM                        ,301277,,CHARITIES & VOLUNTARY ORGANISA
SHEFFIELD CITY COUNCIL        ,CYPF                          ,33007,VSP DELIVER                   ,9120,OTHER AGENCIES                ,06/07/2016,4043009,ERS INVOICE140545        ,"3,668.75",HEELEY DEVELOPMENT TRUST                ,363241,,CHARITIES & VOLUNTARY ORGANISA
SHEFFIELD CITY COUNCIL        ,CYPF                          ,33007,VSP DELIVER                   ,9120,OTHER AGENCIES                ,06/07/2016,4043010,ERS INVOICE140546        ,"4,669.50",IN2CHANGE SOUTH YORKS LTD               ,558793,,CHARITIES & VOLUNTARY ORGANISA
SHEFFIELD CITY COUNCIL        ,CYPF                          ,33007,VSP DELIVER                   ,9120,OTHER AGENCIES                ,06/07/2016,4043011,ERS INVOICE140547        ,990.00,THE MUSICAL WORKS                       ,368576,,COMMUNITY PROJECTS            
SHEFFIELD CITY COUNCIL        ,CYPF                          ,33007,VSP DELIVER                   ,9120,OTHER AGENCIES                ,06/07/2016,4043012,ERS INVOICE140548        ,"1,056.00",NACRO                                   ,297575,,CHARITIES & VOLUNTARY ORGANISA
SHEFFIELD CITY COUNCIL        ,CYPF                          ,33007,VSP DELIVER                   ,9120,OTHER AGENCIES                ,06/07/2016,4043013,ERS INVOICE140549        ,"1,551.00",ONBOARD SHEFFIELD SKATEPARK             ,598407,Unclassified Non Trade,OUT OF SCOPE FOR SIC MONITORIN
SHEFFIELD CITY COUNCIL        ,CYPF                          ,33007,VSP DELIVER                   ,9120,OTHER AGENCIES                ,06/07/2016,4043014,ERS INVOICE140550        ,"1,425.00",THE SHEFFIELD COLLEGE                   ,297611,,SCHOOLS & COLLEGES - FURTHER E
SHEFFIELD CITY COUNCIL        ,CYPF                          ,33007,VSP DELIVER                   ,9120,OTHER AGENCIES                ,06/07/2016,4043015,ERS INVOICE140551        ,"2,508.00",SHARKS BASKETBALL LTD                   ,540033,,SPORTS CLUBS & ASSOCIATIONS   
SHEFFIELD CITY COUNCIL        ,CYPF                          ,33007,VSP DELIVER                   ,9120,OTHER AGENCIES                ,06/07/2016,4043017,ERS INVOICE140552        ,"3,762.00",SHEFFIELD WEDNESDAY ACADEMY             ,461589,,SPORTS CLUBS & ASSOCIATIONS   
SHEFFIELD CITY COUNCIL        ,CYPF                          ,33007,VSP DELIVER                   ,9120,OTHER AGENCIES                ,06/07/2016,4043018,ERS INVOICE140553        ,"3,399.00",BOYS AND GIRLS CLUBS OF SOUTH YORKSHIRE ,431967,,YOUTH ORGANISATIONS & CENTRES 
SHEFFIELD CITY COUNCIL        ,CYPF                          ,33007,VSP DELIVER                   ,9120,OTHER AGENCIES                ,06/07/2016,4043019,ERS INVOICE140554        ,804.00,SYREETA MAKE UP ACADEMY                 ,613037,,BEAUTY SCHOOLS                
SHEFFIELD CITY COUNCIL        ,CYPF                          ,33007,VSP DELIVER                   ,9120,OTHER AGENCIES                ,06/07/2016,4043020,ERS INVOICE140555        ,"2,102.00",SYTG LTD                                ,306547,,TRAINING CENTRES              
SHEFFIELD CITY COUNCIL        ,CYPF                          ,33007,VSP DELIVER                   ,9120,OTHER AGENCIES                ,06/07/2016,4043021,ERS INVOICE140556        ,"1,373.50",WHIRLOW HALL FARM TRUST LTD             ,318019,,CHARITIES & VOLUNTARY ORGANISA
SCR COMBINED AUTHORITY        ,CA LEP                        ,30322,APPRENTICE GRANT              ,8440,FEE EXPENSES                  ,06/07/2016,4043022,ERS INVOICE140557        ,"2,000.00",J B ELECTRICAL ENGINEERING SERVICES LTD ,635537,,ELECTRICAL ENGINEERS          
SCR COMBINED AUTHORITY        ,CA LEP                        ,30322,APPRENTICE GRANT              ,8440,FEE EXPENSES                  ,06/07/2016,4043023,ERS INVOICE140558        ,"2,000.00",RCD ELECTRICAL LTD                      ,635564,,ELECTRICIANS & ELECTRICAL CONT
SCR COMBINED AUTHORITY        ,CA LEP                        ,30322,APPRENTICE GRANT              ,8440,FEE EXPENSES                  ,06/07/2016,4043024,ERS INVOICE140559        ,"1,120.00",SAVOY TYRES AUTO CENTRE                 ,635565,,TYRE DEALERS                  
SCR COMBINED AUTHORITY        ,CA LEP                        ,30322,APPRENTICE GRANT              ,8440,FEE EXPENSES                  ,06/07/2016,4043025,ERS INVOICE140560        ,"1,120.00",MCGREGOR LOGISTICS LTD                  ,635563,,ROAD HAULAGE SERVICES         
SCR COMBINED AUTHORITY        ,CA LEP                        ,30322,APPRENTICE GRANT              ,8440,FEE EXPENSES                  ,06/07/2016,4043026,ERS INVOICE140561        ,"1,120.00",MCGREGOR LOGISTICS LTD                  ,635563,,ROAD HAULAGE SERVICES         
SCR COMBINED AUTHORITY        ,CA LEP                        ,30322,APPRENTICE GRANT              ,8440,FEE EXPENSES                  ,06/07/2016,4043027,ERS INVOICE140562        ,"2,000.00",MAR-PRO INVEST HOLDING                  ,635562,,INVESTMENT COMPANIES          
SCR COMBINED AUTHORITY        ,CA LEP                        ,30322,APPRENTICE GRANT              ,8440,FEE EXPENSES                  ,06/07/2016,4043028,ERS INVOICE140563        ,"1,120.00",SPRAY-TEC SHEFFIELD LTD                 ,599157,,CAR BODY REPAIRS              
SCR COMBINED AUTHORITY        ,CA LEP                        ,30322,APPRENTICE GRANT              ,8440,FEE EXPENSES                  ,06/07/2016,4043029,ERS INVOICE140564        ,"1,120.00",JIGSAW CHILDMINDING                     ,635638,,CHILDMINDERS                  
SCR COMBINED AUTHORITY        ,CA LEP                        ,30322,APPRENTICE GRANT              ,8440,FEE EXPENSES                  ,06/07/2016,4043030,ERS INVOICE140565        ,"1,120.00",P WALKER BUTCHERS                       ,635893,,BUTCHERS                      
SCR COMBINED AUTHORITY        ,CA LEP                        ,30322,APPRENTICE GRANT              ,8440,FEE EXPENSES                  ,06/07/2016,4043032,ERS INVOICE140567        ,"1,120.00",BRINSWORTH WHITEHILL PRIMARY SCHOOL     ,594151,,SCHOOLS - LOCAL AUTHORITY     
SCR COMBINED AUTHORITY        ,CA LEP                        ,30322,APPRENTICE GRANT              ,8440,FEE EXPENSES                  ,06/07/2016,4043033,ERS INVOICE140568        ,"1,120.00",BRINSWORTH WHITEHILL PRIMARY SCHOOL     ,594151,,SCHOOLS - LOCAL AUTHORITY     
SCR COMBINED AUTHORITY        ,CA LEP                        ,30322,APPRENTICE GRANT              ,8440,FEE EXPENSES                  ,06/07/2016,4043034,ERS INVOICE140569        ,"1,120.00",BRINSWORTH WHITEHILL PRIMARY SCHOOL     ,594151,,SCHOOLS - LOCAL AUTHORITY     
SCR COMBINED AUTHORITY        ,CA LEP                        ,30322,APPRENTICE GRANT              ,8440,FEE EXPENSES                  ,06/07/2016,4043035,ERS INVOICE140570        ,"1,420.00",AIRMASTER AIR CONDITIONING LTD          ,635641,,AIR CONDITIONING & REFRIGERATI
SCR COMBINED AUTHORITY        ,CA LEP                        ,30322,APPRENTICE GRANT              ,8440,FEE EXPENSES                  ,06/07/2016,4043036,ERS INVOICE140571        ,"1,420.00",AIRMASTER AIR CONDITIONING LTD          ,635641,,AIR CONDITIONING & REFRIGERATI
SCR COMBINED AUTHORITY        ,CA LEP                        ,30322,APPRENTICE GRANT              ,8440,FEE EXPENSES                  ,06/07/2016,4043037,ERS INVOICE140572        ,"1,420.00",WARMGLOW PLUMBING AND HEATING           ,635904,,PLUMBERS                      
SCR COMBINED AUTHORITY        ,CA LEP                        ,30322,APPRENTICE GRANT              ,8440,FEE EXPENSES                  ,06/07/2016,4043038,ERS INVOICE140573        ,"1,120.00",HIGHFIELD MOTORS                        ,438325,,CAR ACCESSORIES & PARTS       
SCR COMBINED AUTHORITY        ,CA LEP                        ,30322,APPRENTICE GRANT              ,8440,FEE EXPENSES                  ,06/07/2016,4043039,ERS INVOICE140574        ,"1,120.00",MANOR & CASTLE DEV TRUST LTD - SUNSHINE ,515244,,NURSERIES & CRECHES           
SCR COMBINED AUTHORITY        ,CA LEP                        ,30322,APPRENTICE GRANT              ,8440,FEE EXPENSES                  ,06/07/2016,4043040,ERS INVOICE140575        ,"1,120.00",QUEST HAIR AND BEAUTY                   ,635688,,HAIRDRESSERS - UNISEX         
SCR COMBINED AUTHORITY        ,CA LEP                        ,30322,APPRENTICE GRANT              ,8440,FEE EXPENSES                  ,06/07/2016,4043041,ERS INVOICE140576        ,"1,420.00",BIKE REHAB LTD                          ,635945,,CYCLING                       
SCR COMBINED AUTHORITY        ,CA LEP                        ,30322,APPRENTICE GRANT              ,8440,FEE EXPENSES                  ,06/07/2016,4043042,ERS INVOICE140577        ,"1,120.00",SANDHILL PRIMARY SCHOOL                 ,571119,,SCHOOLS - LOCAL AUTHORITY     
SCR COMBINED AUTHORITY        ,CA LEP                        ,30322,APPRENTICE GRANT              ,8440,FEE EXPENSES                  ,06/07/2016,4043043,ERS INVOICE140578        ,"1,120.00",ROCKSURE SYSTEMS LTD                    ,597516,,HEALTH & SAFETY PRODUCTS      
SCR COMBINED AUTHORITY        ,CA LEP                        ,30322,APPRENTICE GRANT              ,8440,FEE EXPENSES                  ,06/07/2016,4043044,ERS INVOICE140579        ,"1,120.00",REDACTED PERSONAL DATA,553920,,CAR BODY REPAIRS              
SHEFFIELD CITY COUNCIL        ,RESOURCES                     ,90067,TREE MANAGEMENT PROG          ,1161,NC&A MAIN CONTRACT            ,06/07/2016,4031814,2399,"1,540.00",SHEFFIELD TREE CARE                     ,462546,,TREE WORK & FORESTRY SERVICES 
SHEFFIELD CITY COUNCIL        ,CYPF                          ,39404,P&TC STAFFING                 ,7140,PUBLIC TRANSPORT COSTS        ,06/07/2016,4032668,01/6427100               ,372.00,CLARITY TRAVEL MANAGEMENT               ,202987,,TRAVEL AGENTS & HOLIDAY COMPAN
SHEFFIELD CITY COUNCIL        ,CYPF                          ,39264,FIELDWORK BUSINESS SUPPORT    ,5750,TRAINING EXPENDITURE          ,06/07/2016,4032870,201836,"1,470.00",DYSLEXIA ACTION                         ,372632,,DYSLEXIA INFORMATION & SUPPORT
SHEFFIELD CITY COUNCIL        ,CYPF                          ,90790,RAINBOW FORGE -HME            ,1148,SURVEY COSTS                  ,06/07/2016,4038408,I870/QE/0516/SCC001      ,"1,450.00",QUALSURV INTERNATIONAL LTD              ,569165,,ASBESTOS SURVEYS & REMOVALS   
SHEFFIELD CITY COUNCIL        ,PLACE                         ,97414,ARBOURTHORNE 5M'S REFURB      ,1143,COMPENSATION                  ,06/07/2016,4039297,907015,379.06,PICKFORDS                               ,573763,,REMOVALS - OVERSEAS           
SHEFFIELD CITY COUNCIL        ,COMMUNITIES                   ,42017,TRANSPORT CONTRACT            ,7060,EXTERNAL VEHICLE HIRE         ,06/07/2016,4039306,37181,519.00,SHEFFIELD COMMUNITY TRANSPORT (WORKSHOP),297061,,CHARITIES & VOLUNTARY ORGANISA
SHEFFIELD CITY COUNCIL        ,COMMUNITIES                   ,42017,TRANSPORT CONTRACT            ,7060,EXTERNAL VEHICLE HIRE         ,06/07/2016,4039307,37151,562.00,SHEFFIELD COMMUNITY TRANSPORT (WORKSHOP),297061,,CHARITIES & VOLUNTARY ORGANISA
SHEFFIELD CITY COUNCIL        ,COMMUNITIES                   ,42017,TRANSPORT CONTRACT            ,7060,EXTERNAL VEHICLE HIRE         ,06/07/2016,4039308,42877,269.60,CITIZENSHIP FIRST                       ,329379,,CHARITIES & VOLUNTARY ORGANISA
SHEFFIELD CITY COUNCIL        ,COMMUNITIES                   ,49858,MATERIALS FUND                ,8080,LIBRARY MATERIALS             ,06/07/2016,4039318,696,"7,500.00",HOUSE OF IMAGES                         ,444584,,COMPUTER SYSTEMS & SOFTWARE (D
SHEFFIELD CITY COUNCIL        ,CYPF                          ,39514,INDEPENDENT PLACEMENTS        ,9310,PARENTAL OR TRIBUNAL PLACEMENT,06/07/2016,4040039,14-Jun-16,949.00,BETHANY SCHOOL                          ,339961,,SCHOOLS - LOCAL AUTHORITY     
SHEFFIELD CITY COUNCIL        ,CYPF                          ,39514,INDEPENDENT PLACEMENTS        ,9310,PARENTAL OR TRIBUNAL PLACEMENT,06/07/2016,4040041,14-Jun-16,427.00,BETHANY SCHOOL                          ,339961,,SCHOOLS - LOCAL AUTHORITY     
SHEFFIELD CITY COUNCIL        ,POLICY PERFORMANCE AND COMMS  ,18003,COMMUNICATIONS                ,8550,OTHER SERVICES                ,06/07/2016,4040050,INV180040                ,345.53,A PINDER LTD                            ,202627,,COPYING & DUPLICATING SERVICES
SHEFFIELD CITY COUNCIL        ,CYPF                          ,39515,SEN ASSESSMENT & PLACEMENT TEA,8440,FEE EXPENSES                  ,06/07/2016,4040450,140616-03                ,408.50,COLLIS MEDIATION LTD                    ,620707,,MEDIATION                     
SHEFFIELD CITY COUNCIL        ,CYPF                          ,39515,SEN ASSESSMENT & PLACEMENT TEA,8440,FEE EXPENSES                  ,06/07/2016,4040451,170616-01                ,395.00,COLLIS MEDIATION LTD                    ,620707,,MEDIATION                     
SCR COMBINED AUTHORITY        ,CA LEP                        ,30105,CORE PERFORMANCE TEAM         ,8490,OTHER PROFESSIONAL FEES       ,06/07/2016,4040476,229760564,890.48,REED EMPLOYMENT                         ,317819,,EMPLOYMENT & RECRUITMENT AGENC
SHEFFIELD CITY COUNCIL        ,CYPF                          ,33114,POST 16 LDD DELIVERY 15 16    ,9120,OTHER AGENCIES                ,06/07/2016,4041091,MWG09                    ,500.00,THE MUSICAL WORKS                       ,368576,,COMMUNITY PROJECTS            
SHEFFIELD CITY COUNCIL        ,CYPF                          ,33009,DISADVANTAGED AREA FUNDING    ,9120,OTHER AGENCIES                ,06/07/2016,4041162,12256,"8,865.00",FIRST STEP TRUST                        ,580714,,CHARITIES & VOLUNTARY ORGANISA
SHEFFIELD CITY COUNCIL        ,POLICY PERFORMANCE AND COMMS  ,18003,COMMUNICATIONS                ,8550,OTHER SERVICES                ,06/07/2016,4041270,6040,610.00,NEW LEAF SIGN & DESIGN LTD              ,549524,,SIGN & POSTER WRITERS         
SHEFFIELD CITY COUNCIL        ,COMMUNITIES                   ,47009,MINOR WORKS & ADAPTATIONS     ,6030,REPAIRS AND MTCE - RESPONSIVE ,06/07/2016,4041413,9404,280.00,SIMPSON PATTERNS T/A T & T CONSTRUCTION ,208772,,CONSTRUCTION CONTRACTORS - GEN
SHEFFIELD CITY COUNCIL        ,POLICY PERFORMANCE AND COMMS  ,18003,COMMUNICATIONS                ,8550,OTHER SERVICES                ,06/07/2016,4041441,5914,540.53,NEW LEAF SIGN & DESIGN LTD              ,549524,,SIGN & POSTER WRITERS         
SHEFFIELD CITY COUNCIL        ,CYPF                          ,33114,POST 16 LDD DELIVERY 15 16    ,9120,OTHER AGENCIES                ,06/07/2016,4041445,SI-1541                  ,"1,656.20",MY CHOICE LOCAL LTD                     ,618423,,COMMUNITY NETWORKS            
SHEFFIELD CITY COUNCIL        ,CYPF                          ,33114,POST 16 LDD DELIVERY 15 16    ,9120,OTHER AGENCIES                ,06/07/2016,4041446,SI-1540                  ,"3,785.20",MY CHOICE LOCAL LTD                     ,618423,,COMMUNITY NETWORKS            
SHEFFIELD CITY COUNCIL        ,CYPF                          ,33114,POST 16 LDD DELIVERY 15 16    ,9120,OTHER AGENCIES                ,06/07/2016,4041447,SI-1542                  ,"3,150.00",MY CHOICE LOCAL LTD                     ,618423,,COMMUNITY NETWORKS            
SHEFFIELD CITY COUNCIL        ,CYPF                          ,33114,POST 16 LDD DELIVERY 15 16    ,9120,OTHER AGENCIES                ,06/07/2016,4041448,SI-1543                  ,328.80,MY CHOICE LOCAL LTD                     ,618423,,COMMUNITY NETWORKS            
SHEFFIELD CITY COUNCIL        ,POLICY PERFORMANCE AND COMMS  ,18003,COMMUNICATIONS                ,8550,OTHER SERVICES                ,06/07/2016,4041450,5880,314.31,NEW LEAF SIGN & DESIGN LTD              ,549524,,SIGN & POSTER WRITERS         
SHEFFIELD CITY COUNCIL        ,POLICY PERFORMANCE AND COMMS  ,18003,COMMUNICATIONS                ,8550,OTHER SERVICES                ,06/07/2016,4041452,5894,274.92,NEW LEAF SIGN & DESIGN LTD              ,549524,,SIGN & POSTER WRITERS         
SHEFFIELD CITY COUNCIL        ,POLICY PERFORMANCE AND COMMS  ,18003,COMMUNICATIONS                ,8550,OTHER SERVICES                ,06/07/2016,4041453,5895,949.17,NEW LEAF SIGN & DESIGN LTD              ,549524,,SIGN & POSTER WRITERS         
SHEFFIELD CITY COUNCIL        ,RESOURCES                     ,90067,TREE MANAGEMENT PROG          ,1161,NC&A MAIN CONTRACT            ,06/07/2016,4041703,1876,398.00,DRONFIELD TREE SERVICES LTD             ,405525,,TREE WORK & FORESTRY SERVICES 
SHEFFIELD CITY COUNCIL        ,COMMUNITIES                   ,49363,OLDER PERSONS LIVING          ,8010,EQUIPMENT PURCHASE AND REPAIR ,06/07/2016,4041764,GI00025147               ,264.00,T L KILLI'S                             ,208807,,CLEANING MATERIALS & EQUIPMENT
SHEFFIELD CITY COUNCIL        ,COMMUNITIES                   ,49858,MATERIALS FUND                ,8080,LIBRARY MATERIALS             ,06/07/2016,4041765,19232,490.00,SHEFFIELD ROYAL SOCIETY FOR THE BLIND   ,306116,,CHARITIES & VOLUNTARY ORGANISA
SHEFFIELD CITY COUNCIL        ,CYPF                          ,33107,POST 16 HIGH NEEDS SEND       ,9120,OTHER AGENCIES                ,06/07/2016,4041767,16652,"2,925.07",DONCASTER DEAF TRUST                    ,564762,,CHARITIES & VOLUNTARY ORGANISA
SHEFFIELD CITY COUNCIL        ,CYPF                          ,33114,POST 16 LDD DELIVERY 15 16    ,9120,OTHER AGENCIES                ,06/07/2016,4041771,30027884,"5,238.75",THE SHEFFIELD COLLEGE                   ,297611,,SCHOOLS & COLLEGES - FURTHER E
SHEFFIELD CITY COUNCIL        ,CYPF                          ,33114,POST 16 LDD DELIVERY 15 16    ,9120,OTHER AGENCIES                ,06/07/2016,4041774,30028029,"5,238.75",THE SHEFFIELD COLLEGE                   ,297611,,SCHOOLS & COLLEGES - FURTHER E
SHEFFIELD CITY COUNCIL        ,PLACE                         ,24410,THE MOOR INDOOR MARKET        ,8060,MATERIALS AND SUPPLIES GENERAL,06/07/2016,4041779,430444130,481.48,NEWEY & EYRE LTD                        ,207097,,ELECTRICAL WHOLESALERS        
SHEFFIELD CITY COUNCIL        ,PLACE                         ,28100,BUSINESS GROWTH TEAM          ,7140,PUBLIC TRANSPORT COSTS        ,06/07/2016,4041780,01/6487029               ,568.35,CLARITY TRAVEL MANAGEMENT               ,202987,,TRAVEL AGENTS & HOLIDAY COMPAN
SHEFFIELD CITY COUNCIL        ,PLACE                         ,22055,CDS SCHEME                    ,8350,MISCELLANEOUS EXPENSES        ,06/07/2016,4041788,SL2016204                ,822.50,SILCOCK LEEDHAM CONSULTING ENGINEERS LT ,594783,,ENGINEERS - CONSULTING        
SCR COMBINED AUTHORITY        ,CA LEP                        ,30100,LEP CORE                      ,8460,CONSULTANTS FEES              ,06/07/2016,4041817,11658,"2,305.00",IPB COMMUNICATIONS LTD                  ,634389,,PUBLIC RELATIONS CONSULTANTS  
SHEFFIELD CITY COUNCIL        ,CYPF                          ,39513,CITY WIDE SEN                 ,9050,OTHER LOCAL AUTHORITIES       ,06/07/2016,4041845,SIN001217                ,"1,025.50",DRONFIELD HENRY FANSHAWE SCHOOL         ,633511,,SCHOOLS - LOCAL AUTHORITY     
SHEFFIELD CITY COUNCIL        ,CYPF                          ,39513,CITY WIDE SEN                 ,9050,OTHER LOCAL AUTHORITIES       ,06/07/2016,4041846,SIN001218                ,"2,135.00",DRONFIELD HENRY FANSHAWE SCHOOL         ,633511,,SCHOOLS - LOCAL AUTHORITY     
SHEFFIELD CITY COUNCIL        ,COMMUNITIES                   ,49142,RESPONSIVE HM&E               ,6020,REPAIRS AND MTCE - PROGRAMMED ,06/07/2016,4042256,BM6709I                  ,"1,160.00",ASPECT CONTRACTS LTD                    ,618208,,ASBESTOS SURVEYS & REMOVALS   
SHEFFIELD CITY COUNCIL        ,COMMUNITIES                   ,49142,RESPONSIVE HM&E               ,6020,REPAIRS AND MTCE - PROGRAMMED ,06/07/2016,4042257,BM6648I                  ,785.00,ASPECT CONTRACTS LTD                    ,618208,,ASBESTOS SURVEYS & REMOVALS   
SHEFFIELD CITY COUNCIL        ,COMMUNITIES                   ,49142,RESPONSIVE HM&E               ,6020,REPAIRS AND MTCE - PROGRAMMED ,06/07/2016,4042259,BM6711I                  ,280.00,ASPECT CONTRACTS LTD                    ,618208,,ASBESTOS SURVEYS & REMOVALS   
SHEFFIELD CITY COUNCIL        ,PLACE                         ,24410,THE MOOR INDOOR MARKET        ,8020,EQUIPMENT LEASE/ RENTAL/ HIRE ,06/07/2016,4042273,635633,280.00,BANNER PLANT  LTD                       ,203248,,PLANT & MACHINERY HIRE & LEASI
SHEFFIELD CITY COUNCIL        ,POLICY PERFORMANCE AND COMMS  ,18003,COMMUNICATIONS                ,8550,OTHER SERVICES                ,06/07/2016,4042285,11087,817.50,THE PRINT AND DESIGN FACTORY LTD        ,207663,,PRINTERS                      
SHEFFIELD CITY COUNCIL        ,RESOURCES                     ,15138,GENERAL ADMINISTRATION        ,6030,REPAIRS AND MTCE - RESPONSIVE ,06/07/2016,4042286,125997,268.00,NEWGATE (NEWARK) LTD                    ,207099,,GATE MNFRS                    
SHEFFIELD CITY COUNCIL        ,PLACE                         ,94050,SHEFFIELD RETAIL QUARTER 2    ,1194,OTHER FEES                    ,06/07/2016,4042287,26457,"7,300.00",WESSEX ARCHAEOLOGY                      ,527533,,ARCHAEOLOGISTS                
SCR COMBINED AUTHORITY        ,CA LEP                        ,30201,INWARD INVESTMENT             ,8240,CONFERENCE EXPENSES           ,06/07/2016,4042292,18180843,749.00,GLOBAL INSIGHT CONFERENCES LTD          ,623389,,CONFERENCE SERVICES           
SHEFFIELD CITY COUNCIL        ,COMMUNITIES                   ,42075,VOIDS & VACANCY COSTS         ,9190,EX POOL CLIENTS               ,06/07/2016,4042394,SI05/00013399            ,"8,041.18",DIMENSIONS (UK) LTD (SP)                ,365809,,DISABILITY & SPECIAL NEEDS - S
SHEFFIELD CITY COUNCIL        ,COMMUNITIES                   ,42076,TUPE COSTS                    ,9190,EX POOL CLIENTS               ,06/07/2016,4042395,SI05/00013400            ,"5,829.60",DIMENSIONS (UK) LTD (SP)                ,365809,,DISABILITY & SPECIAL NEEDS - S
SHEFFIELD CITY COUNCIL        ,PLACE                         ,25094,PARKS OPS SOUTH & SOUTH EAST  ,8550,OTHER SERVICES                ,06/07/2016,4042401,ASF/5888/SCC             ,360.00,AVANTI STEEL FABRICATIONS               ,203151,,STEEL FABRICATORS & ERECTORS  
SHEFFIELD CITY COUNCIL        ,CYPF                          ,32046,OUTDOOR EDUCATION             ,8130,CATERING SUPPLIES             ,06/07/2016,4042419,3576,"1,230.00",HAZEL'S QUALITY CATERING LTD            ,300944,,CATERERS                      
SHEFFIELD CITY COUNCIL        ,CYPF                          ,32046,OUTDOOR EDUCATION             ,8130,CATERING SUPPLIES             ,06/07/2016,4042420,3575,987.00,HAZEL'S QUALITY CATERING LTD            ,300944,,CATERERS                      
SHEFFIELD CITY COUNCIL        ,CYPF                          ,32046,OUTDOOR EDUCATION             ,6090,WASTE DISPOSAL                ,06/07/2016,4042421,63908317,459.53,PHS GROUP PLC                           ,207528,,TOWEL SUPPLY & WASHROOM SERVIC
SHEFFIELD CITY COUNCIL        ,CYPF                          ,39282,CARE PROCEEDINGS (LEGAL FEES) ,8470,LEGAL FEES                    ,06/07/2016,4042429,DSP01989                 ,451.04,PARSONS MARSHALL PSYCHOLOGY             ,623677,,PSYCHOLOGISTS                 
SHEFFIELD CITY COUNCIL        ,PLACE                         ,25001,GRAVES PARK - ANIMAL FARM INC ,8060,MATERIALS AND SUPPLIES GENERAL,06/07/2016,4042433,183711,719.36,WM EYRE & SONS                          ,209575,,AGRICULTURAL MERCHANTS        
SHEFFIELD CITY COUNCIL        ,PLACE                         ,25001,GRAVES PARK - ANIMAL FARM INC ,8060,MATERIALS AND SUPPLIES GENERAL,06/07/2016,4042434,183710,522.61,WM EYRE & SONS                          ,209575,,AGRICULTURAL MERCHANTS        
SHEFFIELD CITY COUNCIL        ,PLACE                         ,25043,MILLHOUSES PARK (CITY)        ,8550,OTHER SERVICES                ,06/07/2016,4042441,ASF/5889/SCC             ,805.00,AVANTI STEEL FABRICATIONS               ,203151,,STEEL FABRICATORS & ERECTORS  
SHEFFIELD CITY COUNCIL        ,PLACE                         ,23014,SHEFFIELD TRADING STANDARDS   ,8270,SUBSCRIPTIONS                 ,06/07/2016,4042538,616783,799.00,CREDITSAFE UK LIMITED                   ,420927,,CREDIT REFERENCE AGENCIES     
SHEFFIELD CITY COUNCIL        ,CYPF                          ,39047,ALDINE HOUSE                  ,6030,REPAIRS AND MTCE - RESPONSIVE ,06/07/2016,4042843,SI163210                 ,"1,744.21",ALLGOOD PLC                             ,202874,,ARCHITECTURAL IRONMONGERS     
SHEFFIELD CITY COUNCIL        ,CYPF                          ,39047,ALDINE HOUSE                  ,5750,TRAINING EXPENDITURE          ,06/07/2016,4042850,CUKI0008999              ,"4,400.00",CRISIS PREVENTION INSTITUTE             ,328692,,TRAINING CONSULTANTS          
SCR COMBINED AUTHORITY        ,CA LEP                        ,30105,CORE PERFORMANCE TEAM         ,8250,MARKETING EXPENSES            ,06/07/2016,4042877,11662,"1,800.00",IPB COMMUNICATIONS LTD                  ,634389,,PUBLIC RELATIONS CONSULTANTS  
SHEFFIELD CITY COUNCIL        ,PLACE                         ,25092,PARKS OPS EAST & NORTH EAST   ,7020,VEHICLE FUEL COSTS            ,06/07/2016,4042888,6533140,273.93,CERTAS ENERGY UK LTD                    ,490002,,OIL FUEL DISTRIBUTORS         
SHEFFIELD CITY COUNCIL        ,PLACE                         ,25095,PARKS OPERATIONS WEST         ,8060,MATERIALS AND SUPPLIES GENERAL,06/07/2016,4042929,7592,356.80,WALLGATE LTD                            ,374805,,HYGIENE & SANITARY APPLIANCE M
SHEFFIELD CITY COUNCIL        ,PLACE                         ,25092,PARKS OPS EAST & NORTH EAST   ,7010,ROUTINE VEHICLE REPAIR & MTCE ,06/07/2016,4042931,413832,898.51,PLATTS HARRIS AGRICULTURAL GROUP        ,343880,,MACHINERY - INDUSTRIAL & COMME
SHEFFIELD CITY COUNCIL        ,PLACE                         ,25094,PARKS OPS SOUTH & SOUTH EAST  ,8550,OTHER SERVICES                ,06/07/2016,4042946,1758,480.00,PAUL DAY COUNTRYSIDE SERVICES           ,317618,,TREE WORK & FORESTRY SERVICES 
SHEFFIELD CITY COUNCIL        ,CYPF                          ,39282,CARE PROCEEDINGS (LEGAL FEES) ,8470,LEGAL FEES                    ,06/07/2016,4042958,985258,600.00,REDACTED PERSONAL DATA,504926,,BARRISTERS                    
SHEFFIELD CITY COUNCIL        ,RESOURCES                     ,15133,STANIFORTH ROAD WORKSHOPS     ,7010,ROUTINE VEHICLE REPAIR & MTCE ,06/07/2016,4042820,101131703,"3,115.00",ANDREW PAGE 1917 LTD                    ,437983,,CAR ACCESSORIES & PARTS       
SHEFFIELD CITY COUNCIL        ,COMMUNITIES                   ,46039,ADULT SOCIAL CARE PURCHASING  ,9250,INDEPENDENT DAY CARE          ,06/07/2016,4042676,9868,320.00,HEELEY CITY FARM                        ,301277,,CHARITIES & VOLUNTARY ORGANISA
SHEFFIELD CITY COUNCIL        ,COMMUNITIES                   ,42034,PURCHASING LEARNING DISABILITI,9250,INDEPENDENT DAY CARE          ,06/07/2016,4042677,9869,480.00,HEELEY CITY FARM                        ,301277,,CHARITIES & VOLUNTARY ORGANISA
SHEFFIELD CITY COUNCIL        ,COMMUNITIES                   ,42034,PURCHASING LEARNING DISABILITI,9250,INDEPENDENT DAY CARE          ,06/07/2016,4042682,9885,480.00,HEELEY CITY FARM                        ,301277,,CHARITIES & VOLUNTARY ORGANISA
SHEFFIELD CITY COUNCIL        ,COMMUNITIES                   ,42034,PURCHASING LEARNING DISABILITI,9250,INDEPENDENT DAY CARE          ,06/07/2016,4042683,9886,480.00,HEELEY CITY FARM                        ,301277,,CHARITIES & VOLUNTARY ORGANISA
SHEFFIELD CITY COUNCIL        ,COMMUNITIES                   ,46039,ADULT SOCIAL CARE PURCHASING  ,9250,INDEPENDENT DAY CARE          ,06/07/2016,4042686,9902,480.00,HEELEY CITY FARM                        ,301277,,CHARITIES & VOLUNTARY ORGANISA
SHEFFIELD CITY COUNCIL        ,COMMUNITIES                   ,42034,PURCHASING LEARNING DISABILITI,9250,INDEPENDENT DAY CARE          ,06/07/2016,4042689,9909,480.00,HEELEY CITY FARM                        ,301277,,CHARITIES & VOLUNTARY ORGANISA
SHEFFIELD CITY COUNCIL        ,COMMUNITIES                   ,42034,PURCHASING LEARNING DISABILITI,9250,INDEPENDENT DAY CARE          ,06/07/2016,4042690,9913,480.00,HEELEY CITY FARM                        ,301277,,CHARITIES & VOLUNTARY ORGANISA
SHEFFIELD CITY COUNCIL        ,COMMUNITIES                   ,42034,PURCHASING LEARNING DISABILITI,9250,INDEPENDENT DAY CARE          ,06/07/2016,4042693,SDS-AS-2378              ,675.00,ST WILFRID'S CENTRE                     ,537536,,CHARITIES & VOLUNTARY ORGANISA
SHEFFIELD CITY COUNCIL        ,COMMUNITIES                   ,44001,PURCHASING                    ,9250,INDEPENDENT DAY CARE          ,06/07/2016,4042694,SDS-AT-2379              ,300.00,ST WILFRID'S CENTRE                     ,537536,,CHARITIES & VOLUNTARY ORGANISA
SHEFFIELD CITY COUNCIL        ,COMMUNITIES                   ,42034,PURCHASING LEARNING DISABILITI,9250,INDEPENDENT DAY CARE          ,06/07/2016,4042697,SDS-GP-2384              ,630.00,ST WILFRID'S CENTRE                     ,537536,,CHARITIES & VOLUNTARY ORGANISA
SHEFFIELD CITY COUNCIL        ,COMMUNITIES                   ,46039,ADULT SOCIAL CARE PURCHASING  ,9250,INDEPENDENT DAY CARE          ,06/07/2016,4042699,SDS-JB-2392              ,360.00,ST WILFRID'S CENTRE                     ,537536,,CHARITIES & VOLUNTARY ORGANISA
SHEFFIELD CITY COUNCIL        ,COMMUNITIES                   ,44001,PURCHASING                    ,9250,INDEPENDENT DAY CARE          ,06/07/2016,4042700,SDS-JM-2390              ,360.00,ST WILFRID'S CENTRE                     ,537536,,CHARITIES & VOLUNTARY ORGANISA
SHEFFIELD CITY COUNCIL        ,COMMUNITIES                   ,46039,ADULT SOCIAL CARE PURCHASING  ,9250,INDEPENDENT DAY CARE          ,06/07/2016,4042703,SDS-PB-2408              ,420.00,ST WILFRID'S CENTRE                     ,537536,,CHARITIES & VOLUNTARY ORGANISA
SHEFFIELD CITY COUNCIL        ,COMMUNITIES                   ,42034,PURCHASING LEARNING DISABILITI,9250,INDEPENDENT DAY CARE          ,06/07/2016,4042704,SDS-PS-2410              ,360.00,ST WILFRID'S CENTRE                     ,537536,,CHARITIES & VOLUNTARY ORGANISA
SHEFFIELD CITY COUNCIL        ,COMMUNITIES                   ,44001,PURCHASING                    ,9190,CITYWIDE SPOT                 ,06/07/2016,4042708,1268,"1,973.76",SUPPORTED HOUSING SERVICES              ,294949,,HOSTELS                       
SHEFFIELD CITY COUNCIL        ,COMMUNITIES                   ,46039,ADULT SOCIAL CARE PURCHASING  ,9190,CITYWIDE SPOT                 ,06/07/2016,4042709,1269,"1,504.44",SUPPORTED HOUSING SERVICES              ,294949,,HOSTELS                       
SHEFFIELD CITY COUNCIL        ,COMMUNITIES                   ,46039,ADULT SOCIAL CARE PURCHASING  ,9190,CITYWIDE SPOT                 ,06/07/2016,4042710,1270,"1,504.44",SUPPORTED HOUSING SERVICES              ,294949,,HOSTELS                       
SHEFFIELD CITY COUNCIL        ,COMMUNITIES                   ,42034,PURCHASING LEARNING DISABILITI,9190,CITYWIDE SPOT                 ,06/07/2016,4042711,1271,"1,560.16",SUPPORTED HOUSING SERVICES              ,294949,,HOSTELS                       
SHEFFIELD CITY COUNCIL        ,COMMUNITIES                   ,42034,PURCHASING LEARNING DISABILITI,9190,CITYWIDE SPOT                 ,06/07/2016,4042712,9919,480.00,HEELEY CITY FARM                        ,301277,,CHARITIES & VOLUNTARY ORGANISA
SHEFFIELD CITY COUNCIL        ,COMMUNITIES                   ,42034,PURCHASING LEARNING DISABILITI,9190,CITYWIDE SPOT                 ,06/07/2016,4042714,H001037                  ,279.00,REDACTED PERSONAL DATA,558736,Social Community Care,CAREFIRST DIRECT PAYMENTS     
SHEFFIELD CITY COUNCIL        ,COMMUNITIES                   ,42034,PURCHASING LEARNING DISABILITI,9190,CITYWIDE SPOT                 ,06/07/2016,4042715,H001145.                 ,251.10,REDACTED PERSONAL DATA,558736,Social Community Care,CAREFIRST DIRECT PAYMENTS     
SHEFFIELD CITY COUNCIL        ,COMMUNITIES                   ,42034,PURCHASING LEARNING DISABILITI,9190,CITYWIDE SPOT                 ,06/07/2016,4042716,1272,"1,560.16",SUPPORTED HOUSING SERVICES              ,294949,,HOSTELS                       
SHEFFIELD CITY COUNCIL        ,COMMUNITIES                   ,46039,ADULT SOCIAL CARE PURCHASING  ,9190,CITYWIDE SPOT                 ,06/07/2016,4042718,LOXOLO021058             ,350.00,SIGNATURE AT LOXLEY PARK (OPERATIONS) LT,514730,,RESIDENTIAL CARE HOMES        
SHEFFIELD CITY COUNCIL        ,COMMUNITIES                   ,42034,PURCHASING LEARNING DISABILITI,9190,CITYWIDE SPOT                 ,06/07/2016,4042719,2158A                    ,563.80,REDACTED PERSONAL DATA,569157,,HOME CARE SERVICES            
SHEFFIELD CITY COUNCIL        ,COMMUNITIES                   ,42034,PURCHASING LEARNING DISABILITI,9190,CITYWIDE SPOT                 ,06/07/2016,4042720,SIMI094111               ,"2,311.32",REDACTED PERSONAL DATA,524237,,RESIDENTIAL CARE HOMES        
SHEFFIELD CITY COUNCIL        ,COMMUNITIES                   ,42034,PURCHASING LEARNING DISABILITI,9190,CITYWIDE SPOT                 ,06/07/2016,4042723,3269,"2,762.63",ABBEYCARE & NURSING                     ,518411,,HOME CARE SERVICES            
SHEFFIELD CITY COUNCIL        ,COMMUNITIES                   ,44001,PURCHASING                    ,9190,CITYWIDE SPOT                 ,06/07/2016,4042724,1263.DK                  ,"1,114.40",SUPPORTED HOUSING SERVICES              ,294949,,HOSTELS                       
SHEFFIELD CITY COUNCIL        ,COMMUNITIES                   ,42034,PURCHASING LEARNING DISABILITI,9240,SUPPORTED LIVING CARE         ,06/07/2016,4042725,3279,"4,164.96",ABBEYCARE & NURSING                     ,518411,,HOME CARE SERVICES            
SHEFFIELD CITY COUNCIL        ,COMMUNITIES                   ,44001,PURCHASING                    ,9190,CITYWIDE SPOT                 ,06/07/2016,4042726,1263/2                   ,"1,114.40",SUPPORTED HOUSING SERVICES              ,294949,,HOSTELS                       
SHEFFIELD CITY COUNCIL        ,COMMUNITIES                   ,44001,PURCHASING                    ,9190,CITYWIDE SPOT                 ,06/07/2016,4042727,1263,"1,114.40",SUPPORTED HOUSING SERVICES              ,294949,,HOSTELS                       
SHEFFIELD CITY COUNCIL        ,COMMUNITIES                   ,44001,PURCHASING                    ,9190,CITYWIDE SPOT                 ,06/07/2016,4042728,1264,"1,114.40",SUPPORTED HOUSING SERVICES              ,294949,,HOSTELS                       
SHEFFIELD CITY COUNCIL        ,COMMUNITIES                   ,44001,PURCHASING                    ,9190,CITYWIDE SPOT                 ,06/07/2016,4042729,1267,"1,973.76",SUPPORTED HOUSING SERVICES              ,294949,,HOSTELS                       
SHEFFIELD CITY COUNCIL        ,CYPF                          ,39284,INDEPENDENT FOSTER PLACE U16  ,9270,INDEPENDENT FOSTERING         ,06/07/2016,4042563,061616070CS              ,"3,319.96",REDACTED PERSONAL DATA,366456,,ADOPTION & FOSTERING          
SHEFFIELD CITY COUNCIL        ,CYPF                          ,39284,INDEPENDENT FOSTER PLACE U16  ,9270,INDEPENDENT FOSTERING         ,06/07/2016,4042564,630195905,"2,878.96",REDACTED PERSONAL DATA,328618,,ADOPTION & FOSTERING          
SHEFFIELD CITY COUNCIL        ,CYPF                          ,39284,INDEPENDENT FOSTER PLACE U16  ,9270,INDEPENDENT FOSTERING         ,06/07/2016,4042565,630195910,454.00,REDACTED PERSONAL DATA,328618,,ADOPTION & FOSTERING          
SHEFFIELD CITY COUNCIL        ,CYPF                          ,39284,INDEPENDENT FOSTER PLACE U16  ,9270,INDEPENDENT FOSTERING         ,06/07/2016,4042566,630195911,"2,626.00",REDACTED PERSONAL DATA,328618,,ADOPTION & FOSTERING          
SHEFFIELD CITY COUNCIL        ,CYPF                          ,39405,SEMI INDEPENDENT LIVING       ,9270,INDEPENDENT FOSTERING         ,06/07/2016,4042567,184934,829.99,REDACTED PERSONAL DATA,349291,,ADOPTION & FOSTERING          
SHEFFIELD CITY COUNCIL        ,CYPF                          ,39284,INDEPENDENT FOSTER PLACE U16  ,9270,INDEPENDENT FOSTERING         ,06/07/2016,4042568,NFA 163911               ,"3,060.12",REDACTED PERSONAL DATA,432914,,ADOPTION & FOSTERING          
SHEFFIELD CITY COUNCIL        ,CYPF                          ,39284,INDEPENDENT FOSTER PLACE U16  ,9270,INDEPENDENT FOSTERING         ,06/07/2016,4042569,NFA 163912               ,"2,966.04",REDACTED PERSONAL DATA,432914,,ADOPTION & FOSTERING          
SHEFFIELD CITY COUNCIL        ,CYPF                          ,39284,INDEPENDENT FOSTER PLACE U16  ,9270,INDEPENDENT FOSTERING         ,06/07/2016,4042570,NFA 163913               ,"2,791.60",REDACTED PERSONAL DATA,432914,,ADOPTION & FOSTERING          
SHEFFIELD CITY COUNCIL        ,CYPF                          ,39284,INDEPENDENT FOSTER PLACE U16  ,9270,INDEPENDENT FOSTERING         ,06/07/2016,4042571,NFA 163914               ,"2,966.04",REDACTED PERSONAL DATA,432914,,ADOPTION & FOSTERING          
SHEFFIELD CITY COUNCIL        ,CYPF                          ,39284,INDEPENDENT FOSTER PLACE U16  ,9270,INDEPENDENT FOSTERING         ,06/07/2016,4042572,NFA 163915               ,"3,120.04",REDACTED PERSONAL DATA,432914,,ADOPTION & FOSTERING          
SHEFFIELD CITY COUNCIL        ,CYPF                          ,39405,SEMI INDEPENDENT LIVING       ,9270,INDEPENDENT FOSTERING         ,06/07/2016,4042573,NFA 163918               ,"2,785.75",REDACTED PERSONAL DATA,432914,,ADOPTION & FOSTERING          
SHEFFIELD CITY COUNCIL        ,CYPF                          ,39284,INDEPENDENT FOSTER PLACE U16  ,9270,INDEPENDENT FOSTERING         ,06/07/2016,4042574,NFA 163921               ,"2,444.40",REDACTED PERSONAL DATA,432914,,ADOPTION & FOSTERING          
SHEFFIELD CITY COUNCIL        ,CYPF                          ,39284,INDEPENDENT FOSTER PLACE U16  ,9270,INDEPENDENT FOSTERING         ,06/07/2016,4042575,184935,794.99,REDACTED PERSONAL DATA,349291,,ADOPTION & FOSTERING          
SHEFFIELD CITY COUNCIL        ,CYPF                          ,39284,INDEPENDENT FOSTER PLACE U16  ,9270,INDEPENDENT FOSTERING         ,06/07/2016,4042576,NFA 163923               ,407.40,REDACTED PERSONAL DATA,432914,,ADOPTION & FOSTERING          
SHEFFIELD CITY COUNCIL        ,CYPF                          ,39405,SEMI INDEPENDENT LIVING       ,9270,INDEPENDENT FOSTERING         ,06/07/2016,4042577,NFA 163924               ,334.29,REDACTED PERSONAL DATA,432914,,ADOPTION & FOSTERING          
SHEFFIELD CITY COUNCIL        ,CYPF                          ,39284,INDEPENDENT FOSTER PLACE U16  ,9270,INDEPENDENT FOSTERING         ,06/07/2016,4042578,25365,"3,084.20",REDACTED PERSONAL DATA,521940,,ADOPTION & FOSTERING          
SHEFFIELD CITY COUNCIL        ,CYPF                          ,39284,INDEPENDENT FOSTER PLACE U16  ,9270,INDEPENDENT FOSTERING         ,06/07/2016,4042579,06169335CR               ,"3,703.00",REDACTED PERSONAL DATA,366456,,ADOPTION & FOSTERING          
SHEFFIELD CITY COUNCIL        ,CYPF                          ,39284,INDEPENDENT FOSTER PLACE U16  ,9270,INDEPENDENT FOSTERING         ,06/07/2016,4042580,2658,"3,108.00",REDACTED PERSONAL DATA,329839,,ADOPTION & FOSTERING          
SHEFFIELD CITY COUNCIL        ,CYPF                          ,39284,INDEPENDENT FOSTER PLACE U16  ,9270,INDEPENDENT FOSTERING         ,06/07/2016,4042581,27656,"3,014.76",REDACTED PERSONAL DATA,329839,,ADOPTION & FOSTERING          
SHEFFIELD CITY COUNCIL        ,CYPF                          ,39284,INDEPENDENT FOSTER PLACE U16  ,9270,INDEPENDENT FOSTERING         ,06/07/2016,4042582,27657,"3,014.76",REDACTED PERSONAL DATA,329839,,ADOPTION & FOSTERING          
SHEFFIELD CITY COUNCIL        ,CYPF                          ,39284,INDEPENDENT FOSTER PLACE U16  ,9270,INDEPENDENT FOSTERING         ,06/07/2016,4042583,27659,"3,108.00",REDACTED PERSONAL DATA,329839,,ADOPTION & FOSTERING          
SHEFFIELD CITY COUNCIL        ,CYPF                          ,39284,INDEPENDENT FOSTER PLACE U16  ,9270,INDEPENDENT FOSTERING         ,06/07/2016,4042584,27660,"3,014.76",REDACTED PERSONAL DATA,329839,,ADOPTION & FOSTERING          
SHEFFIELD CITY COUNCIL        ,CYPF                          ,39006,UASC/ASYLUM 16-17             ,9270,INDEPENDENT FOSTERING         ,06/07/2016,4042585,27661,"3,108.00",REDACTED PERSONAL DATA,329839,,ADOPTION & FOSTERING          
SHEFFIELD CITY COUNCIL        ,CYPF                          ,39284,INDEPENDENT FOSTER PLACE U16  ,9270,INDEPENDENT FOSTERING         ,06/07/2016,4042586,28058,"3,010.00",REDACTED PERSONAL DATA,352082,,ADOPTION & FOSTERING          
SHEFFIELD CITY COUNCIL        ,CYPF                          ,39284,INDEPENDENT FOSTER PLACE U16  ,9270,INDEPENDENT FOSTERING         ,06/07/2016,4042587,28061,"3,060.00",REDACTED PERSONAL DATA,352082,,ADOPTION & FOSTERING          
SHEFFIELD CITY COUNCIL        ,CYPF                          ,39405,SEMI INDEPENDENT LIVING       ,9270,INDEPENDENT FOSTERING         ,06/07/2016,4042588,28062,"1,360.00",REDACTED PERSONAL DATA,352082,,ADOPTION & FOSTERING          
SHEFFIELD CITY COUNCIL        ,CYPF                          ,39284,INDEPENDENT FOSTER PLACE U16  ,9270,INDEPENDENT FOSTERING         ,06/07/2016,4042589,28063,"3,220.00",REDACTED PERSONAL DATA,352082,,ADOPTION & FOSTERING          
SHEFFIELD CITY COUNCIL        ,CYPF                          ,39284,INDEPENDENT FOSTER PLACE U16  ,9270,INDEPENDENT FOSTERING         ,06/07/2016,4042590,28064,"2,300.00",REDACTED PERSONAL DATA,352082,,ADOPTION & FOSTERING          
SHEFFIELD CITY COUNCIL        ,CYPF                          ,39405,SEMI INDEPENDENT LIVING       ,9270,INDEPENDENT FOSTERING         ,06/07/2016,4042591,28065,"3,010.00",REDACTED PERSONAL DATA,352082,,ADOPTION & FOSTERING          
SHEFFIELD CITY COUNCIL        ,CYPF                          ,39284,INDEPENDENT FOSTER PLACE U16  ,9270,INDEPENDENT FOSTERING         ,06/07/2016,4042592,28067,"3,010.00",REDACTED PERSONAL DATA,352082,,ADOPTION & FOSTERING          
SHEFFIELD CITY COUNCIL        ,CYPF                          ,39284,INDEPENDENT FOSTER PLACE U16  ,9270,INDEPENDENT FOSTERING         ,06/07/2016,4042593,28068,"3,060.00",REDACTED PERSONAL DATA,352082,,ADOPTION & FOSTERING          
SHEFFIELD CITY COUNCIL        ,CYPF                          ,39143,CWD INDEPENDENT PLACEMENTS    ,9270,INDEPENDENT FOSTERING         ,06/07/2016,4042594,28069,"3,060.00",REDACTED PERSONAL DATA,352082,,ADOPTION & FOSTERING          
SHEFFIELD CITY COUNCIL        ,CYPF                          ,39284,INDEPENDENT FOSTER PLACE U16  ,9270,INDEPENDENT FOSTERING         ,06/07/2016,4042595,28070,"3,010.00",REDACTED PERSONAL DATA,352082,,ADOPTION & FOSTERING          
SHEFFIELD CITY COUNCIL        ,CYPF                          ,39405,SEMI INDEPENDENT LIVING       ,9270,INDEPENDENT FOSTERING         ,06/07/2016,4042596,28071,"3,010.00",REDACTED PERSONAL DATA,352082,,ADOPTION & FOSTERING          
SHEFFIELD CITY COUNCIL        ,CYPF                          ,39284,INDEPENDENT FOSTER PLACE U16  ,9270,INDEPENDENT FOSTERING         ,06/07/2016,4042597,28072,"3,890.04",REDACTED PERSONAL DATA,352082,,ADOPTION & FOSTERING          
SHEFFIELD CITY COUNCIL        ,CYPF                          ,39284,INDEPENDENT FOSTER PLACE U16  ,9270,INDEPENDENT FOSTERING         ,06/07/2016,4042598,28074,"3,010.00",REDACTED PERSONAL DATA,352082,,ADOPTION & FOSTERING          
SHEFFIELD CITY COUNCIL        ,CYPF                          ,39284,INDEPENDENT FOSTER PLACE U16  ,9270,INDEPENDENT FOSTERING         ,06/07/2016,4042599,28075,"3,010.00",REDACTED PERSONAL DATA,352082,,ADOPTION & FOSTERING          
SHEFFIELD CITY COUNCIL        ,CYPF                          ,39284,INDEPENDENT FOSTER PLACE U16  ,9270,INDEPENDENT FOSTERING         ,06/07/2016,4042600,28076,"3,682.96",REDACTED PERSONAL DATA,352082,,ADOPTION & FOSTERING          
SHEFFIELD CITY COUNCIL        ,CYPF                          ,39405,SEMI INDEPENDENT LIVING       ,9270,INDEPENDENT FOSTERING         ,06/07/2016,4042601,28077,"3,060.00",REDACTED PERSONAL DATA,352082,,ADOPTION & FOSTERING          
SHEFFIELD CITY COUNCIL        ,CYPF                          ,39143,CWD INDEPENDENT PLACEMENTS    ,9270,INDEPENDENT FOSTERING         ,06/07/2016,4042602,28080,"4,000.00",REDACTED PERSONAL DATA,352082,,ADOPTION & FOSTERING          
SHEFFIELD CITY COUNCIL        ,CYPF                          ,39284,INDEPENDENT FOSTER PLACE U16  ,9270,INDEPENDENT FOSTERING         ,06/07/2016,4042603,28081,"3,010.00",REDACTED PERSONAL DATA,352082,,ADOPTION & FOSTERING          
SHEFFIELD CITY COUNCIL        ,CYPF                          ,39284,INDEPENDENT FOSTER PLACE U16  ,9270,INDEPENDENT FOSTERING         ,06/07/2016,4042604,28082,"3,890.04",REDACTED PERSONAL DATA,352082,,ADOPTION & FOSTERING          
SHEFFIELD CITY COUNCIL        ,CYPF                          ,39405,SEMI INDEPENDENT LIVING       ,9270,INDEPENDENT FOSTERING         ,06/07/2016,4042605,28107,"1,935.00",REDACTED PERSONAL DATA,352082,,ADOPTION & FOSTERING          
SHEFFIELD CITY COUNCIL        ,CYPF                          ,39405,SEMI INDEPENDENT LIVING       ,9270,INDEPENDENT FOSTERING         ,06/07/2016,4042607,3001901,"3,514.84",CAPSTONE FOSTER CARE (NORTH) LTD        ,586224,,ADOPTION & FOSTERING          
SHEFFIELD CITY COUNCIL        ,CYPF                          ,39405,SEMI INDEPENDENT LIVING       ,9270,INDEPENDENT FOSTERING         ,06/07/2016,4042608,38110,920.00,REDACTED PERSONAL DATA,352082,,ADOPTION & FOSTERING          
SHEFFIELD CITY COUNCIL        ,CYPF                          ,39143,CWD INDEPENDENT PLACEMENTS    ,9270,INDEPENDENT FOSTERING         ,06/07/2016,4042609,630195836,"5,243.28",REDACTED PERSONAL DATA,328618,,ADOPTION & FOSTERING          
SHEFFIELD CITY COUNCIL        ,CYPF                          ,39405,SEMI INDEPENDENT LIVING       ,9270,INDEPENDENT FOSTERING         ,06/07/2016,4042610,630195837,"3,532.19",REDACTED PERSONAL DATA,328618,,ADOPTION & FOSTERING          
SHEFFIELD CITY COUNCIL        ,CYPF                          ,39405,SEMI INDEPENDENT LIVING       ,9270,INDEPENDENT FOSTERING         ,06/07/2016,4042611,630195838,"3,604.25",REDACTED PERSONAL DATA,328618,,ADOPTION & FOSTERING          
SHEFFIELD CITY COUNCIL        ,CYPF                          ,39284,INDEPENDENT FOSTER PLACE U16  ,9270,INDEPENDENT FOSTERING         ,06/07/2016,4042612,630195839,"4,692.52",REDACTED PERSONAL DATA,328618,,ADOPTION & FOSTERING          
SHEFFIELD CITY COUNCIL        ,CYPF                          ,39405,SEMI INDEPENDENT LIVING       ,9270,INDEPENDENT FOSTERING         ,06/07/2016,4042613,630195840,"5,160.40",REDACTED PERSONAL DATA,328618,,ADOPTION & FOSTERING          
SHEFFIELD CITY COUNCIL        ,CYPF                          ,39405,SEMI INDEPENDENT LIVING       ,9270,INDEPENDENT FOSTERING         ,06/07/2016,4042614,630195841,"5,868.80",REDACTED PERSONAL DATA,328618,,ADOPTION & FOSTERING          
SHEFFIELD CITY COUNCIL        ,CYPF                          ,39405,SEMI INDEPENDENT LIVING       ,9270,INDEPENDENT FOSTERING         ,06/07/2016,4042615,630195842,"3,604.25",REDACTED PERSONAL DATA,328618,,ADOPTION & FOSTERING          
SHEFFIELD CITY COUNCIL        ,CYPF                          ,39405,SEMI INDEPENDENT LIVING       ,9270,INDEPENDENT FOSTERING         ,06/07/2016,4042616,630195843,"3,304.00",REDACTED PERSONAL DATA,328618,,ADOPTION & FOSTERING          
SHEFFIELD CITY COUNCIL        ,CYPF                          ,39284,INDEPENDENT FOSTER PLACE U16  ,9270,INDEPENDENT FOSTERING         ,06/07/2016,4042617,630195844,"4,423.72",REDACTED PERSONAL DATA,328618,,ADOPTION & FOSTERING          
SHEFFIELD CITY COUNCIL        ,CYPF                          ,39284,INDEPENDENT FOSTER PLACE U16  ,9270,INDEPENDENT FOSTERING         ,06/07/2016,4042618,630195845,"3,604.25",REDACTED PERSONAL DATA,328618,,ADOPTION & FOSTERING          
SHEFFIELD CITY COUNCIL        ,CYPF                          ,39284,INDEPENDENT FOSTER PLACE U16  ,9270,INDEPENDENT FOSTERING         ,06/07/2016,4042619,630195847,"3,604.25",REDACTED PERSONAL DATA,328618,,ADOPTION & FOSTERING          
SHEFFIELD CITY COUNCIL        ,CYPF                          ,39284,INDEPENDENT FOSTER PLACE U16  ,9270,INDEPENDENT FOSTERING         ,06/07/2016,4042620,630195848,"3,304.00",REDACTED PERSONAL DATA,328618,,ADOPTION & FOSTERING          
SHEFFIELD CITY COUNCIL        ,CYPF                          ,39405,SEMI INDEPENDENT LIVING       ,9270,INDEPENDENT FOSTERING         ,06/07/2016,4042621,630195852,"3,604.25",REDACTED PERSONAL DATA,328618,,ADOPTION & FOSTERING          
SHEFFIELD CITY COUNCIL        ,CYPF                          ,39284,INDEPENDENT FOSTER PLACE U16  ,9270,INDEPENDENT FOSTERING         ,06/07/2016,4042622,630195853,"3,604.25",REDACTED PERSONAL DATA,328618,,ADOPTION & FOSTERING          
SHEFFIELD CITY COUNCIL        ,CYPF                          ,39284,INDEPENDENT FOSTER PLACE U16  ,9270,INDEPENDENT FOSTERING         ,06/07/2016,4042623,630195855,"3,676.29",REDACTED PERSONAL DATA,328618,,ADOPTION & FOSTERING          
SHEFFIELD CITY COUNCIL        ,CYPF                          ,39284,INDEPENDENT FOSTER PLACE U16  ,9270,INDEPENDENT FOSTERING         ,06/07/2016,4042624,630195856,"3,676.29",REDACTED PERSONAL DATA,328618,,ADOPTION & FOSTERING          
SHEFFIELD CITY COUNCIL        ,CYPF                          ,39284,INDEPENDENT FOSTER PLACE U16  ,9270,INDEPENDENT FOSTERING         ,06/07/2016,4042625,630195857,"3,676.29",REDACTED PERSONAL DATA,328618,,ADOPTION & FOSTERING          
SHEFFIELD CITY COUNCIL        ,CYPF                          ,39405,SEMI INDEPENDENT LIVING       ,9270,INDEPENDENT FOSTERING         ,06/07/2016,4042626,630195862,"3,199.84",REDACTED PERSONAL DATA,328618,,ADOPTION & FOSTERING          
SHEFFIELD CITY COUNCIL        ,CYPF                          ,39284,INDEPENDENT FOSTER PLACE U16  ,9270,INDEPENDENT FOSTERING         ,06/07/2016,4042627,630195868,"2,970.24",REDACTED PERSONAL DATA,328618,,ADOPTION & FOSTERING          
SHEFFIELD CITY COUNCIL        ,CYPF                          ,39405,SEMI INDEPENDENT LIVING       ,9270,INDEPENDENT FOSTERING         ,06/07/2016,4042628,630195869,"3,290.00",REDACTED PERSONAL DATA,328618,,ADOPTION & FOSTERING          
SHEFFIELD CITY COUNCIL        ,CYPF                          ,39143,CWD INDEPENDENT PLACEMENTS    ,9270,INDEPENDENT FOSTERING         ,06/07/2016,4042629,630195873,"5,593.28",REDACTED PERSONAL DATA,328618,,ADOPTION & FOSTERING          
SHEFFIELD CITY COUNCIL        ,CYPF                          ,39143,CWD INDEPENDENT PLACEMENTS    ,9270,INDEPENDENT FOSTERING         ,06/07/2016,4042630,630195875,"3,676.29",REDACTED PERSONAL DATA,328618,,ADOPTION & FOSTERING          
SHEFFIELD CITY COUNCIL        ,CYPF                          ,39284,INDEPENDENT FOSTER PLACE U16  ,9270,INDEPENDENT FOSTERING         ,06/07/2016,4042631,630195876,"3,676.29",REDACTED PERSONAL DATA,328618,,ADOPTION & FOSTERING          
SHEFFIELD CITY COUNCIL        ,CYPF                          ,39405,SEMI INDEPENDENT LIVING       ,9270,INDEPENDENT FOSTERING         ,06/07/2016,4042632,630195877,"3,676.29",REDACTED PERSONAL DATA,328618,,ADOPTION & FOSTERING          
SHEFFIELD CITY COUNCIL        ,CYPF                          ,39284,INDEPENDENT FOSTER PLACE U16  ,9270,INDEPENDENT FOSTERING         ,06/07/2016,4042633,630195884,"3,676.40",REDACTED PERSONAL DATA,328618,,ADOPTION & FOSTERING          
SHEFFIELD CITY COUNCIL        ,CYPF                          ,39284,INDEPENDENT FOSTER PLACE U16  ,9270,INDEPENDENT FOSTERING         ,06/07/2016,4042634,630195885,"4,788.28",REDACTED PERSONAL DATA,328618,,ADOPTION & FOSTERING          
SHEFFIELD CITY COUNCIL        ,CYPF                          ,39284,INDEPENDENT FOSTER PLACE U16  ,9270,INDEPENDENT FOSTERING         ,06/07/2016,4042635,630195886,"3,019.10",REDACTED PERSONAL DATA,328618,,ADOPTION & FOSTERING          
SHEFFIELD CITY COUNCIL        ,CYPF                          ,39284,INDEPENDENT FOSTER PLACE U16  ,9270,INDEPENDENT FOSTERING         ,06/07/2016,4042636,630195887,"3,019.10",REDACTED PERSONAL DATA,328618,,ADOPTION & FOSTERING          
SHEFFIELD CITY COUNCIL        ,CYPF                          ,39284,INDEPENDENT FOSTER PLACE U16  ,9270,INDEPENDENT FOSTERING         ,06/07/2016,4042637,630195891,"3,676.29",REDACTED PERSONAL DATA,328618,,ADOPTION & FOSTERING          
SHEFFIELD CITY COUNCIL        ,CYPF                          ,39284,INDEPENDENT FOSTER PLACE U16  ,9270,INDEPENDENT FOSTERING         ,06/07/2016,4042638,630195894,"3,676.40",REDACTED PERSONAL DATA,328618,,ADOPTION & FOSTERING          
SHEFFIELD CITY COUNCIL        ,CYPF                          ,39405,SEMI INDEPENDENT LIVING       ,9270,INDEPENDENT FOSTERING         ,06/07/2016,4042639,630195895,"3,676.40",REDACTED PERSONAL DATA,328618,,ADOPTION & FOSTERING          
SHEFFIELD CITY COUNCIL        ,CYPF                          ,39405,SEMI INDEPENDENT LIVING       ,9270,INDEPENDENT FOSTERING         ,06/07/2016,4042640,630195896,"3,178.00",REDACTED PERSONAL DATA,328618,,ADOPTION & FOSTERING          
SHEFFIELD CITY COUNCIL        ,CYPF                          ,39284,INDEPENDENT FOSTER PLACE U16  ,9270,INDEPENDENT FOSTERING         ,06/07/2016,4042641,630195897,"3,604.25",REDACTED PERSONAL DATA,328618,,ADOPTION & FOSTERING          
SHEFFIELD CITY COUNCIL        ,CYPF                          ,39143,CWD INDEPENDENT PLACEMENTS    ,9270,INDEPENDENT FOSTERING         ,06/07/2016,4042642,630195898,"3,679.48",REDACTED PERSONAL DATA,328618,,ADOPTION & FOSTERING          
SHEFFIELD CITY COUNCIL        ,CYPF                          ,39405,SEMI INDEPENDENT LIVING       ,9270,INDEPENDENT FOSTERING         ,06/07/2016,4042643,630195901,"3,178.00",REDACTED PERSONAL DATA,328618,,ADOPTION & FOSTERING          
SHEFFIELD CITY COUNCIL        ,CYPF                          ,39284,INDEPENDENT FOSTER PLACE U16  ,9270,INDEPENDENT FOSTERING         ,06/07/2016,4042644,630195902,"3,178.00",REDACTED PERSONAL DATA,328618,,ADOPTION & FOSTERING          
SHEFFIELD CITY COUNCIL        ,CYPF                          ,39284,INDEPENDENT FOSTER PLACE U16  ,9270,INDEPENDENT FOSTERING         ,06/07/2016,4042645,630195903,"2,968.00",REDACTED PERSONAL DATA,328618,,ADOPTION & FOSTERING          
SHEFFIELD CITY COUNCIL        ,CYPF                          ,39284,INDEPENDENT FOSTER PLACE U16  ,9270,INDEPENDENT FOSTERING         ,06/07/2016,4042646,630195904,"3,082.66",REDACTED PERSONAL DATA,328618,,ADOPTION & FOSTERING          
SHEFFIELD CITY COUNCIL        ,CYPF                          ,39006,UASC/ASYLUM 16-17             ,9270,INDEPENDENT FOSTERING         ,06/07/2016,4042647,630195909,"3,178.00",REDACTED PERSONAL DATA,328618,,ADOPTION & FOSTERING          
SHEFFIELD CITY COUNCIL        ,CYPF                          ,39006,UASC/ASYLUM 16-17             ,6210,RENTS                         ,06/07/2016,4042648,655,"3,037.44",EMMA HOUSE LIMITED                      ,540030,,RESIDENTIAL CARE HOMES        
SHEFFIELD CITY COUNCIL        ,CYPF                          ,39405,SEMI INDEPENDENT LIVING       ,9270,CARELEAVERS ACCOMMODATION     ,06/07/2016,4042649,656,"3,037.44",EMMA HOUSE LIMITED                      ,540030,,RESIDENTIAL CARE HOMES        
SHEFFIELD CITY COUNCIL        ,CYPF                          ,39405,SEMI INDEPENDENT LIVING       ,9270,CARELEAVERS ACCOMMODATION     ,06/07/2016,4042650,657,"3,037.44",EMMA HOUSE LIMITED                      ,540030,,RESIDENTIAL CARE HOMES        
SHEFFIELD CITY COUNCIL        ,CYPF                          ,39405,SEMI INDEPENDENT LIVING       ,9270,CARELEAVERS ACCOMMODATION     ,06/07/2016,4042651,658,"2,892.80",EMMA HOUSE LIMITED                      ,540030,,RESIDENTIAL CARE HOMES        
SHEFFIELD CITY COUNCIL        ,CYPF                          ,39405,SEMI INDEPENDENT LIVING       ,9270,CARELEAVERS ACCOMMODATION     ,06/07/2016,4042652,660,"1,880.32",EMMA HOUSE LIMITED                      ,540030,,RESIDENTIAL CARE HOMES        
SHEFFIELD CITY COUNCIL        ,CYPF                          ,39405,SEMI INDEPENDENT LIVING       ,9270,CARELEAVERS ACCOMMODATION     ,06/07/2016,4042653,662,"3,037.44",EMMA HOUSE LIMITED                      ,540030,,RESIDENTIAL CARE HOMES        
SHEFFIELD CITY COUNCIL        ,CYPF                          ,39266,CIN NRTPF                     ,9270,CARELEAVERS ACCOMMODATION     ,06/07/2016,4042654,7090,406.00,EARL MARSHALL GUEST HOUSE LTD           ,391589,,GUEST HOUSES                  
SHEFFIELD CITY COUNCIL        ,CYPF                          ,39405,SEMI INDEPENDENT LIVING       ,9270,CARELEAVERS ACCOMMODATION     ,06/07/2016,4042655,8784,"3,800.00",HUTTON CARE PARTNERSHIP LTD             ,422809,,SHELTERED HOUSING             
SHEFFIELD CITY COUNCIL        ,CYPF                          ,39405,SEMI INDEPENDENT LIVING       ,9270,CARELEAVERS ACCOMMODATION     ,06/07/2016,4042656,8785,"3,800.00",HUTTON CARE PARTNERSHIP LTD             ,422809,,SHELTERED HOUSING             
SHEFFIELD CITY COUNCIL        ,CYPF                          ,39405,SEMI INDEPENDENT LIVING       ,9270,CARELEAVERS ACCOMMODATION     ,06/07/2016,4042657,8786,"3,800.00",HUTTON CARE PARTNERSHIP LTD             ,422809,,SHELTERED HOUSING             
SHEFFIELD CITY COUNCIL        ,CYPF                          ,39405,SEMI INDEPENDENT LIVING       ,9270,CARELEAVERS ACCOMMODATION     ,06/07/2016,4042658,8787,"3,800.00",HUTTON CARE PARTNERSHIP LTD             ,422809,,SHELTERED HOUSING             
SHEFFIELD CITY COUNCIL        ,CYPF                          ,39405,SEMI INDEPENDENT LIVING       ,9270,CARELEAVERS ACCOMMODATION     ,06/07/2016,4042659,8788,"3,800.00",HUTTON CARE PARTNERSHIP LTD             ,422809,,SHELTERED HOUSING             
SHEFFIELD CITY COUNCIL        ,CYPF                          ,39006,UASC/ASYLUM 16-17             ,9270,INDEPENDENT FOSTERING         ,06/07/2016,4042660,NFA 163920               ,"3,076.08",REDACTED PERSONAL DATA,432914,,ADOPTION & FOSTERING          
SHEFFIELD CITY COUNCIL        ,CYPF                          ,39006,UASC/ASYLUM 16-17             ,9270,INDEPENDENT FOSTERING         ,06/07/2016,4042661,NFA163916                ,"3,076.08",REDACTED PERSONAL DATA,432914,,ADOPTION & FOSTERING          
SHEFFIELD CITY COUNCIL        ,CYPF                          ,39266,CIN NRTPF                     ,9270,CARELEAVERS ACCOMMODATION     ,06/07/2016,4042662,SCC5506                  ,530.00,ALARA BED & BREAKFAST                   ,305061,,GUEST HOUSES                  
SHEFFIELD CITY COUNCIL        ,CYPF                          ,39006,UASC/ASYLUM 16-17             ,9270,INDEPENDENT FOSTERING         ,06/07/2016,4042663,28066,"3,010.00",REDACTED PERSONAL DATA,352082,,ADOPTION & FOSTERING          
SHEFFIELD CITY COUNCIL        ,CYPF                          ,39266,CIN NRTPF                     ,9270,CARELEAVERS ACCOMMODATION     ,06/07/2016,4042664,4087,396.90,EARL MARSHALL GUEST HOUSE LTD           ,391589,,GUEST HOUSES                  
SHEFFIELD CITY COUNCIL        ,CYPF                          ,39266,CIN NRTPF                     ,9270,CARELEAVERS ACCOMMODATION     ,06/07/2016,4042665,4092,320.95,EARL MARSHALL GUEST HOUSE LTD           ,391589,,GUEST HOUSES                  
SHEFFIELD CITY COUNCIL        ,CYPF                          ,39266,CIN NRTPF                     ,9270,CARELEAVERS ACCOMMODATION     ,06/07/2016,4042666,4094,340.20,EARL MARSHALL GUEST HOUSE LTD           ,391589,,GUEST HOUSES                  
SHEFFIELD CITY COUNCIL        ,CYPF                          ,39428,INDEPENDENT RES PLACEMENTS U16,9270,INDEPENDENT RESIDENTIAL PMENT ,06/07/2016,4042667,620974,"1,368.57",NORTHERN LIFE CARE LTD T/A UBU          ,207163,,RESIDENTIAL CARE HOMES        
SHEFFIELD CITY COUNCIL        ,CYPF                          ,39006,UASC/ASYLUM 16-17             ,9270,INDEPENDENT RESIDENTIAL PMENT ,06/07/2016,4042668,620975,"9,580.00",NORTHERN LIFE CARE LTD T/A UBU          ,207163,,RESIDENTIAL CARE HOMES        
SHEFFIELD CITY COUNCIL        ,CYPF                          ,39428,INDEPENDENT RES PLACEMENTS U16,9270,INDEPENDENT RESIDENTIAL PMENT ,06/07/2016,4042669,620976,"7,980.00",NORTHERN LIFE CARE LTD T/A UBU          ,207163,,RESIDENTIAL CARE HOMES        
SHEFFIELD CITY COUNCIL        ,CYPF                          ,39428,INDEPENDENT RES PLACEMENTS U16,9270,INDEPENDENT RESIDENTIAL PMENT ,06/07/2016,4042670,620977,"7,980.00",NORTHERN LIFE CARE LTD T/A UBU          ,207163,,RESIDENTIAL CARE HOMES        
SHEFFIELD CITY COUNCIL        ,CYPF                          ,39405,SEMI INDEPENDENT LIVING       ,9270,CARELEAVERS ACCOMMODATION     ,06/07/2016,4042671,620978,"7,980.00",NORTHERN LIFE CARE LTD T/A UBU          ,207163,,RESIDENTIAL CARE HOMES        
SHEFFIELD CITY COUNCIL        ,CYPF                          ,39405,SEMI INDEPENDENT LIVING       ,9270,CARELEAVERS ACCOMMODATION     ,06/07/2016,4042672,620981,"9,580.00",NORTHERN LIFE CARE LTD T/A UBU          ,207163,,RESIDENTIAL CARE HOMES        
SHEFFIELD CITY COUNCIL        ,CYPF                          ,39006,UASC/ASYLUM 16-17             ,9270,INDEPENDENT FOSTERING         ,06/07/2016,4042673,630195900,"3,178.00",REDACTED PERSONAL DATA,328618,,ADOPTION & FOSTERING          
SHEFFIELD CITY COUNCIL        ,CYPF                          ,39239,WEST SA - LAC                 ,9440,LOOKED AFTER CHILDREN         ,06/07/2016,4042675,VIVC0002542              ,606.73,CORAM VOICE                             ,398016,,CHARITIES & VOLUNTARY ORGANISA
SHEFFIELD CITY COUNCIL        ,COMMUNITIES                   ,46039,ADULT SOCIAL CARE PURCHASING  ,9200,CONTINUING RESIDENTIAL CARE   ,06/07/2016,4042541,J1509256 190616          ,"1,548.00",KNIGHTINGALE CARE LTD                   ,633697,,RESIDENTIAL CARE HOMES        
SHEFFIELD CITY COUNCIL        ,COMMUNITIES                   ,46039,ADULT SOCIAL CARE PURCHASING  ,9200,CONTINUING RESIDENTIAL CARE   ,06/07/2016,4042542,J1509368 190616          ,"15,462.00",HENLEIGH HALL                           ,362109,,NURSING HOMES                 
SHEFFIELD CITY COUNCIL        ,COMMUNITIES                   ,47028,PDSI PURCHASING               ,9200,CONTINUING RESIDENTIAL CARE   ,06/07/2016,4042542,J1509368 190616          ,"2,586.68",HENLEIGH HALL                           ,362109,,NURSING HOMES                 
SHEFFIELD CITY COUNCIL        ,COMMUNITIES                   ,46039,ADULT SOCIAL CARE PURCHASING  ,9210,CONTINUING NURSING CARE       ,06/07/2016,4042542,J1509368 190616          ,"17,148.00",HENLEIGH HALL                           ,362109,,NURSING HOMES                 
SHEFFIELD CITY COUNCIL        ,COMMUNITIES                   ,47028,PDSI PURCHASING               ,9210,CONTINUING NURSING CARE       ,06/07/2016,4042542,J1509368 190616          ,"4,209.48",HENLEIGH HALL                           ,362109,,NURSING HOMES                 
SHEFFIELD CITY COUNCIL        ,COMMUNITIES                   ,46039,ADULT SOCIAL CARE PURCHASING  ,9210,CONTINUING NURSING CARE       ,06/07/2016,4042544,J1545044 170716          ,"1,992.00",HC ONE LIMITED                          ,625734,,NURSING HOMES                 
SHEFFIELD CITY COUNCIL        ,COMMUNITIES                   ,46039,ADULT SOCIAL CARE PURCHASING  ,9200,CONTINUING RESIDENTIAL CARE   ,06/07/2016,4042545,J1545057 170716          ,"1,548.00",KNIGHTINGALE CARE LTD                   ,633697,,RESIDENTIAL CARE HOMES        
SHEFFIELD CITY COUNCIL        ,COMMUNITIES                   ,42034,PURCHASING LEARNING DISABILITI,9200,CONTINUING RESIDENTIAL CARE   ,06/07/2016,4042546,J1545100 170716          ,"4,891.08",BROOMHOUSE                              ,362002,,NURSING HOMES                 
SHEFFIELD CITY COUNCIL        ,COMMUNITIES                   ,42034,PURCHASING LEARNING DISABILITI,9210,CONTINUING NURSING CARE       ,06/07/2016,4042546,J1545100 170716          ,"1,944.12",BROOMHOUSE                              ,362002,,NURSING HOMES                 
SHEFFIELD CITY COUNCIL        ,COMMUNITIES                   ,46039,ADULT SOCIAL CARE PURCHASING  ,9210,CONTINUING NURSING CARE       ,06/07/2016,4042547,J1545171 170716          ,"26,306.28",HOLMWOOD CARE HOME                      ,331238,,NURSING HOMES                 
SHEFFIELD CITY COUNCIL        ,COMMUNITIES                   ,42034,PURCHASING LEARNING DISABILITI,9200,CONTINUING RESIDENTIAL CARE   ,06/07/2016,4042548,J1545192 170716          ,"5,524.24",SEVERN OAKS CARE HOME (C/O CINTRE COMMUN,368306,,RESIDENTIAL CARE HOMES        
SHEFFIELD CITY COUNCIL        ,COMMUNITIES                   ,42034,PURCHASING LEARNING DISABILITI,9200,CONTINUING RESIDENTIAL CARE   ,06/07/2016,4042549,J1545230 170716          ,"7,409.88",GRETTON HOUSE                           ,461869,,NURSING HOMES                 
SHEFFIELD CITY COUNCIL        ,COMMUNITIES                   ,42034,PURCHASING LEARNING DISABILITI,9200,CONTINUING RESIDENTIAL CARE   ,06/07/2016,4042550,J1545257 170716          ,"1,181.28",SANCTUARY CARE LIMITED                  ,560422,,NURSING HOMES                 
SHEFFIELD CITY COUNCIL        ,COMMUNITIES                   ,46039,ADULT SOCIAL CARE PURCHASING  ,9200,CONTINUING RESIDENTIAL CARE   ,06/07/2016,4042550,J1545257 170716          ,"86,608.00",SANCTUARY CARE LIMITED                  ,560422,,NURSING HOMES                 
SHEFFIELD CITY COUNCIL        ,COMMUNITIES                   ,46039,ADULT SOCIAL CARE PURCHASING  ,9210,CONTINUING NURSING CARE       ,06/07/2016,4042551,J1547941 170716          ,"4,376.00",FULWOOD LODGE NURSING HOME              ,361775,,NURSING HOMES                 
SHEFFIELD CITY COUNCIL        ,COMMUNITIES                   ,46039,ADULT SOCIAL CARE PURCHASING  ,9200,CONTINUING RESIDENTIAL CARE   ,06/07/2016,4042552,J1569600 170716          ,"9,291.00",NIGHTINGALES RES HOME                   ,361897,,RESIDENTIAL CARE HOMES        
SHEFFIELD CITY COUNCIL        ,COMMUNITIES                   ,46039,ADULT SOCIAL CARE PURCHASING  ,9210,CONTINUING NURSING CARE       ,06/07/2016,4042553,J1569601 170716          ,"2,165.00",HADDON COURT NURSING HOME               ,361916,,NURSING HOMES                 
SHEFFIELD CITY COUNCIL        ,COMMUNITIES                   ,46039,ADULT SOCIAL CARE PURCHASING  ,9210,CONTINUING NURSING CARE       ,06/07/2016,4042554,J1569605 170716          ,"2,940.00",NORTHFIELD NURSING HOME                 ,361770,,NURSING HOMES                 
SHEFFIELD CITY COUNCIL        ,COMMUNITIES                   ,46039,ADULT SOCIAL CARE PURCHASING  ,9200,CONTINUING RESIDENTIAL CARE   ,06/07/2016,4042555,J1569607 170716          ,"7,408.43",NORTH HILL RESIDENTIAL HOME             ,362254,,RESIDENTIAL CARE HOMES        
SHEFFIELD CITY COUNCIL        ,COMMUNITIES                   ,46039,ADULT SOCIAL CARE PURCHASING  ,9210,CONTINUING NURSING CARE       ,06/07/2016,4042556,J1569608 170716          ,"5,412.00",SCARSDALE GRANGE NH                     ,361915,,NURSING HOMES                 
SHEFFIELD CITY COUNCIL        ,COMMUNITIES                   ,46039,ADULT SOCIAL CARE PURCHASING  ,9210,CONTINUING NURSING CARE       ,06/07/2016,4042557,J1569609 170716          ,"6,939.00",SEVENHILLS NURSING                      ,362104,,NURSING HOMES                 
SHEFFIELD CITY COUNCIL        ,COMMUNITIES                   ,46039,ADULT SOCIAL CARE PURCHASING  ,9210,CONTINUING NURSING CARE       ,06/07/2016,4042558,J1569612 170716          ,952.50,HORIZON CARE HOMES LTD WOOD HILL GRANGE ,552397,,RESIDENTIAL CARE HOMES        
SHEFFIELD CITY COUNCIL        ,COMMUNITIES                   ,46039,ADULT SOCIAL CARE PURCHASING  ,9200,SHORT TERM RESIDENTIAL CARE   ,06/07/2016,4042560,J1569565 190616          ,323.14,DEVAGLADE LTD T/A AARON VIEW            ,486043,,NURSING HOMES                 
SHEFFIELD CITY COUNCIL        ,COMMUNITIES                   ,46039,ADULT SOCIAL CARE PURCHASING  ,9200,SHORT TERM RESIDENTIAL CARE   ,06/07/2016,4042562,J1569568 190616          ,865.71,AKARI CARE LTD (SILVER LODGE)           ,361763,,RESIDENTIAL CARE HOMES        
SHEFFIELD CITY COUNCIL        ,PLACE                         ,22077,AFFORDABLE HOUSING            ,8440,FEE EXPENSES                  ,07/07/2016,4021466,2.50E+13,700.00,VALUATION OFFICE AGENCY                 ,511469,,CENTRAL GOVERNMENT            
SHEFFIELD CITY COUNCIL        ,COMMUNITIES                   ,49356,ESTATE & ENVIORMENTAL SERVICES,6090,TIPPING COSTS                 ,07/07/2016,4031873,FOR9260                  ,351.00,FORWARD ENVIRONMENTAL LIMITED           ,440387,,PEST & VERMIN CONTROL         
SHEFFIELD CITY COUNCIL        ,CYPF                          ,38079,INNOVATION PROGRAMME          ,9100,PARTNERSHIP CONTRACTS         ,07/07/2016,4032384,54034,"22,579.94",CATCH22 NCAS                            ,487933,,CHARITIES & VOLUNTARY ORGANISA
SHEFFIELD CITY COUNCIL        ,CYPF                          ,38079,INNOVATION PROGRAMME          ,9100,PARTNERSHIP CONTRACTS         ,07/07/2016,4032386,54033,"23,438.80",CATCH22 NCAS                            ,487933,,CHARITIES & VOLUNTARY ORGANISA
SHEFFIELD CITY COUNCIL        ,RESOURCES                     ,15218,TOWN HALL                     ,8060,MATERIALS AND SUPPLIES GENERAL,07/07/2016,4033091,18081,670.06,BRADLEY LOMAS ELECTROLOK LTD            ,510933,,MANUFACTURERS                 
SHEFFIELD CITY COUNCIL        ,PLACE                         ,25076,SHEFFIELD HOMES TREES         ,6370,GROUNDS MTCE AND ARBORICULTURE,07/07/2016,4035632,3418,"1,280.00",ANDERSON TREE CARE LTD                  ,316084,,TREE WORK & FORESTRY SERVICES 
SHEFFIELD CITY COUNCIL        ,PLACE                         ,22147,PUBLIC RIGHTS OF WAY          ,6390,OTHER HIGHWAY MAINTENANCE     ,07/07/2016,4039081,5/1265/25LM/40826        ,"1,925.00",WILDSCAPES LTD                          ,472494,,LANDSCAPE ARCHITECTS & DESIGNE
SHEFFIELD CITY COUNCIL        ,COMMUNITIES                   ,49356,ESTATE & ENVIORMENTAL SERVICES,6090,TIPPING COSTS                 ,07/07/2016,4039824,FOR9288                  ,427.50,FORWARD ENVIRONMENTAL LIMITED           ,440387,,PEST & VERMIN CONTROL         
SHEFFIELD CITY COUNCIL        ,CYPF                          ,32048,SCHOOL SPORTS                 ,6280,HIRE OF PREMISES              ,07/07/2016,4039989,70,618.00,CITY OF SHEFFIELD SWIM SQUAD            ,316968,,SPORTS CLUBS & ASSOCIATIONS   
SHEFFIELD CITY COUNCIL        ,COMMUNITIES                   ,47002,QUALITY TEAM - NON STAFFING   ,8370,PRINTING                      ,07/07/2016,4040003,23158,326.30,OCTAGON DESIGN & MARKETING LTD          ,439982,,PUBLISHERS                    
SHEFFIELD CITY COUNCIL        ,PLACE                         ,94085,WASTE MGMT DEVELOPMENT        ,1193,CONSULTANTS FEES              ,07/07/2016,4040592,1472791,"3,970.00",BEVAN BRITTAN LLP                       ,531236,,SOLICITORS                    
SHEFFIELD CITY COUNCIL        ,CYPF                          ,36021,CATERING PREMISES & EQUIPMENT ,8010,EQUIPMENT PURCHASE AND REPAIR ,07/07/2016,4040681,10512,"1,308.00",DENBY CATERING EQUIPMENT LTD            ,580220,,CATERING EQUIPMENT            
SHEFFIELD CITY COUNCIL        ,CYPF                          ,36021,CATERING PREMISES & EQUIPMENT ,8010,EQUIPMENT PURCHASE AND REPAIR ,07/07/2016,4040683,10513,"1,230.00",DENBY CATERING EQUIPMENT LTD            ,580220,,CATERING EQUIPMENT            
SHEFFIELD CITY COUNCIL        ,CYPF                          ,39446,TEACHING PARTNERSHIPS         ,8440,FEE EXPENSES                  ,07/07/2016,4041010,15,"1,000.00",CENTRE FOR SOCIAL WORK PRACTICE         ,582368,,CONFERENCE SERVICES           
SHEFFIELD CITY COUNCIL        ,CYPF                          ,32048,SCHOOL SPORTS                 ,6280,HIRE OF PREMISES              ,07/07/2016,4041783,3042596,667.80,7 HILLS LEISURE TRUST                   ,566500,,SPORTS GROUND & STADIUM CONTRA
SHEFFIELD CITY COUNCIL        ,CYPF                          ,32048,SCHOOL SPORTS                 ,6280,HIRE OF PREMISES              ,07/07/2016,4041784,3042585,"1,621.80",7 HILLS LEISURE TRUST                   ,566500,,SPORTS GROUND & STADIUM CONTRA
SHEFFIELD CITY COUNCIL        ,CYPF                          ,33114,POST 16 LDD DELIVERY 15 16    ,9120,OTHER AGENCIES                ,07/07/2016,4041800,MWC05                    ,250.00,THE MUSICAL WORKS                       ,368576,,COMMUNITY PROJECTS            
SHEFFIELD CITY COUNCIL        ,POLICY PERFORMANCE AND COMMS  ,18003,COMMUNICATIONS                ,8550,OTHER SERVICES                ,07/07/2016,4041804,102,935.31,THE PRINT AND DESIGN FACTORY LTD        ,207663,,PRINTERS                      
SHEFFIELD CITY COUNCIL        ,POLICY PERFORMANCE AND COMMS  ,18003,COMMUNICATIONS                ,8550,OTHER SERVICES                ,07/07/2016,4041807,101,781.58,THE PRINT AND DESIGN FACTORY LTD        ,207663,,PRINTERS                      
SHEFFIELD CITY COUNCIL        ,COMMUNITIES                   ,42075,VOIDS & VACANCY COSTS         ,9190,EX POOL CLIENTS               ,07/07/2016,4042122,619727L1SB               ,"2,136.37",COMMUNITY INTEGRATED CARE               ,620703,,SOCIAL SERVICES               
